Workbook

Sheet Main
B10: 2022-04-20
B12: Sheet No. | C12: Template Name | D12: Summary
B13: 1 | C13: Future Intra | D13: For Intraday trading in F&O segment
B14: 2 | C14: Cash Intra | D14: For Intraday trading in cash market segment
B15: 3 | C15: Mid-cap Intra | D15: For Intraday trading in Mid-cap stocks
B16: 4 | C16: Bulk Deals | D16: Reveals Bulk Deals carried on NSE & BSE
B17: 5 | C17: Call Tracker
K27: `

Sheet Future Intra
M5: Back to Main Page
A6: FOR INTRA DAY TRADING | L6: =Main!B10 -> 2022-04-20
A9: Sr.no | B9: Sector | C9: Scrip | D9: Expiry Date | E9: CLOSE RATE | F9: Pivot Point | G9: Supports | J9: Resistances
E10: Point | F10: Point | G10: S1 | H10: S2 | I10: S3 | J10: R1 | K10: R2 | L10: R3 | M10: HIGH | N10: LOW | O10: OI | P10: % Change in OI
A11: 1 | B11: Index | C11: NIFTY | D11: 2022-04-28 | E11: 16969.35 | F11: 17042.22 | G11: 16770.43 | H11: 16571.52 | I11: 16299.73 | J11: 17241.13 | K11: 17512.92 | L11: 17711.83 | M11: 17314 | N11: 16843.3 | O11: 12147000 | P11: -0.84%
A12: 2 | B12: Index | C12: BANKNIFTY | D12: 2022-04-28 | E12: 36403.20 | F12: 36534.23 | G12: 35839.12 | H12: 35275.03 | I12: 34579.92 | J12: 37098.32 | K12: 37793.43 | L12: 38357.52 | M12: 37229.35 | N12: 35970.15 | O12: 2757550 | P12: 5.00%
A13: 3 | B13: Index | C13: FINNIFTY | D13: 2022-04-26 | E13: 16728.40 | F13: 16778.48 | G13: 16491.97 | H13: 16255.53 | I13: 15969.02 | J13: 17014.92 | K13: 17301.43 | L13: 17537.87 | M13: 17065 | N13: 16542.05 | O13: 2680 | P13: 13.56%
A14: 4 | B14: Index | C14: MIDCPNIFTY | D14: 2022-04-26 | E14: 7268.25 | F14: 7321.07 | G14: 7172.23 | H14: 7076.22 | I14: 6927.38 | J14: 7417.08 | K14: 7565.92 | L14: 7661.93 | M14: 7469.9 | N14: 7225.05 | O14: 1575 | P14: -22.22%
A15: 5 | B15: Chemical | C15: AARTIIND | D15: 2022-04-28 | E15: 936.25 | F15: 939.72 | G15: 922.43 | H15: 908.62 | I15: 891.33 | J15: 953.53 | K15: 970.82 | L15: 984.63 | M15: 957 | N15: 925.9 | O15: 2015350 | P15: -0.67%
A16: 6 | B16: Capital_Goods | C16: ABB | D16: 2022-04-28 | E16: 2152.40 | F16: 2162.60 | G16: 2112.20 | H16: 2072.00 | I16: 2021.60 | J16: 2202.80 | K16: 2253.20 | L16: 2293.40 | M16: 2213 | N16: 2122.4 | O16: 256750 | P16: -5.61%
A17: 7 | B17: Pharma | C17: ABBOTINDIA | D17: 2022-04-28 | E17: 16960.40 | F17: 17092.28 | G17: 16679.92 | H17: 16399.43 | I17: 15987.07 | J17: 17372.77 | K17: 17785.13 | L17: 18065.62 | M17: 17504.65 | N17: 16811.8 | O17: 35125 | P17: 2.70%
A18: 8 | B18: Others | C18: ABCAPITAL | D18: 2022-04-28 | E18: 109.65 | F18: 110.97 | G18: 106.23 | H18: 102.82 | I18: 98.08 | J18: 114.38 | K18: 119.12 | L18: 122.53 | M18: 115.7 | N18: 107.55 | O18: 21617200 | P18: -4.34%
A19: 9 | B19: Textile | C19: ABFRL | D19: 2022-04-28 | E19: 291.25 | F19: 291.87 | G19: 282.83 | H19: 274.42 | I19: 265.38 | J19: 300.28 | K19: 309.32 | L19: 317.73 | M19: 300.9 | N19: 283.45 | O19: 11957400 | P19: 0.59%
A20: 10 | B20: Cement | C20: ACC | D20: 2022-04-28 | E20: 2053.90 | F20: 2085.60 | G20: 1993.25 | H20: 1932.60 | I20: 1840.25 | J20: 2146.25 | K20: 2238.60 | L20: 2299.25 | M20: 2177.95 | N20: 2024.95 | O20: 3245000 | P20: 2.15%
A21: 11 | B21: Others | C21: ADANIENT | D21: 2022-04-28 | E21: 2166.65 | F21: 2188.55 | G21: 2118.15 | H21: 2069.65 | I21: 1999.25 | J21: 2237.05 | K21: 2307.45 | L21: 2355.95 | M21: 2258.95 | N21: 2140.05 | O21: 19030000 | P21: -0.77%
A22: 12 | B22: Others | C22: ADANIPORTS | D22: 2022-04-28 | E22: 819.55 | F22: 826.58 | G22: 801.17 | H22: 782.78 | I22: 757.37 | J22: 844.97 | K22: 870.38 | L22: 888.77 | M22: 852 | N22: 808.2 | O22: 76706250 | P22: 0.22%
A23: 13 | B23: Pharma | C23: ALKEM | D23: 2022-04-28 | E23: 3378.35 | F23: 3423.63 | G23: 3324.72 | H23: 3271.08 | I23: 3172.17 | J23: 3477.27 | K23: 3576.18 | L23: 3629.82 | M23: 3522.55 | N23: 3370 | O23: 194200 | P23: -8.83%
A24: 14 | B24: Automobile | C24: AMARAJABAT | D24: 2022-04-28 | E24: 560.25 | F24: 566.38 | G24: 547.82 | H24: 535.38 | I24: 516.82 | J24: 578.82 | K24: 597.38 | L24: 609.82 | M24: 584.95 | N24: 553.95 | O24: 7124000 | P24: -0.89%
A25: 15 | B25: Cement | C25: AMBUJACEM | D25: 2022-04-28 | E25: 354.75 | F25: 359.23 | G25: 347.67 | H25: 340.58 | I25: 329.02 | J25: 366.32 | K25: 377.88 | L25: 384.97 | M25: 370.8 | N25: 352.15 | O25: 29013000 | P25: -3.86%
A26: 16 | B26: Pharma | C26: APLLTD | D26: 2022-04-28 | E26: 749.15 | F26: 756.13 | G26: 738.72 | H26: 728.28 | I26: 710.87 | J26: 766.57 | K26: 783.98 | L26: 794.42 | M26: 773.55 | N26: 745.7 | O26: 1815800 | P26: 4.43%
A27: 17 | B27: Others | C27: APOLLOHOSP | D27: 2022-04-28 | E27: 4811.90 | F27: 4752.57 | G27: 4636.13 | H27: 4460.37 | I27: 4343.93 | J27: 4928.33 | K27: 5044.77 | L27: 5220.53 | M27: 4869 | N27: 4576.8 | O27: 1768625 | P27: -4.50%
A28: 18 | B28: Automobile | C28: APOLLOTYRE | D28: 2022-04-28 | E28: 189.05 | F28: 190.07 | G28: 185.93 | H28: 182.82 | I28: 178.68 | J28: 193.18 | K28: 197.32 | L28: 200.43 | M28: 194.2 | N28: 186.95 | O28: 13972500 | P28: -0.11%
A29: 19 | B29: Automobile | C29: ASHOKLEY | D29: 2022-04-28 | E29: 124.75 | F29: 126.00 | G29: 122.25 | H29: 119.75 | I29: 116.00 | J29: 128.50 | K29: 132.25 | L29: 134.75 | M29: 129.75 | N29: 123.5 | O29: 30910500 | P29: -2.44%
A30: 20 | B30: FMCG | C30: ASIANPAINT | D30: 2022-04-28 | E30: 2995.30 | F30: 3009.00 | G30: 2956.30 | H30: 2917.30 | I30: 2864.60 | J30: 3048.00 | K30: 3100.70 | L30: 3139.70 | M30: 3061.7 | N30: 2970 | O30: 5168700 | P30: 1.41%
A31: 21 | B31: Others | C31: ASTRAL | D31: 2022-04-28 | E31: 2089.10 | F31: 2095.85 | G31: 2049.75 | H31: 2010.40 | I31: 1964.30 | J31: 2135.20 | K31: 2181.30 | L31: 2220.65 | M31: 2141.95 | N31: 2056.5 | O31: 675950 | P31: -1.13%
A32: 22 | B32: Others | C32: ATUL | D32: 2022-04-28 | E32: 9847.90 | F32: 9886.18 | G32: 9737.37 | H32: 9626.83 | I32: 9478.02 | J32: 9996.72 | K32: 10145.53 | L32: 10256.07 | M32: 10035 | N32: 9775.65 | O32: 145950 | P32: -3.14%
A33: 23 | B33: Banking | C33: AUBANK | D33: 2022-04-28 | E33: 1420.15 | F33: 1428.25 | G33: 1391.85 | H33: 1363.55 | I33: 1327.15 | J33: 1456.55 | K33: 1492.95 | L33: 1521.25 | M33: 1464.65 | N33: 1399.95 | O33: 2586000 | P33: 9.44%
A34: 24 | B34: Pharma | C34: AUROPHARMA | D34: 2022-04-28 | E34: 661.45 | F34: 667.00 | G34: 647.45 | H34: 633.45 | I34: 613.90 | J34: 681.00 | K34: 700.55 | L34: 714.55 | M34: 686.55 | N34: 653 | O34: 15708000 | P34: 1.16%
A35: 25 | B35: Banking | C35: AXISBANK | D35: 2022-04-28 | E35: 796.90 | F35: 799.90 | G35: 782.55 | H35: 768.20 | I35: 750.85 | J35: 814.25 | K35: 831.60 | L35: 845.95 | M35: 817.25 | N35: 785.55 | O35: 46766400 | P35: 4.74%
A36: 26 | B36: Automobile | C36: BAJAJ-AUTO | D36: 2022-04-28 | E36: 3643.05 | F36: 3674.88 | G36: 3590.62 | H36: 3538.18 | I36: 3453.92 | J36: 3727.32 | K36: 3811.58 | L36: 3864.02 | M36: 3759.15 | N36: 3622.45 | O36: 2003250 | P36: 3.43%
A37: 27 | B37: Finance | C37: BAJAJFINSV | D37: 2022-04-28 | E37: 15717.50 | F37: 15808.07 | G37: 15498.73 | H37: 15279.97 | I37: 14970.63 | J37: 16026.83 | K37: 16336.17 | L37: 16554.93 | M37: 16117.4 | N37: 15589.3 | O37: 639600 | P37: -1.17%
A38: 28 | B38: Finance | C38: BAJFINANCE | D38: 2022-04-28 | E38: 7255.40 | F38: 7287.37 | G38: 7126.13 | H38: 6996.87 | I38: 6835.63 | J38: 7416.63 | K38: 7577.87 | L38: 7707.13 | M38: 7448.6 | N38: 7158.1 | O38: 4037375 | P38: -0.90%
A39: 29 | B39: Automobile | C39: BALKRISIND | D39: 2022-04-28 | E39: 2095.30 | F39: 2113.62 | G39: 2054.23 | H39: 2013.17 | I39: 1953.78 | J39: 2154.68 | K39: 2214.07 | L39: 2255.13 | M39: 2173 | N39: 2072.55 | O39: 1216200 | P39: -4.97%
A40: 30 | B40: Others | C40: BALRAMCHIN | D40: 2022-04-28 | E40: 485.65 | F40: 491.20 | G40: 469.50 | H40: 453.35 | I40: 431.65 | J40: 507.35 | K40: 529.05 | L40: 545.20 | M40: 512.9 | N40: 475.05 | O40: 8347200 | P40: -2.45%
A41: 31 | B41: Banking | C41: BANDHANBNK | D41: 2022-04-28 | E41: 323.60 | F41: 325.68 | G41: 315.02 | H41: 306.43 | I41: 295.77 | J41: 334.27 | K41: 344.93 | L41: 353.52 | M41: 336.35 | N41: 317.1 | O41: 37895400 | P41: -0.23%
A42: 32 | B42: Banking | C42: BANKBARODA | D42: 2022-04-28 | E42: 113.55 | F42: 114.27 | G42: 111.33 | H42: 109.12 | I42: 106.18 | J42: 116.48 | K42: 119.42 | L42: 121.63 | M42: 117.2 | N42: 112.05 | O42: 117432900 | P42: -1.09%
A43: 33 | B43: FMCG | C43: BATAINDIA | D43: 2022-04-28 | E43: 1923.30 | F43: 1938.52 | G43: 1883.18 | H43: 1843.07 | I43: 1787.73 | J43: 1978.63 | K43: 2033.97 | L43: 2074.08 | M43: 1993.85 | N43: 1898.4 | O43: 1505900 | P43: -0.76%
A44: 34 | B44: Capital_Goods | C44: BEL | D44: 2022-04-28 | E44: 250.75 | F44: 253.20 | G44: 246.50 | H44: 242.25 | I44: 235.55 | J44: 257.45 | K44: 264.15 | L44: 268.40 | M44: 259.9 | N44: 248.95 | O44: 31399400 | P44: -4.62%
A45: 35 | B45: FMCG | C45: BERGEPAINT | D45: 2022-04-28 | E45: 703.65 | F45: 711.37 | G45: 691.78 | H45: 679.92 | I45: 660.33 | J45: 723.23 | K45: 742.82 | L45: 754.68 | M45: 730.95 | N45: 699.5 | O45: 4062300 | P45: -1.55%
A46: 36 | B46: Automobile | C46: BHARATFORG | D46: 2022-04-28 | E46: 727.55 | F46: 722.17 | G46: 699.33 | H46: 671.12 | I46: 648.28 | J46: 750.38 | K46: 773.22 | L46: 801.43 | M46: 745 | N46: 693.95 | O46: 5555250 | P46: 1.95%
A47: 37 | B47: Telecom | C47: BHARTIARTL | D47: 2022-04-28 | E47: 724.70 | F47: 728.05 | G47: 716.70 | H47: 708.70 | I47: 697.35 | J47: 736.05 | K47: 747.40 | L47: 755.40 | M47: 739.4 | N47: 720.05 | O47: 50935200 | P47: 0.11%
A48: 38 | B48: Capital_Goods | C48: BHEL | D48: 2022-04-28 | E48: 53.60 | F48: 54.17 | G48: 52.23 | H48: 50.87 | I48: 48.93 | J48: 55.53 | K48: 57.47 | L48: 58.83 | M48: 56.1 | N48: 52.8 | O48: 108286500 | P48: -1.42%
A49: 39 | B49: Pharma | C49: BIOCON | D49: 2022-04-28 | E49: 337.70 | F49: 340.07 | G49: 331.43 | H49: 325.17 | I49: 316.53 | J49: 346.33 | K49: 354.97 | L49: 361.23 | M49: 348.7 | N49: 333.8 | O49: 14952300 | P49: -0.21%
A50: 40 | B50: Automobile | C50: BOSCHLTD | D50: 2022-04-28 | E50: 14164.90 | F50: 14320.35 | G50: 13910.75 | H50: 13656.60 | I50: 13247.00 | J50: 14574.50 | K50: 14984.10 | L50: 15238.25 | M50: 14729.95 | N50: 14066.2 | O50: 152350 | P50: -1.14%
A51: 41 | B51: Oil_Gas | C51: BPCL | D51: 2022-04-28 | E51: 376.50 | F51: 378.32 | G51: 371.38 | H51: 366.27 | I51: 359.33 | J51: 383.43 | K51: 390.37 | L51: 395.48 | M51: 385.25 | N51: 373.2 | O51: 19168200 | P51: 4.50%
A52: 42 | B52: FMCG | C52: BRITANNIA | D52: 2022-04-28 | E52: 3266.55 | F52: 3300.67 | G52: 3206.08 | H52: 3145.62 | I52: 3051.03 | J52: 3361.13 | K52: 3455.72 | L52: 3516.18 | M52: 3395.25 | N52: 3240.2 | O52: 1378000 | P52: -1.63%
A53: 43 | B53: Technology | C53: BSOFT | D53: 2022-04-28 | E53: 423.50 | F53: 425.80 | G53: 410.25 | H53: 397.00 | I53: 381.45 | J53: 439.05 | K53: 454.60 | L53: 467.85 | M53: 441.35 | N53: 412.55 | O53: 4832100 | P53: -3.55%
A54: 44 | B54: Banking | C54: CANBK | D54: 2022-04-28 | E54: 235.55 | F54: 237.02 | G54: 230.08 | H54: 224.62 | I54: 217.68 | J54: 242.48 | K54: 249.42 | L54: 254.88 | M54: 243.95 | N54: 231.55 | O54: 43659000 | P54: -1.33%
A55: 45 | B55: Finance | C55: CANFINHOME | D55: 2022-04-28 | E55: 620.20 | F55: 626.18 | G55: 609.62 | H55: 599.03 | I55: 582.47 | J55: 636.77 | K55: 653.33 | L55: 663.92 | M55: 642.75 | N55: 615.6 | O55: 3354000 | P55: -5.05%
A56: 46 | B56: Others | C56: CHAMBLFERT | D56: 2022-04-28 | E56: 456.05 | F56: 471.48 | G56: 426.57 | H56: 397.08 | I56: 352.17 | J56: 500.97 | K56: 545.88 | L56: 575.37 | M56: 516.4 | N56: 442 | O56: 3504000 | P56: 5.23%
A57: 47 | B57: Finance | C57: CHOLAFIN | D57: 2022-04-28 | E57: 736.75 | F57: 742.68 | G57: 723.37 | H57: 709.98 | I57: 690.67 | J57: 756.07 | K57: 775.38 | L57: 788.77 | M57: 762 | N57: 729.3 | O57: 8875000 | P57: -0.07%
A58: 48 | B58: Pharma | C58: CIPLA | D58: 2022-04-28 | E58: 1001.20 | F58: 1008.70 | G58: 975.90 | H58: 950.60 | I58: 917.80 | J58: 1034.00 | K58: 1066.80 | L58: 1092.10 | M58: 1041.5 | N58: 983.4 | O58: 8517600 | P58: 2.10%
A59: 49 | B59: Others | C59: COALINDIA | D59: 2022-04-28 | E59: 198.20 | F59: 197.85 | G59: 191.65 | H59: 185.10 | I59: 178.90 | J59: 204.40 | K59: 210.60 | L59: 217.15 | M59: 204.05 | N59: 191.3 | O59: 46359600 | P59: 11.30%
A60: 50 | B60: Technology | C60: COFORGE | D60: 2022-04-28 | E60: 4019.00 | F60: 4054.03 | G60: 3939.22 | H60: 3859.43 | I60: 3744.62 | J60: 4133.82 | K60: 4248.63 | L60: 4328.42 | M60: 4168.85 | N60: 3974.25 | O60: 943700 | P60: -5.59%
A61: 51 | B61: FMCG | C61: COLPAL | D61: 2022-04-28 | E61: 1502.70 | F61: 1522.15 | G61: 1468.50 | H61: 1434.30 | I61: 1380.65 | J61: 1556.35 | K61: 1610.00 | L61: 1644.20 | M61: 1575.8 | N61: 1487.95 | O61: 2379650 | P61: 1.55%
A62: 52 | B62: Others | C62: CONCOR | D62: 2022-04-28 | E62: 655.90 | F62: 663.33 | G62: 640.92 | H62: 625.93 | I62: 603.52 | J62: 678.32 | K62: 700.73 | L62: 715.72 | M62: 685.75 | N62: 648.35 | O62: 5983200 | P62: -0.52%
A63: 53 | B63: Others | C63: COROMANDEL | D63: 2022-04-28 | E63: 834.50 | F63: 840.83 | G63: 813.67 | H63: 792.83 | I63: 765.67 | J63: 861.67 | K63: 888.83 | L63: 909.67 | M63: 868 | N63: 820 | O63: 1333750 | P63: -3.74%
A64: 54 | B64: Capital_Goods | C64: CROMPTON | D64: 2022-04-28 | E64: 374.15 | F64: 376.17 | G64: 368.33 | H64: 362.52 | I64: 354.68 | J64: 381.98 | K64: 389.82 | L64: 395.63 | M64: 384 | N64: 370.35 | O64: 4937900 | P64: 0.49%
A65: 55 | B65: Banking | C65: CUB | D65: 2022-04-28 | E65: 132.55 | F65: 134.75 | G65: 128.95 | H65: 125.35 | I65: 119.55 | J65: 138.35 | K65: 144.15 | L65: 147.75 | M65: 140.55 | N65: 131.15 | O65: 12821400 | P65: -1.13%
A66: 56 | B66: Capital_Goods | C66: CUMMINSIND | D66: 2022-04-28 | E66: 1071.60 | F66: 1079.53 | G66: 1057.62 | H66: 1043.63 | I66: 1021.72 | J66: 1093.52 | K66: 1115.43 | L66: 1129.42 | M66: 1101.45 | N66: 1065.55 | O66: 1850400 | P66: 2.80%
A67: 57 | B67: FMCG | C67: DABUR | D67: 2022-04-28 | E67: 549.85 | F67: 555.38 | G67: 540.27 | H67: 530.68 | I67: 515.57 | J67: 564.97 | K67: 580.08 | L67: 589.67 | M67: 570.5 | N67: 545.8 | O67: 11148750 | P67: -3.11%
A68: 58 | B68: Cement | C68: DALBHARAT | D68: 2022-04-28 | E68: 1568.25 | F68: 1578.75 | G68: 1529.50 | H68: 1490.75 | I68: 1441.50 | J68: 1617.50 | K68: 1666.75 | L68: 1705.50 | M68: 1628 | N68: 1540 | O68: 1222250 | P68: -2.80%
A69: 59 | B69: Chemical | C69: DEEPAKNTR | D69: 2022-04-28 | E69: 2212.45 | F69: 2233.88 | G69: 2163.22 | H69: 2113.98 | I69: 2043.32 | J69: 2283.12 | K69: 2353.78 | L69: 2403.02 | M69: 2304.55 | N69: 2184.65 | O69: 1842250 | P69: -1.14%
A70: 60 | B70: Others | C70: DELTACORP | D70: 2022-04-28 | E70: 295.75 | F70: 298.55 | G70: 288.30 | H70: 280.85 | I70: 270.60 | J70: 306.00 | K70: 316.25 | L70: 323.70 | M70: 308.8 | N70: 291.1 | O70: 13330800 | P70: -2.00%
A71: 61 | B71: Pharma | C71: DIVISLAB | D71: 2022-04-28 | E71: 4417.65 | F71: 4453.77 | G71: 4328.63 | H71: 4239.62 | I71: 4114.48 | J71: 4542.78 | K71: 4667.92 | L71: 4756.93 | M71: 4578.9 | N71: 4364.75 | O71: 2170100 | P71: 1.60%
A72: 62 | B72: Others | C72: DIXON | D72: 2022-04-28 | E72: 4181.55 | F72: 4218.57 | G72: 4085.63 | H72: 3989.72 | I72: 3856.78 | J72: 4314.48 | K72: 4447.42 | L72: 4543.33 | M72: 4351.5 | N72: 4122.65 | O72: 681125 | P72: 2.93%
A73: 63 | B73: Realty | C73: DLF | D73: 2022-04-28 | E73: 378.55 | F73: 381.48 | G73: 370.17 | H73: 361.78 | I73: 350.47 | J73: 389.87 | K73: 401.18 | L73: 409.57 | M73: 392.8 | N73: 373.1 | O73: 39581850 | P73: -0.56%
A74: 64 | B74: Pharma | C74: DRREDDY | D74: 2022-04-28 | E74: 4222.60 | F74: 4251.07 | G74: 4174.53 | H74: 4126.47 | I74: 4049.93 | J74: 4299.13 | K74: 4375.67 | L74: 4423.73 | M74: 4327.6 | N74: 4203 | O74: 2804750 | P74: -0.99%
A75: 65 | B75: Automobile | C75: EICHERMOT | D75: 2022-04-28 | E75: 2458.05 | F75: 2487.48 | G75: 2395.67 | H75: 2333.28 | I75: 2241.47 | J75: 2549.87 | K75: 2641.68 | L75: 2704.07 | M75: 2579.3 | N75: 2425.1 | O75: 3428250 | P75: 1.20%
A76: 66 | B76: Automobile | C76: ESCORTS | D76: 2022-04-28 | E76: 1547.00 | F76: 1548.40 | G76: 1528.60 | H76: 1510.20 | I76: 1490.40 | J76: 1566.80 | K76: 1586.60 | L76: 1605.00 | M76: 1568.2 | N76: 1530 | O76: 4096950 | P76: -4.71%
A77: 67 | B77: Automobile | C77: EXIDEIND | D77: 2022-04-28 | E77: 152.85 | F77: 153.70 | G77: 150.25 | H77: 147.65 | I77: 144.20 | J77: 156.30 | K77: 159.75 | L77: 162.35 | M77: 157.15 | N77: 151.1 | O77: 22593600 | P77: -0.43%
A78: 68 | B78: Banking | C78: FEDERALBNK | D78: 2022-04-28 | E78: 96.15 | F78: 96.63 | G78: 94.47 | H78: 92.78 | I78: 90.62 | J78: 98.32 | K78: 100.48 | L78: 102.17 | M78: 98.8 | N78: 94.95 | O78: 68040000 | P78: -0.72%
A79: 69 | B79: Technology | C79: FSL | D79: 2022-04-28 | E79: 124.90 | F79: 125.73 | G79: 121.57 | H79: 118.23 | I79: 114.07 | J79: 129.07 | K79: 133.23 | L79: 136.57 | M79: 129.9 | N79: 122.4 | O79: 13626600 | P79: -2.44%
A80: 70 | B80: Oil_Gas | C80: GAIL | D80: 2022-04-28 | E80: 169.55 | F80: 170.30 | G80: 167.35 | H80: 165.15 | I80: 162.20 | J80: 172.50 | K80: 175.45 | L80: 177.65 | M80: 173.25 | N80: 168.1 | O80: 30805000 | P80: 2.12%
A81: 71 | B81: Pharma | C81: GLENMARK | D81: 2022-04-28 | E81: 460.20 | F81: 463.77 | G81: 452.53 | H81: 444.87 | I81: 433.63 | J81: 471.43 | K81: 482.67 | L81: 490.33 | M81: 475 | N81: 456.1 | O81: 6227250 | P81: -1.04%
A82: 72 | B82: Infrastructure | C82: GMRINFRA | D82: 2022-04-28 | E82: 37.05 | F82: 37.45 | G82: 36.00 | H82: 34.95 | I82: 33.50 | J82: 38.50 | K82: 39.95 | L82: 41.00 | M82: 38.9 | N82: 36.4 | O82: 112927500 | P82: 0.42%
A83: 73 | B83: Others | C83: GNFC | D83: 2022-04-28 | E83: 855.40 | F83: 867.12 | G83: 828.23 | H83: 801.07 | I83: 762.18 | J83: 894.28 | K83: 933.17 | L83: 960.33 | M83: 906 | N83: 839.95 | O83: 3203200 | P83: -5.88%
A84: 74 | B84: FMCG | C84: GODREJCP | D84: 2022-04-28 | E84: 776.20 | F84: 783.30 | G84: 760.60 | H84: 745.00 | I84: 722.30 | J84: 798.90 | K84: 821.60 | L84: 837.20 | M84: 806 | N84: 767.7 | O84: 5853500 | P84: -3.70%
A85: 75 | B85: Realty | C85: GODREJPROP | D85: 2022-04-28 | E85: 1565.20 | F85: 1579.37 | G85: 1526.83 | H85: 1488.47 | I85: 1435.93 | J85: 1617.73 | K85: 1670.27 | L85: 1708.63 | M85: 1631.9 | N85: 1541 | O85: 4222725 | P85: -0.11%
A86: 76 | B86: Pharma | C86: GRANULES | D86: 2022-04-28 | E86: 290.45 | F86: 292.38 | G86: 283.87 | H86: 277.28 | I86: 268.77 | J86: 298.97 | K86: 307.48 | L86: 314.07 | M86: 300.9 | N86: 285.8 | O86: 11603300 | P86: -0.54%
A87: 77 | B87: Cement | C87: GRASIM | D87: 2022-04-28 | E87: 1717.45 | F87: 1729.87 | G87: 1685.53 | H87: 1653.62 | I87: 1609.28 | J87: 1761.78 | K87: 1806.12 | L87: 1838.03 | M87: 1774.2 | N87: 1697.95 | O87: 9584550 | P87: -1.23%
A88: 78 | B88: Oil_Gas | C88: GSPL | D88: 2022-04-28 | E88: 277.20 | F88: 278.82 | G88: 272.63 | H88: 268.07 | I88: 261.88 | J88: 283.38 | K88: 289.57 | L88: 294.13 | M88: 285 | N88: 274.25 | O88: 2720000 | P88: 6.88%
A89: 79 | B89: Oil_Gas | C89: GUJGASLTD | D89: 2022-04-28 | E89: 511.90 | F89: 517.97 | G89: 499.58 | H89: 487.27 | I89: 468.88 | J89: 530.28 | K89: 548.67 | L89: 560.98 | M89: 536.35 | N89: 505.65 | O89: 3357500 | P89: -5.05%
A90: 80 | B90: Others | C90: HAL | D90: 2022-04-28 | E90: 1688.15 | F90: 1705.02 | G90: 1651.23 | H90: 1614.32 | I90: 1560.53 | J90: 1741.93 | K90: 1795.72 | L90: 1832.63 | M90: 1758.8 | N90: 1668.1 | O90: 2498025 | P90: -8.48%
A91: 81 | B91: Capital_Goods | C91: HAVELLS | D91: 2022-04-28 | E91: 1284.80 | F91: 1288.22 | G91: 1266.98 | H91: 1249.17 | I91: 1227.93 | J91: 1306.03 | K91: 1327.27 | L91: 1345.08 | M91: 1309.45 | N91: 1270.4 | O91: 5042500 | P91: 2.19%
A92: 82 | B92: Technology | C92: HCLTECH | D92: 2022-04-28 | E92: 1061.55 | F92: 1074.05 | G92: 1039.15 | H92: 1016.75 | I92: 981.85 | J92: 1096.45 | K92: 1131.35 | L92: 1153.75 | M92: 1108.95 | N92: 1051.65 | O92: 22906100 | P92: -2.15%
A93: 83 | B93: Finance | C93: HDFC | D93: 2022-04-28 | E93: 2147.50 | F93: 2179.25 | G93: 2088.65 | H93: 2029.80 | I93: 1939.20 | J93: 2238.10 | K93: 2328.70 | L93: 2387.55 | M93: 2269.85 | N93: 2120.4 | O93: 28716600 | P93: 19.22%
A94: 84 | B94: Finance | C94: HDFCAMC | D94: 2022-04-28 | E94: 2097.35 | F94: 2121.80 | G94: 2041.60 | H94: 1985.85 | I94: 1905.65 | J94: 2177.55 | K94: 2257.75 | L94: 2313.50 | M94: 2202 | N94: 2066.05 | O94: 3260800 | P94: 3.72%
A95: 85 | B95: Banking | C95: HDFCBANK | D95: 2022-04-28 | E95: 1348.15 | F95: 1359.03 | G95: 1322.07 | H95: 1295.98 | I95: 1259.02 | J95: 1385.12 | K95: 1422.08 | L95: 1448.17 | M95: 1396 | N95: 1332.95 | O95: 80364350 | P95: 21.10%
A96: 86 | B96: Finance | C96: HDFCLIFE | D96: 2022-04-28 | E96: 548.05 | F96: 556.83 | G96: 534.22 | H96: 520.38 | I96: 497.77 | J96: 570.67 | K96: 593.28 | L96: 607.12 | M96: 579.45 | N96: 543 | O96: 26253700 | P96: 2.75%
A97: 87 | B97: Automobile | C97: HEROMOTOCO | D97: 2022-04-28 | E97: 2271.20 | F97: 2284.45 | G97: 2236.90 | H97: 2202.60 | I97: 2155.05 | J97: 2318.75 | K97: 2366.30 | L97: 2400.60 | M97: 2332 | N97: 2250.15 | O97: 3802800 | P97: -2.81%
A98: 88 | B98: Metals | C98: HINDALCO | D98: 2022-04-28 | E98: 542.30 | F98: 546.30 | G98: 534.10 | H98: 525.90 | I98: 513.70 | J98: 554.50 | K98: 566.70 | L98: 574.90 | M98: 558.5 | N98: 538.1 | O98: 27348000 | P98: 1.56%
A99: 89 | B99: Metals | C99: HINDCOPPER | D99: 2022-04-28 | E99: 124.60 | F99: 125.45 | G99: 121.00 | H99: 117.40 | I99: 112.95 | J99: 129.05 | K99: 133.50 | L99: 137.10 | M99: 129.9 | N99: 121.85 | O99: 17698800 | P99: 0.49%
A100: 90 | B100: Oil_Gas | C100: HINDPETRO | D100: 2022-04-28 | E100: 293.20 | F100: 292.17 | G100: 285.78 | H100: 278.37 | I100: 271.98 | J100: 299.58 | K100: 305.97 | L100: 313.38 | M100: 298.55 | N100: 284.75 | O100: 13551300 | P100: -5.57%
A101: 91 | B101: FMCG | C101: HINDUNILVR | D101: 2022-04-28 | E101: 2114.40 | F101: 2140.78 | G101: 2075.62 | H101: 2036.83 | I101: 1971.67 | J101: 2179.57 | K101: 2244.73 | L101: 2283.52 | M101: 2205.95 | N101: 2102 | O101: 10884900 | P101: -2.32%
A102: 92 | B102: Others | C102: HONAUT | D102: 2022-04-28 | E102: 40122.35 | F102: 40148.27 | G102: 39696.53 | H102: 39270.72 | I102: 38818.98 | J102: 40574.08 | K102: 41025.82 | L102: 41451.63 | M102: 40600 | N102: 39722.45 | O102: 6765 | P102: 5.13%
A103: 93 | B103: Finance | C103: IBULHSGFIN | D103: 2022-04-28 | E103: 156.55 | F103: 158.37 | G103: 152.18 | H103: 147.82 | I103: 141.63 | J103: 162.73 | K103: 168.92 | L103: 173.28 | M103: 164.55 | N103: 154 | O103: 41112200 | P103: -2.91%
A104: 94 | B104: Banking | C104: ICICIBANK | D104: 2022-04-28 | E104: 764.75 | F104: 766.48 | G104: 754.77 | H104: 744.78 | I104: 733.07 | J104: 776.47 | K104: 788.18 | L104: 798.17 | M104: 778.2 | N104: 756.5 | O104: 104373500 | P104: 1.39%
A105: 95 | B105: Finance | C105: ICICIGI | D105: 2022-04-28 | E105: 1343.25 | F105: 1354.23 | G105: 1323.42 | H105: 1303.58 | I105: 1272.77 | J105: 1374.07 | K105: 1404.88 | L105: 1424.72 | M105: 1385.05 | N105: 1334.4 | O105: 2820300 | P105: -2.14%
A106: 96 | B106: Finance | C106: ICICIPRULI | D106: 2022-04-28 | E106: 516.10 | F106: 526.47 | G106: 499.98 | H106: 483.87 | I106: 457.38 | J106: 542.58 | K106: 569.07 | L106: 585.18 | M106: 552.95 | N106: 510.35 | O106: 5897250 | P106: -5.23%
A107: 97 | B107: Telecom | C107: IDEA | D107: 2022-04-28 | E107: 9.95 | F107: 10.00 | G107: 9.75 | H107: 9.55 | I107: 9.30 | J107: 10.20 | K107: 10.45 | L107: 10.65 | M107: 10.25 | N107: 9.8 | O107: 771120000 | P107: 0.36%
A108: 98 | B108: Finance | C108: IDFC | D108: 2022-04-28 | E108: 58.35 | F108: 58.70 | G108: 57.20 | H108: 56.05 | I108: 54.55 | J108: 59.85 | K108: 61.35 | L108: 62.50 | M108: 60.2 | N108: 57.55 | O108: 114380000 | P108: 0.09%
A109: 99 | B109: Banking | C109: IDFCFIRSTB | D109: 2022-04-28 | E109: 40.05 | F109: 40.28 | G109: 39.32 | H109: 38.58 | I109: 37.62 | J109: 41.02 | K109: 41.98 | L109: 42.72 | M109: 41.25 | N109: 39.55 | O109: 241158600 | P109: 1.29%
A110: 100 | B110: Others | C110: IEX | D110: 2022-04-28 | E110: 228.05 | F110: 229.95 | G110: 223.10 | H110: 218.15 | I110: 211.30 | J110: 234.90 | K110: 241.75 | L110: 246.70 | M110: 236.8 | N110: 225 | O110: 40762500 | P110: 0.54%
A111: 101 | B111: Oil_Gas | C111: IGL | D111: 2022-04-28 | E111: 379.25 | F111: 386.58 | G111: 368.47 | H111: 357.68 | I111: 339.57 | J111: 397.37 | K111: 415.48 | L111: 426.27 | M111: 404.7 | N111: 375.8 | O111: 16486250 | P111: -1.87%
A112: 102 | B112: Infrastructure | C112: INDHOTEL | D112: 2022-04-28 | E112: 244.60 | F112: 246.22 | G112: 238.53 | H112: 232.47 | I112: 224.78 | J112: 252.28 | K112: 259.97 | L112: 266.03 | M112: 253.9 | N112: 240.15 | O112: 23878614 | P112: -0.35%
A113: 103 | B113: Cement | C113: INDIACEM | D113: 2022-04-28 | E113: 207.60 | F113: 210.60 | G113: 201.20 | H113: 194.80 | I113: 185.40 | J113: 217.00 | K113: 226.40 | L113: 232.80 | M113: 220 | N113: 204.2 | O113: 14734900 | P113: -0.76%
A114: 104 | B114: Others | C114: INDIAMART | D114: 2022-04-28 | E114: 4687.80 | F114: 4747.32 | G114: 4529.68 | H114: 4371.57 | I114: 4153.93 | J114: 4905.43 | K114: 5123.07 | L114: 5281.18 | M114: 4964.95 | N114: 4589.2 | O114: 331950 | P114: 0.16%
A115: 105 | B115: Others | C115: INDIGO | D115: 2022-04-28 | E115: 1867.70 | F115: 1871.73 | G115: 1813.97 | H115: 1760.23 | I115: 1702.47 | J115: 1925.47 | K115: 1983.23 | L115: 2036.97 | M115: 1929.5 | N115: 1818 | O115: 2613000 | P115: -3.83%
A116: 106 | B116: Banking | C116: INDUSINDBK | D116: 2022-04-28 | E116: 963.20 | F116: 969.00 | G116: 946.40 | H116: 929.60 | I116: 907.00 | J116: 985.80 | K116: 1008.40 | L116: 1025.20 | M116: 991.6 | N116: 952.2 | O116: 25418700 | P116: 0.34%
A117: 107 | B117: Telecom | C117: INDUSTOWER | D117: 2022-04-28 | E117: 213.90 | F117: 215.65 | G117: 210.40 | H117: 206.90 | I117: 201.65 | J117: 219.15 | K117: 224.40 | L117: 227.90 | M117: 220.9 | N117: 212.15 | O117: 17077200 | P117: 0.36%
A118: 108 | B118: Technology | C118: INFY | D118: 2022-04-28 | E118: 1566.05 | F118: 1585.30 | G118: 1534.60 | H118: 1503.15 | I118: 1452.45 | J118: 1616.75 | K118: 1667.45 | L118: 1698.90 | M118: 1636 | N118: 1553.85 | O118: 42295500 | P118: 4.06%
A119: 109 | B119: Technology | C119: INTELLECT | D119: 2022-04-28 | E119: 832.75 | F119: 846.18 | G119: 807.72 | H119: 782.68 | I119: 744.22 | J119: 871.22 | K119: 909.68 | L119: 934.72 | M119: 884.65 | N119: 821.15 | O119: 1827000 | P119: 4.86%
A120: 110 | B120: Oil_Gas | C120: IOC | D120: 2022-04-28 | E120: 130.55 | F120: 130.67 | G120: 127.93 | H120: 125.32 | I120: 122.58 | J120: 133.28 | K120: 136.02 | L120: 138.63 | M120: 133.4 | N120: 128.05 | O120: 58519500 | P120: 4.14%
A121: 111 | B121: Pharma | C121: IPCALAB | D121: 2022-04-28 | E121: 1014.40 | F121: 1017.10 | G121: 1005.30 | H121: 996.20 | I121: 984.40 | J121: 1026.20 | K121: 1038.00 | L121: 1047.10 | M121: 1028.9 | N121: 1008 | O121: 735750 | P121: 3.15%
A122: 112 | B122: Others | C122: IRCTC | D122: 2022-04-28 | E122: 739.85 | F122: 747.50 | G122: 723.90 | H122: 707.95 | I122: 684.35 | J122: 763.45 | K122: 787.05 | L122: 803.00 | M122: 771.1 | N122: 731.55 | O122: 14954625 | P122: 5.59%
A123: 113 | B123: FMCG | C123: ITC | D123: 2022-04-28 | E123: 262.00 | F123: 264.77 | G123: 256.53 | H123: 251.07 | I123: 242.83 | J123: 270.23 | K123: 278.47 | L123: 283.93 | M123: 273 | N123: 259.3 | O123: 123875200 | P123: -2.92%
A124: 114 | B124: Metals | C124: JINDALSTEL | D124: 2022-04-28 | E124: 553.45 | F124: 556.97 | G124: 542.08 | H124: 530.72 | I124: 515.83 | J124: 568.33 | K124: 583.22 | L124: 594.58 | M124: 571.85 | N124: 545.6 | O124: 31250000 | P124: 0.93%
A125: 115 | B125: Cement | C125: JKCEMENT | D125: 2022-04-28 | E125: 2719.05 | F125: 2749.02 | G125: 2655.08 | H125: 2591.12 | I125: 2497.18 | J125: 2812.98 | K125: 2906.92 | L125: 2970.88 | M125: 2842.95 | N125: 2685.05 | O125: 256025 | P125: -7.11%
A126: 116 | B126: Metals | C126: JSWSTEEL | D126: 2022-04-28 | E126: 747.90 | F126: 759.07 | G126: 727.58 | H126: 707.27 | I126: 675.78 | J126: 779.38 | K126: 810.87 | L126: 831.18 | M126: 790.55 | N126: 738.75 | O126: 29920050 | P126: 1.12%
A127: 117 | B127: Others | C127: JUBLFOOD | D127: 2022-04-28 | E127: 544.20 | F127: 551.23 | G127: 520.97 | H127: 497.73 | I127: 467.47 | J127: 574.47 | K127: 604.73 | L127: 627.97 | M127: 581.5 | N127: 528 | O127: 10361875 | P127: 349.73%
A128: 118 | B128: Banking | C128: KOTAKBANK | D128: 2022-04-28 | E128: 1709.90 | F128: 1722.05 | G128: 1675.85 | H128: 1641.80 | I128: 1595.60 | J128: 1756.10 | K128: 1802.30 | L128: 1836.35 | M128: 1768.25 | N128: 1688 | O128: 17876800 | P128: -0.22%
A129: 119 | B129: Finance | C129: L&TFH | D129: 2022-04-28 | E129: 80.90 | F129: 81.47 | G129: 79.53 | H129: 78.17 | I129: 76.23 | J129: 82.83 | K129: 84.77 | L129: 86.13 | M129: 83.4 | N129: 80.1 | O129: 46913468 | P129: -0.13%
A130: 120 | B130: Others | C130: LALPATHLAB | D130: 2022-04-28 | E130: 2673.50 | F130: 2699.80 | G130: 2606.60 | H130: 2539.70 | I130: 2446.50 | J130: 2766.70 | K130: 2859.90 | L130: 2926.80 | M130: 2793 | N130: 2632.9 | O130: 784250 | P130: -4.11%
A131: 121 | B131: Pharma | C131: LAURUSLABS | D131: 2022-04-28 | E131: 596.95 | F131: 603.85 | G131: 578.80 | H131: 560.65 | I131: 535.60 | J131: 622.00 | K131: 647.05 | L131: 665.20 | M131: 628.9 | N131: 585.7 | O131: 7731000 | P131: 4.58%
A132: 122 | B132: Finance | C132: LICHSGFIN | D132: 2022-04-28 | E132: 377.75 | F132: 379.50 | G132: 370.25 | H132: 362.75 | I132: 353.50 | J132: 387.00 | K132: 396.25 | L132: 403.75 | M132: 388.75 | N132: 372 | O132: 23780000 | P132: -0.34%
A133: 123 | B133: Capital_Goods | C133: LT | D133: 2022-04-28 | E133: 1706.35 | F133: 1719.60 | G133: 1674.15 | H133: 1641.95 | I133: 1596.50 | J133: 1751.80 | K133: 1797.25 | L133: 1829.45 | M133: 1765.05 | N133: 1687.4 | O133: 13583800 | P133: 4.90%
A134: 124 | B134: Technology | C134: LTI | D134: 2022-04-28 | E134: 5479.90 | F134: 5597.75 | G134: 5268.30 | H134: 5056.70 | I134: 4727.25 | J134: 5809.35 | K134: 6138.80 | L134: 6350.40 | M134: 5927.2 | N134: 5386.15 | O134: 1363500 | P134: -4.72%
A135: 125 | B135: Technology | C135: LTTS | D135: 2022-04-28 | E135: 4206.50 | F135: 4260.43 | G135: 4101.37 | H135: 3996.23 | I135: 3837.17 | J135: 4365.57 | K135: 4524.63 | L135: 4629.77 | M135: 4419.5 | N135: 4155.3 | O135: 1003400 | P135: -2.07%
A136: 126 | B136: Pharma | C136: LUPIN | D136: 2022-04-28 | E136: 769.65 | F136: 772.37 | G136: 761.33 | H136: 753.02 | I136: 741.98 | J136: 780.68 | K136: 791.72 | L136: 800.03 | M136: 783.4 | N136: 764.05 | O136: 8414150 | P136: -4.07%
A137: 127 | B137: Automobile | C137: M&M | D137: 2022-04-28 | E137: 872.05 | F137: 876.07 | G137: 864.33 | H137: 856.62 | I137: 844.88 | J137: 883.78 | K137: 895.52 | L137: 903.23 | M137: 887.8 | N137: 868.35 | O137: 11584300 | P137: 2.86%
A138: 128 | B138: Finance | C138: M&MFIN | D138: 2022-04-28 | E138: 178.90 | F138: 180.07 | G138: 175.63 | H138: 172.37 | I138: 167.93 | J138: 183.33 | K138: 187.77 | L138: 191.03 | M138: 184.5 | N138: 176.8 | O138: 33936000 | P138: -1.61%
A139: 129 | B139: Finance | C139: MANAPPURAM | D139: 2022-04-28 | E139: 118.00 | F139: 119.08 | G139: 113.42 | H139: 108.83 | I139: 103.17 | J139: 123.67 | K139: 129.33 | L139: 133.92 | M139: 124.75 | N139: 114.5 | O139: 34293000 | P139: 2.16%
A140: 130 | B140: FMCG | C140: MARICO | D140: 2022-04-28 | E140: 505.15 | F140: 510.48 | G140: 496.72 | H140: 488.28 | I140: 474.52 | J140: 518.92 | K140: 532.68 | L140: 541.12 | M140: 524.25 | N140: 502.05 | O140: 7567000 | P140: -1.50%
A141: 131 | B141: Automobile | C141: MARUTI | D141: 2022-04-28 | E141: 7454.85 | F141: 7508.88 | G141: 7327.77 | H141: 7200.68 | I141: 7019.57 | J141: 7635.97 | K141: 7817.08 | L141: 7944.17 | M141: 7690 | N141: 7381.8 | O141: 2164200 | P141: -2.86%
A142: 132 | B142: FMCG | C142: MCDOWELL-N | D142: 2022-04-28 | E142: 861.35 | F142: 872.38 | G142: 839.72 | H142: 818.08 | I142: 785.42 | J142: 894.02 | K142: 926.68 | L142: 948.32 | M142: 905.05 | N142: 850.75 | O142: 13557500 | P142: 0.31%
A143: 133 | B143: Others | C143: MCX | D143: 2022-04-28 | E143: 1338.90 | F143: 1350.98 | G143: 1306.97 | H143: 1275.03 | I143: 1231.02 | J143: 1382.92 | K143: 1426.93 | L143: 1458.87 | M143: 1395 | N143: 1319.05 | O143: 2236850 | P143: -1.69%
A144: 134 | B144: Pharma | C144: METROPOLIS | D144: 2022-04-28 | E144: 2389.95 | F144: 2413.55 | G144: 2332.40 | H144: 2274.85 | I144: 2193.70 | J144: 2471.10 | K144: 2552.25 | L144: 2609.80 | M144: 2494.7 | N144: 2356 | O144: 479400 | P144: -0.04%
A145: 135 | B145: Finance | C145: MFSL | D145: 2022-04-28 | E145: 739.70 | F145: 751.63 | G145: 719.47 | H145: 699.23 | I145: 667.07 | J145: 771.87 | K145: 804.03 | L145: 824.27 | M145: 783.8 | N145: 731.4 | O145: 1848600 | P145: -1.32%
A146: 136 | B146: Oil_Gas | C146: MGL | D146: 2022-04-28 | E146: 809.35 | F146: 815.27 | G146: 793.18 | H146: 777.02 | I146: 754.93 | J146: 831.43 | K146: 853.52 | L146: 869.68 | M146: 837.35 | N146: 799.1 | O146: 2930400 | P146: -1.39%
A147: 137 | B147: Technology | C147: MINDTREE | D147: 2022-04-28 | E147: 3642.45 | F147: 3768.33 | G147: 3452.07 | H147: 3261.68 | I147: 2945.42 | J147: 3958.72 | K147: 4274.98 | L147: 4465.37 | M147: 4084.6 | N147: 3577.95 | O147: 3053000 | P147: 0.98%
A148: 138 | B148: Automobile | C148: MOTHERSUMI | D148: 2022-04-28 | E148: 133.95 | F148: 135.93 | G148: 130.62 | H148: 127.28 | I148: 121.97 | J148: 139.27 | K148: 144.58 | L148: 147.92 | M148: 141.25 | N148: 132.6 | O148: 27814500 | P148: 0.54%
A149: 139 | B149: Technology | C149: MPHASIS | D149: 2022-04-28 | E149: 2866.15 | F149: 2895.48 | G149: 2807.17 | H149: 2748.18 | I149: 2659.87 | J149: 2954.47 | K149: 3042.78 | L149: 3101.77 | M149: 2983.8 | N149: 2836.5 | O149: 1700825 | P149: -8.21%
A150: 140 | B150: Automobile | C150: MRF | D150: 2022-04-28 | E150: 65921.60 | F150: 66253.17 | G150: 65056.33 | H150: 64191.07 | I150: 62994.23 | J150: 67118.43 | K150: 68315.27 | L150: 69180.53 | M150: 67450 | N150: 65387.9 | O150: 108480 | P150: 1.11%
A151: 141 | B151: Finance | C151: MUTHOOTFIN | D151: 2022-04-28 | E151: 1283.80 | F151: 1293.90 | G151: 1259.80 | H151: 1235.80 | I151: 1201.70 | J151: 1317.90 | K151: 1352.00 | L151: 1376.00 | M151: 1328 | N151: 1269.9 | O151: 3686625 | P151: 0.60%
A152: 142 | B152: Others | C152: NAM-INDIA | D152: 2022-04-28 | E152: 320.10 | F152: 323.43 | G152: 313.62 | H152: 307.13 | I152: 297.32 | J152: 329.92 | K152: 339.73 | L152: 346.22 | M152: 333.25 | N152: 316.95 | O152: 2820800 | P152: 1.09%
A153: 143 | B153: Metals | C153: NATIONALUM | D153: 2022-04-28 | E153: 119.45 | F153: 120.17 | G153: 116.83 | H153: 114.22 | I153: 110.88 | J153: 122.78 | K153: 126.12 | L153: 128.73 | M153: 123.5 | N153: 117.55 | O153: 84566500 | P153: -3.30%
A154: 144 | B154: Others | C154: NAUKRI | D154: 2022-04-28 | E154: 4624.35 | F154: 4654.77 | G154: 4531.58 | H154: 4438.82 | I154: 4315.63 | J154: 4747.53 | K154: 4870.72 | L154: 4963.48 | M154: 4777.95 | N154: 4562 | O154: 1402750 | P154: -1.82%
A155: 145 | B155: Chemical | C155: NAVINFLUOR | D155: 2022-04-28 | E155: 3908.30 | F155: 3952.32 | G155: 3808.63 | H155: 3708.97 | I155: 3565.28 | J155: 4051.98 | K155: 4195.67 | L155: 4295.33 | M155: 4096 | N155: 3852.65 | O155: 406800 | P155: -1.90%
A156: 146 | B156: Others | C156: NBCC | D156: 2022-04-28 | E156: 38.85 | F156: 39.15 | G156: 37.85 | H156: 36.85 | I156: 35.55 | J156: 40.15 | K156: 41.45 | L156: 42.45 | M156: 40.45 | N156: 38.15 | O156: 29820000 | P156: 1.93%
A157: 147 | B157: FMCG | C157: NESTLEIND | D157: 2022-04-28 | E157: 17937.45 | F157: 18149.53 | G157: 17599.12 | H157: 17260.78 | I157: 16710.37 | J157: 18487.87 | K157: 19038.28 | L157: 19376.62 | M157: 18699.95 | N157: 17811.2 | O157: 295600 | P157: 1.55%
A158: 148 | B158: Metals | C158: NMDC | D158: 2022-04-28 | E158: 169.30 | F158: 170.38 | G158: 166.57 | H158: 163.83 | I158: 160.02 | J158: 173.12 | K158: 176.93 | L158: 179.67 | M158: 174.2 | N158: 167.65 | O158: 60199500 | P158: -0.38%
A159: 149 | B159: Power | C159: NTPC | D159: 2022-04-28 | E159: 160.95 | F159: 162.78 | G159: 157.82 | H159: 154.68 | I159: 149.72 | J159: 165.92 | K159: 170.88 | L159: 174.02 | M159: 167.75 | N159: 159.65 | O159: 81852000 | P159: -0.44%
A160: 150 | B160: Realty | C160: OBEROIRLTY | D160: 2022-04-28 | E160: 964.90 | F160: 971.18 | G160: 936.22 | H160: 907.53 | I160: 872.57 | J160: 999.87 | K160: 1034.83 | L160: 1063.52 | M160: 1006.15 | N160: 942.5 | O160: 4138400 | P160: -3.71%
A161: 151 | B161: Technology | C161: OFSS | D161: 2022-04-28 | E161: 3564.65 | F161: 3580.82 | G161: 3506.23 | H161: 3447.82 | I161: 3373.23 | J161: 3639.23 | K161: 3713.82 | L161: 3772.23 | M161: 3655.4 | N161: 3522.4 | O161: 467750 | P161: -2.14%
A162: 152 | B162: Oil_Gas | C162: ONGC | D162: 2022-04-28 | E162: 177.30 | F162: 177.93 | G162: 175.62 | H162: 173.93 | I162: 171.62 | J162: 179.62 | K162: 181.93 | L162: 183.62 | M162: 180.25 | N162: 176.25 | O162: 66143000 | P162: 12.39%
A163: 153 | B163: Textile | C163: PAGEIND | D163: 2022-04-28 | E163: 45507.85 | F163: 45731.27 | G163: 44787.53 | H163: 44067.22 | I163: 43123.48 | J163: 46451.58 | K163: 47395.32 | L163: 48115.63 | M163: 46675 | N163: 45010.95 | O163: 86370 | P163: 0.59%
A164: 154 | B164: Pharma | C164: PEL | D164: 2022-04-28 | E164: 2226.60 | F164: 2229.82 | G164: 2184.43 | H164: 2142.27 | I164: 2096.88 | J164: 2271.98 | K164: 2317.37 | L164: 2359.53 | M164: 2275.2 | N164: 2187.65 | O164: 3056625 | P164: -2.58%
A165: 155 | B165: Technology | C165: PERSISTENT | D165: 2022-04-28 | E165: 4183.05 | F165: 4227.65 | G165: 4090.45 | H165: 3997.85 | I165: 3860.65 | J165: 4320.25 | K165: 4457.45 | L165: 4550.05 | M165: 4364.85 | N165: 4135.05 | O165: 518250 | P165: 0.73%
A166: 156 | B166: Oil_Gas | C166: PETRONET | D166: 2022-04-28 | E166: 203.20 | F166: 204.35 | G166: 200.70 | H166: 198.20 | I166: 194.55 | J166: 206.85 | K166: 210.50 | L166: 213.00 | M166: 208 | N166: 201.85 | O166: 19512000 | P166: -2.75%
A167: 157 | B167: Finance | C167: PFC | D167: 2022-04-28 | E167: 118.60 | F167: 119.25 | G167: 117.05 | H167: 115.50 | I167: 113.30 | J167: 120.80 | K167: 123.00 | L167: 124.55 | M167: 121.45 | N167: 117.7 | O167: 42494800 | P167: -1.27%
A168: 158 | B168: Pharma | C168: PFIZER | D168: 2022-04-28 | E168: 4443.15 | F168: 4457.17 | G168: 4415.33 | H168: 4387.52 | I168: 4345.68 | J168: 4484.98 | K168: 4526.82 | L168: 4554.63 | M168: 4499 | N168: 4429.35 | O168: 122125 | P168: -9.62%
A169: 159 | B169: FMCG | C169: PIDILITIND | D169: 2022-04-28 | E169: 2327.35 | F169: 2343.17 | G169: 2286.33 | H169: 2245.32 | I169: 2188.48 | J169: 2384.18 | K169: 2441.02 | L169: 2482.03 | M169: 2400 | N169: 2302.15 | O169: 2966500 | P169: -1.21%
A170: 160 | B170: Chemical | C170: PIIND | D170: 2022-04-28 | E170: 2887.95 | F170: 2911.35 | G170: 2842.70 | H170: 2797.45 | I170: 2728.80 | J170: 2956.60 | K170: 3025.25 | L170: 3070.50 | M170: 2980 | N170: 2866.1 | O170: 1569750 | P170: -1.40%
A171: 161 | B171: Banking | C171: PNB | D171: 2022-04-28 | E171: 35.70 | F171: 35.90 | G171: 35.05 | H171: 34.40 | I171: 33.55 | J171: 36.55 | K171: 37.40 | L171: 38.05 | M171: 36.75 | N171: 35.25 | O171: 234144000 | P171: 0.39%
A172: 162 | B172: Others | C172: POLYCAB | D172: 2022-04-28 | E172: 2604.55 | F172: 2619.58 | G172: 2560.82 | H172: 2517.08 | I172: 2458.32 | J172: 2663.32 | K172: 2722.08 | L172: 2765.82 | M172: 2678.35 | N172: 2575.85 | O172: 678000 | P172: -5.32%
A173: 163 | B173: Power | C173: POWERGRID | D173: 2022-04-28 | E173: 228.25 | F173: 229.85 | G173: 225.70 | H173: 223.15 | I173: 219.00 | J173: 232.40 | K173: 236.55 | L173: 239.10 | M173: 234 | N173: 227.3 | O173: 40109493 | P173: 2.73%
A174: 164 | B174: Media | C174: PVR | D174: 2022-04-28 | E174: 1786.65 | F174: 1805.17 | G174: 1745.48 | H174: 1704.32 | I174: 1644.63 | J174: 1846.33 | K174: 1906.02 | L174: 1947.18 | M174: 1864.85 | N174: 1764 | O174: 2602358 | P174: -5.01%
A175: 165 | B175: Others | C175: RAIN | D175: 2022-04-28 | E175: 181.65 | F175: 183.05 | G175: 178.60 | H175: 175.55 | I175: 171.10 | J175: 186.10 | K175: 190.55 | L175: 193.60 | M175: 187.5 | N175: 180 | O175: 6592500 | P175: -2.77%
A176: 166 | B176: Cement | C176: RAMCOCEM | D176: 2022-04-28 | E176: 786.70 | F176: 790.85 | G176: 771.10 | H176: 755.50 | I176: 735.75 | J176: 806.45 | K176: 826.20 | L176: 841.80 | M176: 810.6 | N176: 775.25 | O176: 2665600 | P176: -0.88%
A177: 167 | B177: Banking | C177: RBLBANK | D177: 2022-04-28 | E177: 124.70 | F177: 126.62 | G177: 121.18 | H177: 117.67 | I177: 112.23 | J177: 130.13 | K177: 135.57 | L177: 139.08 | M177: 132.05 | N177: 123.1 | O177: 48261800 | P177: -2.02%
A178: 168 | B178: Power | C178: RECLTD | D178: 2022-04-28 | E178: 129.55 | F178: 130.25 | G178: 127.35 | H178: 125.15 | I178: 122.25 | J178: 132.45 | K178: 135.35 | L178: 137.55 | M178: 133.15 | N178: 128.05 | O178: 30702000 | P178: -0.35%
A179: 169 | B179: Oil_Gas | C179: RELIANCE | D179: 2022-04-28 | E179: 2639.80 | F179: 2622.65 | G179: 2574.10 | H179: 2508.40 | I179: 2459.85 | J179: 2688.35 | K179: 2736.90 | L179: 2802.60 | M179: 2671.2 | N179: 2556.95 | O179: 35326000 | P179: -2.36%
A180: 170 | B180: Metals | C180: SAIL | D180: 2022-04-28 | E180: 104.15 | F180: 105.07 | G180: 101.73 | H180: 99.32 | I180: 95.98 | J180: 107.48 | K180: 110.82 | L180: 113.23 | M180: 108.4 | N180: 102.65 | O180: 154303750 | P180: 1.29%
A181: 171 | B181: Banking | C181: SBICARD | D181: 2022-04-28 | E181: 794.60 | F181: 800.02 | G181: 780.78 | H181: 766.97 | I181: 747.73 | J181: 813.83 | K181: 833.07 | L181: 846.88 | M181: 819.25 | N181: 786.2 | O181: 7773000 | P181: 2.06%
A182: 172 | B182: Finance | C182: SBILIFE | D182: 2022-04-28 | E182: 1127.70 | F182: 1142.47 | G182: 1101.73 | H182: 1075.77 | I182: 1035.03 | J182: 1168.43 | K182: 1209.17 | L182: 1235.13 | M182: 1183.2 | N182: 1116.5 | O182: 7365750 | P182: -0.75%
A183: 173 | B183: Banking | C183: SBIN | D183: 2022-04-28 | E183: 510.40 | F183: 512.58 | G183: 502.92 | H183: 495.43 | I183: 485.77 | J183: 520.07 | K183: 529.73 | L183: 537.22 | M183: 522.25 | N183: 505.1 | O183: 68908500 | P183: -2.96%
A184: 174 | B184: Cement | C184: SHREECEM | D184: 2022-04-28 | E184: 24926.00 | F184: 25062.17 | G184: 24374.38 | H184: 23822.77 | I184: 23134.98 | J184: 25613.78 | K184: 26301.57 | L184: 26853.18 | M184: 25749.95 | N184: 24510.55 | O184: 183775 | P184: -1.33%
A185: 175 | B185: Capital_Goods | C185: SIEMENS | D185: 2022-04-28 | E185: 2382.45 | F185: 2406.88 | G185: 2331.82 | H185: 2281.18 | I185: 2206.12 | J185: 2457.52 | K185: 2532.58 | L185: 2583.22 | M185: 2481.95 | N185: 2356.25 | O185: 1524875 | P185: 1.95%
A186: 176 | B186: Textile | C186: SRF | D186: 2022-04-28 | E186: 2534.65 | F186: 2559.88 | G186: 2461.22 | H186: 2387.78 | I186: 2289.12 | J186: 2633.32 | K186: 2731.98 | L186: 2805.42 | M186: 2658.55 | N186: 2486.45 | O186: 3219750 | P186: -0.92%
A187: 177 | B187: Finance | C187: SRTRANSFIN | D187: 2022-04-28 | E187: 1121.65 | F187: 1141.50 | G187: 1085.20 | H187: 1048.75 | I187: 992.45 | J187: 1177.95 | K187: 1234.25 | L187: 1270.70 | M187: 1197.8 | N187: 1105.05 | O187: 4480000 | P187: 5.03%
A188: 178 | B188: Pharma | C188: STAR | D188: 2022-04-28 | E188: 336.60 | F188: 342.03 | G188: 324.07 | H188: 311.53 | I188: 293.57 | J188: 354.57 | K188: 372.53 | L188: 385.07 | M188: 360 | N188: 329.5 | O188: 4928400 | P188: 0.51%
A189: 179 | B189: Pharma | C189: SUNPHARMA | D189: 2022-04-28 | E189: 921.15 | F189: 924.68 | G189: 911.57 | H189: 901.98 | I189: 888.87 | J189: 934.27 | K189: 947.38 | L189: 956.97 | M189: 937.8 | N189: 915.1 | O189: 16699200 | P189: -0.13%
A190: 180 | B190: Media | C190: SUNTV | D190: 2022-04-28 | E190: 499.25 | F190: 503.47 | G190: 490.93 | H190: 482.62 | I190: 470.08 | J190: 511.78 | K190: 524.32 | L190: 532.63 | M190: 516 | N190: 495.15 | O190: 13338000 | P190: -0.48%
A191: 181 | B191: Pharma | C191: SYNGENE | D191: 2022-04-28 | E191: 617.15 | F191: 625.35 | G191: 601.70 | H191: 586.25 | I191: 562.60 | J191: 640.80 | K191: 664.45 | L191: 679.90 | M191: 649 | N191: 609.9 | O191: 1058250 | P191: -8.66%
A192: 182 | B192: Chemical | C192: TATACHEM | D192: 2022-04-28 | E192: 971.85 | F192: 979.83 | G192: 946.77 | H192: 921.68 | I192: 888.62 | J192: 1004.92 | K192: 1037.98 | L192: 1063.07 | M192: 1012.9 | N192: 954.75 | O192: 5727000 | P192: 0.77%
A193: 183 | B193: Telecom | C193: TATACOMM | D193: 2022-04-28 | E193: 1278.80 | F193: 1287.90 | G193: 1242.80 | H193: 1206.80 | I193: 1161.70 | J193: 1323.90 | K193: 1369.00 | L193: 1405.00 | M193: 1333 | N193: 1251.9 | O193: 4093600 | P193: -0.22%
A194: 184 | B194: FMCG | C194: TATACONSUM | D194: 2022-04-28 | E194: 792.80 | F194: 806.77 | G194: 773.68 | H194: 754.57 | I194: 721.48 | J194: 825.88 | K194: 858.97 | L194: 878.08 | M194: 839.85 | N194: 787.65 | O194: 8766225 | P194: 0.98%
A195: 185 | B195: Automobile | C195: TATAMOTORS | D195: 2022-04-28 | E195: 425.60 | F195: 427.73 | G195: 415.07 | H195: 404.53 | I195: 391.87 | J195: 438.27 | K195: 450.93 | L195: 461.47 | M195: 440.4 | N195: 417.2 | O195: 91060350 | P195: -1.77%
A196: 186 | B196: Power | C196: TATAPOWER | D196: 2022-04-28 | E196: 246.15 | F196: 250.08 | G196: 238.67 | H196: 231.18 | I196: 219.77 | J196: 257.57 | K196: 268.98 | L196: 276.47 | M196: 261.5 | N196: 242.6 | O196: 105603750 | P196: -9.56%
A197: 187 | B197: Metals | C197: TATASTEEL | D197: 2022-04-28 | E197: 1327.40 | F197: 1336.53 | G197: 1302.07 | H197: 1276.73 | I197: 1242.27 | J197: 1361.87 | K197: 1396.33 | L197: 1421.67 | M197: 1371 | N197: 1311.2 | O197: 31469975 | P197: -1.44%
A198: 188 | B198: Technology | C198: TCS | D198: 2022-04-28 | E198: 3474.50 | F198: 3495.80 | G198: 3422.60 | H198: 3370.70 | I198: 3297.50 | J198: 3547.70 | K198: 3620.90 | L198: 3672.80 | M198: 3569 | N198: 3443.9 | O198: 12265350 | P198: 3.14%
A199: 189 | B199: Technology | C199: TECHM | D199: 2022-04-28 | E199: 1305.95 | F199: 1319.82 | G199: 1278.43 | H199: 1250.92 | I199: 1209.53 | J199: 1347.33 | K199: 1388.72 | L199: 1416.23 | M199: 1361.2 | N199: 1292.3 | O199: 14575200 | P199: -0.60%
A200: 190 | B200: FMCG | C200: TITAN | D200: 2022-04-28 | E200: 2461.15 | F200: 2479.72 | G200: 2431.43 | H200: 2401.72 | I200: 2353.43 | J200: 2509.43 | K200: 2557.72 | L200: 2587.43 | M200: 2528 | N200: 2450 | O200: 5892750 | P200: -3.37%
A201: 191 | B201: Pharma | C201: TORNTPHARM | D201: 2022-04-28 | E201: 2847.55 | F201: 2860.83 | G201: 2816.67 | H201: 2785.78 | I201: 2741.62 | J201: 2891.72 | K201: 2935.88 | L201: 2966.77 | M201: 2905 | N201: 2829.95 | O201: 658750 | P201: -3.80%
A202: 192 | B202: Power | C202: TORNTPOWER | D202: 2022-04-28 | E202: 545.70 | F202: 553.10 | G202: 533.90 | H202: 522.10 | I202: 502.90 | J202: 564.90 | K202: 584.10 | L202: 595.90 | M202: 572.3 | N202: 541.3 | O202: 3189000 | P202: -4.41%
A203: 193 | B203: Others | C203: TRENT | D203: 2022-04-28 | E203: 1249.70 | F203: 1256.45 | G203: 1228.10 | H203: 1206.50 | I203: 1178.15 | J203: 1278.05 | K203: 1306.40 | L203: 1328.00 | M203: 1284.8 | N203: 1234.85 | O203: 2960175 | P203: 2.72%
A204: 194 | B204: Automobile | C204: TVSMOTOR | D204: 2022-04-28 | E204: 639.55 | F204: 644.77 | G204: 629.33 | H204: 619.12 | I204: 603.68 | J204: 654.98 | K204: 670.42 | L204: 680.63 | M204: 660.2 | N204: 634.55 | O204: 7242200 | P204: -2.05%
A205: 195 | B205: FMCG | C205: UBL | D205: 2022-04-28 | E205: 1463.55 | F205: 1481.47 | G205: 1432.38 | H205: 1401.22 | I205: 1352.13 | J205: 1512.63 | K205: 1561.72 | L205: 1592.88 | M205: 1530.55 | N205: 1450.3 | O205: 1089550 | P205: 0.71%
A206: 196 | B206: Cement | C206: ULTRACEMCO | D206: 2022-04-28 | E206: 6589.55 | F206: 6628.20 | G206: 6486.45 | H206: 6383.35 | I206: 6241.60 | J206: 6731.30 | K206: 6873.05 | L206: 6976.15 | M206: 6769.95 | N206: 6525.1 | O206: 1936000 | P206: -2.56%
... 22 more rows

Sheet Cash Intra
M5: Back to Main Page
A6: FOR INTRA DAY TRADING | K6: =Main!B10 -> 2022-04-20
A8: Sr.no | C8: CLOSE RATE | D8: Pivot Point | E8: Supports | H8: Resistances
E9: S1 | F9: S2 | G9: S3 | H9: R1 | I9: R2 | J9: R3 | K9: HIGH | L9: LOW | M9: Total Trade Quanity in Lakhs
A10: 1 | B10: Nifty 50 | C10: 16958.65 | D10: 17019.67 | E10: 16763.68 | F10: 16568.72 | G10: 16312.73 | H10: 17214.63 | I10: 17470.62 | J10: 17665.58 | K10: 17275.65 | L10: 16824.7
A11: 2 | B11: Nifty Bank | C11: 36341.6 | D11: 36463.82 | E11: 35804.08 | F11: 35266.57 | G11: 34606.83 | H11: 37001.33 | I11: 37661.07 | J11: 38198.58 | K11: 37123.55 | L11: 35926.3
A12: 3 | B12: Nifty CPSE | C12: 2767.45 | D12: 2781.12 | E12: 2734.48 | F12: 2701.52 | G12: 2654.88 | H12: 2814.08 | I12: 2860.72 | J12: 2893.68 | K12: 2827.75 | L12: 2748.15
A13: 4 | B13: Nifty Infra | C13: 5102.85 | D13: 5118.40 | E13: 5049.75 | F13: 4996.65 | G13: 4928.00 | H13: 5171.50 | I13: 5240.15 | J13: 5293.25 | K13: 5187.05 | L13: 5065.3
A14: 5 | B14: Nifty IT | C14: 31804.2 | D14: 32160.73 | E14: 31212.82 | F14: 30621.43 | G14: 29673.52 | H14: 32752.12 | I14: 33700.03 | J14: 34291.42 | K14: 33108.65 | L14: 31569.35
A15: 6 | B15: Nifty PSE | C15: 4426 | D15: 4446.13 | E15: 4375.12 | F15: 4324.23 | G15: 4253.22 | H15: 4497.02 | I15: 4568.03 | J15: 4618.92 | K15: 4517.15 | L15: 4395.25
A16: 7 | B16: Nifty Midcap 50 | C16: 8253.3 | D16: 8291.42 | E16: 8135.28 | F16: 8017.27 | G16: 7861.13 | H16: 8409.43 | I16: 8565.57 | J16: 8683.58 | K16: 8447.55 | L16: 8173.4
A17: 8 | B17: ACC | C17: 2056.5 | D17: 2084.88 | E17: 1995.17 | F17: 1933.83 | G17: 1844.12 | H17: 2146.22 | I17: 2235.93 | J17: 2297.27 | K17: 2174.6 | L17: 2023.55 | M17: 8.2474
A18: 9 | B18: AUBANK | C18: 1420.5 | D18: 1425.12 | E18: 1390.48 | F18: 1360.47 | G18: 1325.83 | H18: 1455.13 | I18: 1489.77 | J18: 1519.78 | K18: 1459.75 | L18: 1395.1 | M18: 45.85249
A19: 10 | B19: AARTIIND | C19: 939.2 | D19: 938.87 | E19: 923.43 | F19: 907.67 | G19: 892.23 | H19: 954.63 | I19: 970.07 | J19: 985.83 | K19: 954.3 | L19: 923.1 | M19: 5.08256
A20: 11 | B20: ADANIENT | C20: 2168.3 | D20: 2187.80 | E20: 2120.60 | F20: 2072.90 | G20: 2005.70 | H20: 2235.50 | I20: 2302.70 | J20: 2350.40 | K20: 2255 | L20: 2140.1 | M20: 16.39219
A21: 12 | B21: ADANIGREEN | C21: 2911.95 | D21: 2903.98 | E21: 2757.97 | F21: 2603.98 | G21: 2457.97 | H21: 3057.97 | I21: 3203.98 | J21: 3357.97 | K21: 3050 | L21: 2750 | M21: 25.29522
A22: 13 | B22: ADANIPORTS | C22: 819.3 | D22: 825.52 | E22: 800.78 | F22: 782.27 | G22: 757.53 | H22: 844.03 | I22: 868.77 | J22: 887.28 | K22: 850.25 | L22: 807 | M22: 44.7232
A23: 14 | B23: ATGL | C23: 2369.4 | D23: 2407.13 | E23: 2262.27 | F23: 2155.13 | G23: 2010.27 | H23: 2514.27 | I23: 2659.13 | J23: 2766.27 | K23: 2552 | L23: 2300 | M23: 4.20809
A24: 15 | B24: ADANITRANS | C24: 2598.05 | D24: 2622.62 | E24: 2436.48 | F24: 2274.92 | G24: 2088.78 | H24: 2784.18 | I24: 2970.32 | J24: 3131.88 | K24: 2808.75 | L24: 2461.05 | M24: 7.43147
A25: 16 | B25: ABCAPITAL | C25: 109.75 | D25: 111.15 | E25: 106.60 | F25: 103.45 | G25: 98.90 | H25: 114.30 | I25: 118.85 | J25: 122.00 | K25: 115.7 | L25: 108 | M25: 69.51986
A26: 17 | B26: ABFRL | C26: 292.85 | D26: 292.22 | E26: 283.63 | F26: 274.42 | G26: 265.83 | H26: 301.43 | I26: 310.02 | J26: 319.23 | K26: 300.8 | L26: 283 | M26: 25.34588
A27: 18 | B27: AJANTPHARM | C27: 1763 | D27: 1766.67 | E27: 1734.33 | F27: 1705.67 | G27: 1673.33 | H27: 1795.33 | I27: 1827.67 | J27: 1856.33 | K27: 1799 | L27: 1738 | M27: 1.40735
A28: 19 | B28: APLLTD | C28: 749.7 | D28: 756.57 | E28: 738.13 | F28: 726.57 | G28: 708.13 | H28: 768.13 | I28: 786.57 | J28: 798.13 | K28: 775 | L28: 745 | M28: 3.14498
A29: 20 | B29: ALKEM | C29: 3374.85 | D29: 3418.80 | E29: 3322.60 | F29: 3270.35 | G29: 3174.15 | H29: 3471.05 | I29: 3567.25 | J29: 3619.50 | K29: 3515 | L29: 3366.55 | M29: 0.87763
A30: 21 | B30: AMARAJABAT | C30: 559.35 | D30: 565.53 | E30: 546.62 | F30: 533.88 | G30: 514.97 | H30: 578.27 | I30: 597.18 | J30: 609.92 | K30: 584.45 | L30: 552.8 | M30: 7.46926
A31: 22 | B31: AMBUJACEM | C31: 354.25 | D31: 358.42 | E31: 346.83 | F31: 339.42 | G31: 327.83 | H31: 365.83 | I31: 377.42 | J31: 384.83 | K31: 370 | L31: 351 | M31: 99.71239
A32: 23 | B32: APOLLOHOSP | C32: 4816.35 | D32: 4756.58 | E32: 4643.17 | F32: 4469.98 | G32: 4356.57 | H32: 4929.77 | I32: 5043.18 | J32: 5216.37 | K32: 4870 | L32: 4583.4 | M32: 17.13344
A33: 24 | B33: APOLLOTYRE | C33: 189.2 | D33: 190.00 | E33: 186.20 | F33: 183.20 | G33: 179.40 | H33: 193.00 | I33: 196.80 | J33: 199.80 | K33: 193.8 | L33: 187 | M33: 22.90054
A34: 25 | B34: ASHOKLEY | C34: 124.5 | D34: 125.65 | E34: 122.05 | F34: 119.60 | G34: 116.00 | H34: 128.10 | I34: 131.70 | J34: 134.15 | K34: 129.25 | L34: 123.2 | M34: 72.47121
A35: 26 | B35: ASIANPAINT | C35: 2991.2 | D35: 3006.80 | E35: 2954.40 | F35: 2917.60 | G35: 2865.20 | H35: 3043.60 | I35: 3096.00 | J35: 3132.80 | K35: 3059.2 | L35: 2970 | M35: 7.49782
A36: 27 | B36: ASTRAL | C36: 2088.95 | D36: 2094.98 | E36: 2054.97 | F36: 2020.98 | G36: 1980.97 | H36: 2128.97 | I36: 2168.98 | J36: 2202.97 | K36: 2135 | L36: 2061 | M36: 3.71223
A37: 28 | B37: AUROPHARMA | C37: 662.15 | D37: 666.40 | E37: 647.75 | F37: 633.35 | G37: 614.70 | H37: 680.80 | I37: 699.45 | J37: 713.85 | K37: 685.05 | L37: 652 | M37: 15.32926
A38: 29 | B38: DMART | C38: 4008.9 | D38: 4038.60 | E38: 3945.30 | F38: 3881.70 | G38: 3788.40 | H38: 4102.20 | I38: 4195.50 | J38: 4259.10 | K38: 4131.9 | L38: 3975 | M38: 2.22195
A39: 30 | B39: AXISBANK | C39: 797.8 | D39: 799.85 | E39: 783.50 | F39: 769.20 | G39: 752.85 | H39: 814.15 | I39: 830.50 | J39: 844.80 | K39: 816.2 | L39: 785.55 | M39: 87.11816
A40: 31 | B40: BAJAJ-AUTO | C40: 3657.15 | D40: 3683.37 | E40: 3592.13 | F40: 3527.12 | G40: 3435.88 | H40: 3748.38 | I40: 3839.62 | J40: 3904.63 | K40: 3774.6 | L40: 3618.35 | M40: 2.11918
A41: 32 | B41: BAJFINANCE | C41: 7259.55 | D41: 7284.62 | E41: 7125.93 | F41: 6992.32 | G41: 6833.63 | H41: 7418.23 | I41: 7576.92 | J41: 7710.53 | K41: 7443.3 | L41: 7151 | M41: 11.9111
A42: 33 | B42: BAJAJFINSV | C42: 15720.55 | D42: 15797.35 | E42: 15514.70 | F42: 15308.85 | G42: 15026.20 | H42: 16003.20 | I42: 16285.85 | J42: 16491.70 | K42: 16080 | L42: 15591.5 | M42: 2.59696
A43: 34 | B43: BAJAJHLDNG | C43: 5191.3 | D43: 5225.60 | E43: 5074.20 | F43: 4957.10 | G43: 4805.70 | H43: 5342.70 | I43: 5494.10 | J43: 5611.20 | K43: 5377 | L43: 5108.5 | M43: 2.08772
A44: 35 | B44: BALKRISIND | C44: 2097.95 | D44: 2114.97 | E44: 2057.98 | F44: 2018.02 | G44: 1961.03 | H44: 2154.93 | I44: 2211.92 | J44: 2251.88 | K44: 2171.95 | L44: 2075 | M44: 4.22178
A45: 36 | B45: BANDHANBNK | C45: 323.6 | D45: 325.15 | E45: 315.30 | F45: 307.00 | G45: 297.15 | H45: 333.45 | I45: 343.30 | J45: 351.60 | K45: 335 | L45: 316.85 | M45: 132.63248
A46: 37 | B46: BANKBARODA | C46: 113.05 | D46: 113.78 | E46: 110.87 | F46: 108.68 | G46: 105.77 | H46: 115.97 | I46: 118.88 | J46: 121.07 | K46: 116.7 | L46: 111.6 | M46: 298.39721
A47: 38 | B47: BANKINDIA | C47: 49.45 | D47: 49.60 | E47: 48.35 | F47: 47.25 | G47: 46.00 | H47: 50.70 | I47: 51.95 | J47: 53.05 | K47: 50.85 | L47: 48.5 | M47: 33.05214
A48: 39 | B48: BATAINDIA | C48: 1925.6 | D48: 1938.50 | E48: 1887.10 | F48: 1848.60 | G48: 1797.20 | H48: 1977.00 | I48: 2028.40 | J48: 2066.90 | K48: 1989.9 | L48: 1900 | M48: 4.23957
A49: 40 | B49: BERGEPAINT | C49: 702.7 | D49: 709.18 | E49: 689.77 | F49: 676.83 | G49: 657.42 | H49: 722.12 | I49: 741.53 | J49: 754.47 | K49: 728.6 | L49: 696.25 | M49: 2.4376
A50: 41 | B50: BEL | C50: 250.3 | D50: 252.62 | E50: 245.73 | F50: 241.17 | G50: 234.28 | H50: 257.18 | I50: 264.07 | J50: 268.63 | K50: 259.5 | L50: 248.05 | M50: 130.64282
A51: 42 | B51: BHARATFORG | C51: 725.95 | D51: 728.92 | E51: 715.33 | F51: 704.72 | G51: 691.13 | H51: 739.53 | I51: 753.12 | J51: 763.73 | K51: 742.5 | L51: 718.3 | M51: 11.18319
A52: 43 | B52: BHEL | C52: 53.55 | D52: 54.03 | E52: 52.17 | F52: 50.78 | G52: 48.92 | H52: 55.42 | I52: 57.28 | J52: 58.67 | K52: 55.9 | L52: 52.65 | M52: 265.07027
A53: 44 | B53: BPCL | C53: 375.85 | D53: 377.57 | E53: 371.28 | F53: 366.72 | G53: 360.43 | H53: 382.13 | I53: 388.42 | J53: 392.98 | K53: 383.85 | L53: 373 | M53: 57.96327
A54: 45 | B54: BHARTIARTL | C54: 723.5 | D54: 726.45 | E54: 713.90 | F54: 704.30 | G54: 691.75 | H54: 736.05 | I54: 748.60 | J54: 758.20 | K54: 739 | L54: 716.85 | M54: 99.5706
A55: 46 | B55: BIOCON | C55: 337.95 | D55: 339.80 | E55: 331.15 | F55: 324.35 | G55: 315.70 | H55: 346.60 | I55: 355.25 | J55: 362.05 | K55: 348.45 | L55: 333 | M55: 24.38919
A56: 47 | B56: BOSCHLTD | C56: 14127.55 | D56: 14287.60 | E56: 13883.05 | F56: 13638.55 | G56: 13234.00 | H56: 14532.10 | I56: 14936.65 | J56: 15181.15 | K56: 14692.15 | L56: 14043.1 | M56: 0.25638
A57: 48 | B57: BRITANNIA | C57: 3267.9 | D57: 3300.40 | E57: 3212.80 | F57: 3157.70 | G57: 3070.10 | H57: 3355.50 | I57: 3443.10 | J57: 3498.20 | K57: 3388 | L57: 3245.3 | M57: 2.9668
A58: 49 | B58: INTELLECT | C58: 829.65 | D58: 845.57 | E58: 801.13 | F58: 772.62 | G58: 728.18 | H58: 874.08 | I58: 918.52 | J58: 947.03 | K58: 890 | L58: 817.05 | M58: 5.30302
A59: 50 | B59: CANBK | C59: 234.65 | D59: 236.35 | E59: 229.25 | F59: 223.85 | G59: 216.75 | H59: 241.75 | I59: 248.85 | J59: 254.25 | K59: 243.45 | L59: 230.95 | M59: 88.88785
A60: 51 | B60: CASTROLIND | C60: 104.8 | D60: 104.98 | E60: 104.22 | F60: 103.63 | G60: 102.87 | H60: 105.57 | I60: 106.33 | J60: 106.92 | K60: 105.75 | L60: 104.4 | M60: 12.58378
A61: 52 | B61: CHOLAFIN | C61: 736.85 | D61: 741.98 | E61: 722.62 | F61: 708.38 | G61: 689.02 | H61: 756.22 | I61: 775.58 | J61: 789.82 | K61: 761.35 | L61: 727.75 | M61: 40.21576
A62: 53 | B62: CIPLA | C62: 1000.3 | D62: 1006.52 | E62: 974.13 | F62: 947.97 | G62: 915.58 | H62: 1032.68 | I62: 1065.07 | J62: 1091.23 | K62: 1038.9 | L62: 980.35 | M62: 18.1389
A63: 54 | B63: CUB | C63: 132.4 | D63: 134.45 | E63: 128.95 | F63: 125.50 | G63: 120.00 | H63: 137.90 | I63: 143.40 | J63: 146.85 | K63: 139.95 | L63: 131 | M63: 15.28228
A64: 55 | B64: COALINDIA | C64: 197.75 | D64: 197.22 | E64: 191.18 | F64: 184.62 | G64: 178.58 | H64: 203.78 | I64: 209.82 | J64: 216.38 | K64: 203.25 | L64: 190.65 | M64: 593.4171
A65: 56 | B65: COFORGE | C65: 4027.3 | D65: 4057.23 | E65: 3947.12 | F65: 3866.93 | G65: 3756.82 | H65: 4137.42 | I65: 4247.53 | J65: 4327.72 | K65: 4167.35 | L65: 3977.05 | M65: 3.29391
A66: 57 | B66: COLPAL | C66: 1502.6 | D66: 1520.87 | E66: 1467.73 | F66: 1432.87 | G66: 1379.73 | H66: 1555.73 | I66: 1608.87 | J66: 1643.73 | K66: 1574 | L66: 1486 | M66: 4.49243
A67: 58 | B67: CONCOR | C67: 654.45 | D67: 661.55 | E67: 638.30 | F67: 622.15 | G67: 598.90 | H67: 677.70 | I67: 700.95 | J67: 717.10 | K67: 684.8 | L67: 645.4 | M67: 10.00156
A68: 59 | B68: COROMANDEL | C68: 832.4 | D68: 839.27 | E68: 812.13 | F68: 791.87 | G68: 764.73 | H68: 859.53 | I68: 886.67 | J68: 906.93 | K68: 866.4 | L68: 819 | M68: 5.11141
A69: 60 | B69: CROMPTON | C69: 374.2 | D69: 375.85 | E69: 368.50 | F69: 362.80 | G69: 355.45 | H69: 381.55 | I69: 388.90 | J69: 394.60 | K69: 383.2 | L69: 370.15 | M69: 16.54617
A70: 61 | B70: CUMMINSIND | C70: 1067.7 | D70: 1076.27 | E70: 1052.43 | F70: 1037.17 | G70: 1013.33 | H70: 1091.53 | I70: 1115.37 | J70: 1130.63 | K70: 1100.1 | L70: 1061 | M70: 5.18913
A71: 62 | B71: DLF | C71: 377.8 | D71: 380.52 | E71: 369.28 | F71: 360.77 | G71: 349.53 | H71: 389.03 | I71: 400.27 | J71: 408.78 | K71: 391.75 | L71: 372 | M71: 39.38936
A72: 63 | B72: DABUR | C72: 549 | D72: 554.90 | E72: 540.10 | F72: 531.20 | G72: 516.40 | H72: 563.80 | I72: 578.60 | J72: 587.50 | K72: 569.7 | L72: 546 | M72: 32.25494
A73: 64 | B73: DALBHARAT | C73: 1573.05 | D73: 1578.27 | E73: 1532.83 | F73: 1492.62 | G73: 1447.18 | H73: 1618.48 | I73: 1663.92 | J73: 1704.13 | K73: 1623.7 | L73: 1538.05 | M73: 1.09892
A74: 65 | B74: DEEPAKNTR | C74: 2211.4 | D74: 2232.92 | E74: 2159.73 | F74: 2108.07 | G74: 2034.88 | H74: 2284.58 | I74: 2357.77 | J74: 2409.43 | K74: 2306.1 | L74: 2181.25 | M74: 3.73403
A75: 66 | B75: DHANI | C75: 62.75 | D75: 63.30 | E75: 60.70 | F75: 58.65 | G75: 56.05 | H75: 65.35 | I75: 67.95 | J75: 70.00 | K75: 65.9 | L75: 61.25 | M75: 22.82681
A76: 67 | B76: DIVISLAB | C76: 4411.4 | D76: 4446.38 | E76: 4313.77 | F76: 4216.13 | G76: 4083.52 | H76: 4544.02 | I76: 4676.63 | J76: 4774.27 | K76: 4579 | L76: 4348.75 | M76: 4.21066
A77: 68 | B77: DIXON | C77: 4197 | D77: 4238.17 | E77: 4102.33 | F77: 4007.67 | G77: 3871.83 | H77: 4332.83 | I77: 4468.67 | J77: 4563.33 | K77: 4374 | L77: 4143.5 | M77: 2.01974
A78: 69 | B78: LALPATHLAB | C78: 2714.95 | D78: 2720.67 | E78: 2646.33 | F78: 2577.72 | G78: 2503.38 | H78: 2789.28 | I78: 2863.62 | J78: 2932.23 | K78: 2795 | L78: 2652.05 | M78: 2.78211
A79: 70 | B79: DRREDDY | C79: 4209.7 | D79: 4238.60 | E79: 4161.10 | F79: 4112.50 | G79: 4035.00 | H79: 4287.20 | I79: 4364.70 | J79: 4413.30 | K79: 4316.1 | L79: 4190 | M79: 3.10144
A80: 71 | B80: EICHERMOT | C80: 2454.85 | D80: 2483.62 | E80: 2392.33 | F80: 2329.82 | G80: 2238.53 | H80: 2546.13 | I80: 2637.42 | J80: 2699.93 | K80: 2574.9 | L80: 2421.1 | M80: 6.36517
A81: 72 | B81: EMAMILTD | C81: 475.1 | D81: 474.10 | E81: 471.20 | F81: 467.30 | G81: 464.40 | H81: 478.00 | I81: 480.90 | J81: 484.80 | K81: 477 | L81: 470.2 | M81: 2.17594
A82: 73 | B82: ENDURANCE | C82: 1150.65 | D82: 1153.73 | E82: 1121.47 | F82: 1092.28 | G82: 1060.02 | H82: 1182.92 | I82: 1215.18 | J82: 1244.37 | K82: 1186 | L82: 1124.55 | M82: 1.6944
A83: 74 | B83: ESCORTS | C83: 1544.8 | D83: 1545.08 | E83: 1525.72 | F83: 1506.63 | G83: 1487.27 | H83: 1564.17 | I83: 1583.53 | J83: 1602.62 | K83: 1564.45 | L83: 1526 | M83: 5.77218
A84: 75 | B84: EXIDEIND | C84: 152.7 | D84: 153.65 | E84: 150.30 | F84: 147.90 | G84: 144.55 | H84: 156.05 | I84: 159.40 | J84: 161.80 | K84: 157 | L84: 151.25 | M84: 14.51744
A85: 76 | B85: FEDERALBNK | C85: 96.3 | D85: 96.72 | E85: 94.58 | F85: 92.87 | G85: 90.73 | H85: 98.43 | I85: 100.57 | J85: 102.28 | K85: 98.85 | L85: 95 | M85: 118.97241
A86: 77 | B86: FORTIS | C86: 270.85 | D86: 271.02 | E86: 267.08 | F86: 263.32 | G86: 259.38 | H86: 274.78 | I86: 278.72 | J86: 282.48 | K86: 274.95 | L86: 267.25 | M86: 20.02813
A87: 78 | B87: GAIL | C87: 170 | D87: 170.62 | E87: 167.73 | F87: 165.47 | G87: 162.58 | H87: 172.88 | I87: 175.77 | J87: 178.03 | K87: 173.5 | L87: 168.35 | M87: 280.68839
A88: 79 | B88: GMRINFRA | C88: 37.15 | D88: 37.53 | E88: 36.12 | F88: 35.08 | G88: 33.67 | H88: 38.57 | I88: 39.98 | J88: 41.02 | K88: 38.95 | L88: 36.5 | M88: 61.78874
A89: 80 | B89: GLAND | C89: 3201.1 | D89: 3213.70 | E89: 3157.40 | F89: 3113.70 | G89: 3057.40 | H89: 3257.40 | I89: 3313.70 | J89: 3357.40 | K89: 3270 | L89: 3170 | M89: 0.4297
A90: 81 | B90: GLENMARK | C90: 459.45 | D90: 462.52 | E90: 451.93 | F90: 444.42 | G90: 433.83 | H90: 470.03 | I90: 480.62 | J90: 488.13 | K90: 473.1 | L90: 455 | M90: 3.44571
A91: 82 | B91: GODREJCP | C91: 775.05 | D91: 782.05 | E91: 758.55 | F91: 742.05 | G91: 718.55 | H91: 798.55 | I91: 822.05 | J91: 838.55 | K91: 805.55 | L91: 765.55 | M91: 10.04353
A92: 83 | B92: GODREJIND | C92: 488.55 | D92: 482.68 | E92: 466.22 | F92: 443.88 | G92: 427.42 | H92: 505.02 | I92: 521.48 | J92: 543.82 | K92: 499.15 | L92: 460.35 | M92: 1.00223
A93: 84 | B93: GODREJPROP | C93: 1565.95 | D93: 1577.65 | E93: 1527.15 | F93: 1488.35 | G93: 1437.85 | H93: 1616.45 | I93: 1666.95 | J93: 1705.75 | K93: 1628.15 | L93: 1538.85 | M93: 3.48395
A94: 85 | B94: GRASIM | C94: 1720.4 | D94: 1732.50 | E94: 1688.00 | F94: 1655.60 | G94: 1611.10 | H94: 1764.90 | I94: 1809.40 | J94: 1841.80 | K94: 1777 | L94: 1700.1 | M94: 7.4493
A95: 86 | B95: GUJGASLTD | C95: 511.65 | D95: 517.20 | E95: 499.45 | F95: 487.25 | G95: 469.50 | H95: 529.40 | I95: 547.15 | J95: 559.35 | K95: 534.95 | L95: 505 | M95: 8.96537
A96: 87 | B96: GSPL | C96: 276.4 | D96: 277.13 | E96: 270.67 | F96: 264.93 | G96: 258.47 | H96: 282.87 | I96: 289.33 | J96: 295.07 | K96: 283.6 | L96: 271.4 | M96: 10.64495
A97: 88 | B97: HCLTECH | C97: 1070.25 | D97: 1081.65 | E97: 1047.35 | F97: 1024.45 | G97: 990.15 | H97: 1104.55 | I97: 1138.85 | J97: 1161.75 | K97: 1115.95 | L97: 1058.75 | M97: 34.22431
A98: 89 | B98: HDFCAMC | C98: 2109.55 | D98: 2132.33 | E98: 2055.42 | F98: 2001.28 | G98: 1924.37 | H98: 2186.47 | I98: 2263.38 | J98: 2317.52 | K98: 2209.25 | L98: 2078.2 | M98: 2.06043
A99: 90 | B99: HDFCBANK | C99: 1342.2 | D99: 1352.92 | E99: 1316.28 | F99: 1290.37 | G99: 1253.73 | H99: 1378.83 | I99: 1415.47 | J99: 1441.38 | K99: 1389.55 | L99: 1327 | M99: 370.48011
A100: 91 | B100: HDFCLIFE | C100: 546.7 | D100: 556.20 | E100: 532.50 | F100: 518.30 | G100: 494.60 | H100: 570.40 | I100: 594.10 | J100: 608.30 | K100: 579.9 | L100: 542 | M100: 29.58108
A101: 92 | B101: HAVELLS | C101: 1285.8 | D101: 1286.18 | E101: 1266.57 | F101: 1247.33 | G101: 1227.72 | H101: 1305.42 | I101: 1325.03 | J101: 1344.27 | K101: 1305.8 | L101: 1266.95 | M101: 10.33067
A102: 93 | B102: HEROMOTOCO | C102: 2263.25 | D102: 2277.72 | E102: 2227.93 | F102: 2192.62 | G102: 2142.83 | H102: 2313.03 | I102: 2362.82 | J102: 2398.13 | K102: 2327.5 | L102: 2242.4 | M102: 4.84466
A103: 94 | B103: HINDALCO | C103: 540.8 | D103: 544.87 | E103: 533.53 | F103: 526.27 | G103: 514.93 | H103: 552.13 | I103: 563.47 | J103: 570.73 | K103: 556.2 | L103: 537.6 | M103: 81.43101
A104: 95 | B104: HAL | C104: 1690.65 | D104: 1705.82 | E104: 1653.63 | F104: 1616.62 | G104: 1564.43 | H104: 1742.83 | I104: 1795.02 | J104: 1832.03 | K104: 1758 | L104: 1668.8 | M104: 10.4354
A105: 96 | B105: HINDCOPPER | C105: 124.15 | D105: 124.92 | E105: 120.33 | F105: 116.52 | G105: 111.93 | H105: 128.73 | I105: 133.32 | J105: 137.13 | K105: 129.5 | L105: 121.1 | M105: 187.01538
A106: 97 | B106: HINDPETRO | C106: 293 | D106: 292.07 | E106: 286.13 | F106: 279.27 | G106: 273.33 | H106: 298.93 | I106: 304.87 | J106: 311.73 | K106: 298 | L106: 285.2 | M106: 73.57433
A107: 98 | B107: HINDUNILVR | C107: 2113.05 | D107: 2140.32 | E107: 2073.78 | F107: 2034.52 | G107: 1967.98 | H107: 2179.58 | I107: 2246.12 | J107: 2285.38 | K107: 2206.85 | L107: 2101.05 | M107: 17.75996
A108: 99 | B108: HINDZINC | C108: 341.45 | D108: 341.52 | E108: 333.03 | F108: 324.62 | G108: 316.13 | H108: 349.93 | I108: 358.42 | J108: 366.83 | K108: 350 | L108: 333.1 | M108: 5.4396
A109: 100 | B109: HDFC | C109: 2140.2 | D109: 2174.12 | E109: 2077.33 | F109: 2014.47 | G109: 1917.68 | H109: 2236.98 | I109: 2333.77 | J109: 2396.63 | K109: 2270.9 | L109: 2111.25 | M109: 200.5072
A110: 101 | B110: ICICIBANK | C110: 766.3 | D110: 767.07 | E110: 756.23 | F110: 746.17 | G110: 735.33 | H110: 777.13 | I110: 787.97 | J110: 798.03 | K110: 777.9 | L110: 757 | M110: 310.88359
A111: 102 | B111: ICICIGI | C111: 1342.4 | D111: 1352.85 | E111: 1321.85 | F111: 1301.30 | G111: 1270.30 | H111: 1373.40 | I111: 1404.40 | J111: 1424.95 | K111: 1383.85 | L111: 1332.3 | M111: 3.24789
A112: 103 | B112: ICICIPRULI | C112: 515.8 | D112: 526.73 | E112: 499.12 | F112: 482.43 | G112: 454.82 | H112: 543.42 | I112: 571.03 | J112: 587.72 | K112: 554.35 | L112: 510.05 | M112: 23.90374
A113: 104 | B113: ISEC | C113: 625 | D113: 627.42 | E113: 609.83 | F113: 594.67 | G113: 577.08 | H113: 642.58 | I113: 660.17 | J113: 675.33 | K113: 645 | L113: 612.25 | M113: 7.95124
A114: 105 | B114: IDFCFIRSTB | C114: 40.05 | D114: 40.27 | E114: 39.33 | F114: 38.62 | G114: 37.68 | H114: 40.98 | I114: 41.92 | J114: 42.63 | K114: 41.2 | L114: 39.55 | M114: 236.73024
A115: 106 | B115: ITC | C115: 261.55 | D115: 264.28 | E115: 256.07 | F115: 250.58 | G115: 242.37 | H115: 269.77 | I115: 277.98 | J115: 283.47 | K115: 272.5 | L115: 258.8 | M115: 233.80138
A116: 107 | B116: INDIAMART | C116: 4746.05 | D116: 4790.37 | E116: 4605.73 | F116: 4465.42 | G116: 4280.78 | H116: 4930.68 | I116: 5115.32 | J116: 5255.63 | K116: 4975 | L116: 4650.05 | M116: 1.05553
A117: 108 | B117: INDIANB | C117: 161.3 | D117: 162.45 | E117: 156.90 | F117: 152.50 | G117: 146.95 | H117: 166.85 | I117: 172.40 | J117: 176.80 | K117: 168 | L117: 158.05 | M117: 22.17309
A118: 109 | B118: INDHOTEL | C118: 243.6 | D118: 245.62 | E118: 237.53 | F118: 231.47 | G118: 223.38 | H118: 251.68 | I118: 259.77 | J118: 265.83 | K118: 253.7 | L118: 239.55 | M118: 55.66459
A119: 110 | B119: IOC | C119: 130.3 | D119: 130.60 | E119: 128.20 | F119: 126.10 | G119: 123.70 | H119: 132.70 | I119: 135.10 | J119: 137.20 | K119: 133 | L119: 128.5 | M119: 201.2211
A120: 111 | B120: IRCTC | C120: 752.75 | D120: 758.68 | E120: 739.37 | F120: 725.98 | G120: 706.67 | H120: 772.07 | I120: 791.38 | J120: 804.77 | K120: 778 | L120: 745.3 | M120: 21.21322
A121: 112 | B121: IRFC | C121: 22 | D121: 22.10 | E121: 21.80 | F121: 21.60 | G121: 21.30 | H121: 22.30 | I121: 22.60 | J121: 22.80 | K121: 22.4 | L121: 21.9 | M121: 86.34544
A122: 113 | B122: IGL | C122: 378.5 | D122: 385.17 | E122: 368.33 | F122: 358.17 | G122: 341.33 | H122: 395.33 | I122: 412.17 | J122: 422.33 | K122: 402 | L122: 375 | M122: 54.94151
A123: 114 | B123: INDUSTOWER | C123: 213.65 | D123: 214.83 | E123: 209.42 | F123: 205.18 | G123: 199.77 | H123: 219.07 | I123: 224.48 | J123: 228.72 | K123: 220.25 | L123: 210.6 | M123: 18.88734
A124: 115 | B124: INDUSINDBK | C124: 963.8 | D124: 967.92 | E124: 946.88 | F124: 929.97 | G124: 908.93 | H124: 984.83 | I124: 1005.87 | J124: 1022.78 | K124: 988.95 | L124: 951 | M124: 17.47142
A125: 116 | B125: NAUKRI | C125: 4611.95 | D125: 4646.28 | E125: 4515.67 | F125: 4419.38 | G125: 4288.77 | H125: 4742.57 | I125: 4873.18 | J125: 4969.47 | K125: 4776.9 | L125: 4550 | M125: 2.52753
A126: 117 | B126: INFY | C126: 1562 | D126: 1582.88 | E126: 1529.12 | F126: 1496.23 | G126: 1442.47 | H126: 1615.77 | I126: 1669.53 | J126: 1702.42 | K126: 1636.65 | L126: 1550 | M126: 170.44923
A127: 118 | B127: INDIGO | C127: 1869.55 | D127: 1879.83 | E127: 1832.97 | F127: 1796.38 | G127: 1749.52 | H127: 1916.42 | I127: 1963.28 | J127: 1999.87 | K127: 1926.7 | L127: 1843.25 | M127: 3.56096
A128: 119 | B128: IPCALAB | C128: 1016.4 | D128: 1017.05 | E128: 1008.00 | F128: 999.60 | G128: 990.55 | H128: 1025.45 | I128: 1034.50 | J128: 1042.90 | K128: 1026.1 | L128: 1008.65 | M128: 1.92001
A129: 120 | B129: JSWENERGY | C129: 337.65 | D129: 339.22 | E129: 323.48 | F129: 309.32 | G129: 293.58 | H129: 353.38 | I129: 369.12 | J129: 383.28 | K129: 354.95 | L129: 325.05 | M129: 8.5911
A130: 121 | B130: JSWSTEEL | C130: 746.4 | D130: 757.50 | E130: 725.00 | F130: 703.60 | G130: 671.10 | H130: 778.90 | I130: 811.40 | J130: 832.80 | K130: 790 | L130: 736.1 | M130: 73.01285
A131: 122 | B131: JINDALSTEL | C131: 553.75 | D131: 556.45 | E131: 543.00 | F131: 532.25 | G131: 518.80 | H131: 567.20 | I131: 580.65 | J131: 591.40 | K131: 569.9 | L131: 545.7 | M131: 55.97174
A132: 123 | B132: JUBLFOOD | C132: 546.2 | D132: 553.17 | E132: 523.03 | F132: 499.87 | G132: 469.73 | H132: 576.33 | I132: 606.47 | J132: 629.63 | K132: 583.3 | L132: 530 | M132: 72.31554
A133: 124 | B133: KOTAKBANK | C133: 1707.5 | D133: 1720.40 | E133: 1674.10 | F133: 1640.70 | G133: 1594.40 | H133: 1753.80 | I133: 1800.10 | J133: 1833.50 | K133: 1766.7 | L133: 1687 | M133: 23.89574
A134: 125 | B134: L&TFH | C134: 80.7 | D134: 81.25 | E134: 79.25 | F134: 77.80 | G134: 75.80 | H134: 82.70 | I134: 84.70 | J134: 86.15 | K134: 83.25 | L134: 79.8 | M134: 43.14975
A135: 126 | B135: LTTS | C135: 4209.7 | D135: 4261.35 | E135: 4109.15 | F135: 4008.60 | G135: 3856.40 | H135: 4361.90 | I135: 4514.10 | J135: 4614.65 | K135: 4413.55 | L135: 4160.8 | M135: 3.91367
A136: 127 | B136: LICHSGFIN | C136: 378.3 | D136: 379.25 | E136: 370.10 | F136: 361.90 | G136: 352.75 | H136: 387.45 | I136: 396.60 | J136: 404.80 | K136: 388.4 | L136: 371.05 | M136: 24.555
A137: 128 | B137: LTI | C137: 5472.35 | D137: 5587.12 | E137: 5250.63 | F137: 5028.92 | G137: 4692.43 | H137: 5808.83 | I137: 6145.32 | J137: 6367.03 | K137: 5923.6 | L137: 5365.4 | M137: 11.30004
A138: 129 | B138: LT | C138: 1705.75 | D138: 1717.83 | E138: 1674.92 | F138: 1644.08 | G138: 1601.17 | H138: 1748.67 | I138: 1791.58 | J138: 1822.42 | K138: 1760.75 | L138: 1687 | M138: 27.37766
A139: 130 | B139: LAURUSLABS | C139: 596.95 | D139: 602.60 | E139: 578.90 | F139: 560.85 | G139: 537.15 | H139: 620.65 | I139: 644.35 | J139: 662.40 | K139: 626.3 | L139: 584.55 | M139: 43.25478
A140: 131 | B140: LUPIN | C140: 769.5 | D140: 771.27 | E140: 759.23 | F140: 748.97 | G140: 736.93 | H140: 781.53 | I140: 793.57 | J140: 803.83 | K140: 783.3 | L140: 761 | M140: 16.27429
A141: 132 | B141: MRF | C141: 66361.4 | D141: 66652.98 | E141: 65508.42 | F141: 64655.43 | G141: 63510.87 | H141: 67505.97 | I141: 68650.53 | J141: 69503.52 | K141: 67797.55 | L141: 65800 | M141: 0.17383
A142: 133 | B142: MGL | C142: 809.6 | D142: 814.90 | E142: 792.65 | F142: 775.70 | G142: 753.45 | H142: 831.85 | I142: 854.10 | J142: 871.05 | K142: 837.15 | L142: 797.95 | M142: 3.63125
A143: 134 | B143: M&MFIN | C143: 179.25 | D143: 179.87 | E143: 175.38 | F143: 171.52 | G143: 167.03 | H143: 183.73 | I143: 188.22 | J143: 192.08 | K143: 184.35 | L143: 176 | M143: 56.81901
A144: 135 | B144: M&M | C144: 872.5 | D144: 875.13 | E144: 862.47 | F144: 852.43 | G144: 839.77 | H144: 885.17 | I144: 897.83 | J144: 907.87 | K144: 887.8 | L144: 865.1 | M144: 33.01212
A145: 136 | B145: MANAPPURAM | C145: 118.25 | D145: 119.58 | E145: 114.37 | F145: 110.48 | G145: 105.27 | H145: 123.47 | I145: 128.68 | J145: 132.57 | K145: 124.8 | L145: 115.7 | M145: 47.77423
A146: 137 | B146: MARICO | C146: 504.1 | D146: 509.72 | E146: 495.13 | F146: 486.17 | G146: 471.58 | H146: 518.68 | I146: 533.27 | J146: 542.23 | K146: 524.3 | L146: 500.75 | M146: 10.77806
A147: 138 | B147: MARUTI | C147: 7435.1 | D147: 7487.70 | E147: 7297.40 | F147: 7159.70 | G147: 6969.40 | H147: 7625.40 | I147: 7815.70 | J147: 7953.40 | K147: 7678 | L147: 7350 | M147: 4.2599
A148: 139 | B148: MFSL | C148: 741.25 | D148: 750.42 | E148: 716.83 | F148: 692.42 | G148: 658.83 | H148: 774.83 | I148: 808.42 | J148: 832.83 | K148: 784 | L148: 726 | M148: 6.05
A149: 140 | B149: MINDTREE | C149: 3635.65 | D149: 3758.98 | E149: 3438.42 | F149: 3241.18 | G149: 2920.62 | H149: 3956.22 | I149: 4276.78 | J149: 4474.02 | K149: 4079.55 | L149: 3561.75 | M149: 33.11835
A150: 141 | B150: MPHASIS | C150: 2857.05 | D150: 2886.52 | E150: 2798.03 | F150: 2739.02 | G150: 2650.53 | H150: 2945.53 | I150: 3034.02 | J150: 3093.03 | K150: 2975 | L150: 2827.5 | M150: 6.6702
A151: 142 | B151: MUTHOOTFIN | C151: 1303.5 | D151: 1312.83 | E151: 1280.67 | F151: 1257.83 | G151: 1225.67 | H151: 1335.67 | I151: 1367.83 | J151: 1390.67 | K151: 1345 | L151: 1290 | M151: 4.22307
A152: 143 | B152: NATCOPHARM | C152: 792.45 | D152: 795.15 | E152: 787.30 | F152: 782.15 | G152: 774.30 | H152: 800.30 | I152: 808.15 | J152: 813.30 | K152: 803 | L152: 790 | M152: 1.1733
A153: 144 | B153: NMDC | C153: 169.2 | D153: 170.12 | E153: 166.48 | F153: 163.77 | G153: 160.13 | H153: 172.83 | I153: 176.47 | J153: 179.18 | K153: 173.75 | L153: 167.4 | M153: 121.2221
A154: 145 | B154: NTPC | C154: 160.65 | D154: 162.17 | E154: 157.98 | F154: 155.32 | G154: 151.13 | H154: 164.83 | I154: 169.02 | J154: 171.68 | K154: 166.35 | L154: 159.5 | M154: 385.22118
A155: 146 | B155: NATIONALUM | C155: 119.6 | D155: 120.03 | E155: 116.82 | F155: 114.03 | G155: 110.82 | H155: 122.82 | I155: 126.03 | J155: 128.82 | K155: 123.25 | L155: 117.25 | M155: 148.80212
A156: 147 | B156: NAVINFLUOR | C156: 3906 | D156: 3949.75 | E156: 3811.80 | F156: 3717.60 | G156: 3579.65 | H156: 4043.95 | I156: 4181.90 | J156: 4276.10 | K156: 4087.7 | L156: 3855.55 | M156: 1.23623
A157: 148 | B157: NESTLEIND | C157: 17948.6 | D157: 18168.62 | E157: 17612.23 | F157: 17275.87 | G157: 16719.48 | H157: 18504.98 | I157: 19061.37 | J157: 19397.73 | K157: 18725 | L157: 17832.25 | M157: 0.65942
A158: 149 | B158: NAM-INDIA | C158: 320.3 | D158: 323.53 | E158: 313.77 | F158: 307.23 | G158: 297.47 | H158: 330.07 | I158: 339.83 | J158: 346.37 | K158: 333.3 | L158: 317 | M158: 3.14682
A159: 150 | B159: OBEROIRLTY | C159: 961.95 | D159: 969.32 | E159: 929.63 | F159: 897.32 | G159: 857.63 | H159: 1001.63 | I159: 1041.32 | J159: 1073.63 | K159: 1009 | L159: 937 | M159: 4.21519
A160: 151 | B160: ONGC | C160: 177.15 | D160: 177.65 | E160: 175.50 | F160: 173.85 | G160: 171.70 | H160: 179.30 | I160: 181.45 | J160: 183.10 | K160: 179.8 | L160: 176 | M160: 178.80666
A161: 152 | B161: OIL | C161: 240.35 | D161: 242.63 | E161: 234.27 | F161: 228.18 | G161: 219.82 | H161: 248.72 | I161: 257.08 | J161: 263.17 | K161: 251 | L161: 236.55 | M161: 51.8969
A162: 153 | B162: PIIND | C162: 2889.5 | D162: 2907.90 | E162: 2832.35 | F162: 2775.20 | G162: 2699.65 | H162: 2965.05 | I162: 3040.60 | J162: 3097.75 | K162: 2983.45 | L162: 2850.75 | M162: 2.30703
A163: 154 | B163: PAGEIND | C163: 45437.8 | D163: 45599.22 | E163: 44698.43 | F163: 43959.07 | G163: 43058.28 | H163: 46338.58 | I163: 47239.37 | J163: 47978.73 | K163: 46500 | L163: 44859.85 | M163: 0.25382
A164: 155 | B164: PETRONET | C164: 203.1 | D164: 203.95 | E164: 200.55 | F164: 198.00 | G164: 194.60 | H164: 206.50 | I164: 209.90 | J164: 212.45 | K164: 207.35 | L164: 201.4 | M164: 27.38352
A165: 156 | B165: PFIZER | C165: 4444.75 | D165: 4458.25 | E165: 4406.50 | F165: 4368.25 | G165: 4316.50 | H165: 4496.50 | I165: 4548.25 | J165: 4586.50 | K165: 4510 | L165: 4420 | M165: 0.34867
A166: 157 | B166: PIDILITIND | C166: 2328.55 | D166: 2345.25 | E166: 2288.30 | F166: 2248.05 | G166: 2191.10 | H166: 2385.50 | I166: 2442.45 | J166: 2482.70 | K166: 2402.2 | L166: 2305 | M166: 4.06353
A167: 158 | B167: PEL | C167: 2229.4 | D167: 2227.03 | E167: 2182.37 | F167: 2135.33 | G167: 2090.67 | H167: 2274.07 | I167: 2318.73 | J167: 2365.77 | K167: 2271.7 | L167: 2180 | M167: 4.69074
A168: 159 | B168: POLYCAB | C168: 2604.1 | D168: 2606.73 | E168: 2538.47 | F168: 2472.83 | G168: 2404.57 | H168: 2672.37 | I168: 2740.63 | J168: 2806.27 | K168: 2675 | L168: 2541.1 | M168: 2.97642
A169: 160 | B169: PFC | C169: 118.7 | D169: 119.03 | E169: 116.77 | F169: 114.83 | G169: 112.57 | H169: 120.97 | I169: 123.23 | J169: 125.17 | K169: 121.3 | L169: 117.1 | M169: 52.83892
A170: 161 | B170: POWERGRID | C170: 227.85 | D170: 229.23 | E170: 225.12 | F170: 222.38 | G170: 218.27 | H170: 231.97 | I170: 236.08 | J170: 238.82 | K170: 233.35 | L170: 226.5 | M170: 112.77707
A171: 162 | B171: PRESTIGE | C171: 488.15 | D171: 490.68 | E171: 478.67 | F171: 469.18 | G171: 457.17 | H171: 500.17 | I171: 512.18 | J171: 521.67 | K171: 502.7 | L171: 481.2 | M171: 11.0608
A172: 163 | B172: PGHH | C172: 14601 | D172: 14616.52 | E172: 14389.23 | F172: 14177.47 | G172: 13950.18 | H172: 14828.28 | I172: 15055.57 | J172: 15267.33 | K172: 14843.8 | L172: 14404.75 | M172: 0.03725
A173: 164 | B173: PNB | C173: 35.7 | D173: 35.83 | E173: 35.07 | F173: 34.43 | G173: 33.67 | H173: 36.47 | I173: 37.23 | J173: 37.87 | K173: 36.6 | L173: 35.2 | M173: 317.29898
A174: 165 | B174: RBLBANK | C174: 124.6 | D174: 126.43 | E174: 121.27 | F174: 117.93 | G174: 112.77 | H174: 129.77 | I174: 134.93 | J174: 138.27 | K174: 131.6 | L174: 123.1 | M174: 249.12957
A175: 166 | B175: RECLTD | C175: 129.45 | D175: 130.08 | E175: 127.37 | F175: 125.28 | G175: 122.57 | H175: 132.17 | I175: 134.88 | J175: 136.97 | K175: 132.8 | L175: 128 | M175: 27.07059
A176: 167 | B176: RELIANCE | C176: 2640.8 | D176: 2619.95 | E176: 2571.90 | F176: 2503.00 | G176: 2454.95 | H176: 2688.85 | I176: 2736.90 | J176: 2805.80 | K176: 2668 | L176: 2551.05 | M176: 120.64446
A177: 168 | B177: SBICARD | C177: 794.45 | D177: 799.00 | E177: 778.45 | F177: 762.45 | G177: 741.90 | H177: 815.00 | I177: 835.55 | J177: 851.55 | K177: 819.55 | L177: 783 | M177: 19.06979
A178: 169 | B178: SBILIFE | C178: 1124.7 | D178: 1140.55 | E178: 1096.15 | F178: 1067.60 | G178: 1023.20 | H178: 1169.10 | I178: 1213.50 | J178: 1242.05 | K178: 1184.95 | L178: 1112 | M178: 9.71382
A179: 170 | B179: SRF | C179: 2528.95 | D179: 2555.13 | E179: 2453.82 | F179: 2378.68 | G179: 2277.37 | H179: 2630.27 | I179: 2731.58 | J179: 2806.72 | K179: 2656.45 | L179: 2480 | M179: 5.52389
A180: 171 | B180: SANOFI | C180: 7015.5 | D180: 7088.08 | E180: 6931.22 | F180: 6846.93 | G180: 6690.07 | H180: 7172.37 | I180: 7329.23 | J180: 7413.52 | K180: 7244.95 | L180: 7003.8 | M180: 0.38831
A181: 172 | B181: SHREECEM | C181: 24860.9 | D181: 25095.22 | E181: 24415.08 | F181: 23969.27 | G181: 23289.13 | H181: 25541.03 | I181: 26221.17 | J181: 26666.98 | K181: 25775.35 | L181: 24649.4 | M181: 0.38327
A182: 173 | B182: SRTRANSFIN | C182: 1118.6 | D182: 1136.53 | E182: 1084.07 | F182: 1049.53 | G182: 997.07 | H182: 1171.07 | I182: 1223.53 | J182: 1258.07 | K182: 1189 | L182: 1102 | M182: 14.57853
A183: 174 | B183: SIEMENS | C183: 2382.05 | D183: 2404.23 | E183: 2328.82 | F183: 2275.58 | G183: 2200.17 | H183: 2457.47 | I183: 2532.88 | J183: 2586.12 | K183: 2479.65 | L183: 2351 | M183: 2.25034
A184: 175 | B184: SBIN | C184: 511.8 | D184: 512.62 | E184: 504.28 | F184: 496.77 | G184: 488.43 | H184: 520.13 | I184: 528.47 | J184: 535.98 | K184: 520.95 | L184: 505.1 | M184: 203.62934
A185: 176 | B185: SAIL | C185: 104.1 | D185: 104.87 | E185: 101.73 | F185: 99.37 | G185: 96.23 | H185: 107.23 | I185: 110.37 | J185: 112.73 | K185: 108 | L185: 102.5 | M185: 263.07915
A186: 177 | B186: SUNPHARMA | C186: 922 | D186: 924.93 | E186: 912.12 | F186: 902.23 | G186: 889.42 | H186: 934.82 | I186: 947.63 | J186: 957.52 | K186: 937.75 | L186: 915.05 | M186: 20.01066
A187: 178 | B187: SUNTV | C187: 498.85 | D187: 503.12 | E187: 490.73 | F187: 482.62 | G187: 470.23 | H187: 511.23 | I187: 523.62 | J187: 531.73 | K187: 515.5 | L187: 495 | M187: 8.51507
A188: 179 | B188: SYNGENE | C188: 614.5 | D188: 623.92 | E188: 599.43 | F188: 584.37 | G188: 559.88 | H188: 638.98 | I188: 663.47 | J188: 678.53 | K188: 648.4 | L188: 608.85 | M188: 3.80802
A189: 180 | B189: TVSMOTOR | C189: 640.6 | D189: 644.88 | E189: 629.77 | F189: 618.93 | G189: 603.82 | H189: 655.72 | I189: 670.83 | J189: 681.67 | K189: 660 | L189: 634.05 | M189: 6.90068
A190: 181 | B190: TATACHEM | C190: 968.55 | D190: 976.55 | E190: 944.00 | F190: 919.45 | G190: 886.90 | H190: 1001.10 | I190: 1033.65 | J190: 1058.20 | K190: 1009.1 | L190: 952 | M190: 11.4906
A191: 182 | B191: TATACOMM | C191: 1282.5 | D191: 1287.83 | E191: 1245.67 | F191: 1208.83 | G191: 1166.67 | H191: 1324.67 | I191: 1366.83 | J191: 1403.67 | K191: 1330 | L191: 1251 | M191: 7.61385
A192: 183 | B192: TCS | C192: 3471.9 | D192: 3491.53 | E192: 3419.52 | F192: 3367.13 | G192: 3295.12 | H192: 3543.92 | I192: 3615.93 | J192: 3668.32 | K192: 3563.55 | L192: 3439.15 | M192: 31.70014
A193: 184 | B193: TATACONSUM | C193: 791.35 | D193: 804.35 | E193: 771.85 | F193: 752.35 | G193: 719.85 | H193: 823.85 | I193: 856.35 | J193: 875.85 | K193: 836.85 | L193: 784.85 | M193: 24.60482
A194: 185 | B194: TATAELXSI | C194: 7693.15 | D194: 7771.05 | E194: 7502.10 | F194: 7311.05 | G194: 7042.10 | H194: 7962.10 | I194: 8231.05 | J194: 8422.10 | K194: 8040 | L194: 7580 | M194: 8.31426
A195: 186 | B195: TATAMOTORS | C195: 424.95 | D195: 427.40 | E195: 414.55 | F195: 404.15 | G195: 391.30 | H195: 437.80 | I195: 450.65 | J195: 461.05 | K195: 440.25 | L195: 417 | M195: 126.69041
A196: 187 | B196: TATAPOWER | C196: 246.45 | D196: 250.32 | E196: 238.63 | F196: 230.82 | G196: 219.13 | H196: 258.13 | I196: 269.82 | J196: 277.63 | K196: 262 | L196: 242.5 | M196: 534.83065
A197: 188 | B197: TATASTEEL | C197: 1326.6 | D197: 1334.08 | E197: 1301.52 | F197: 1276.43 | G197: 1243.87 | H197: 1359.17 | I197: 1391.73 | J197: 1416.82 | K197: 1366.65 | L197: 1309 | M197: 64.77219
A198: 189 | B198: TECHM | C198: 1301.2 | D198: 1316.23 | E198: 1270.62 | F198: 1240.03 | G198: 1194.42 | H198: 1346.82 | I198: 1392.43 | J198: 1423.02 | K198: 1361.85 | L198: 1285.65 | M198: 26.7736
A199: 190 | B199: RAMCOCEM | C199: 787.55 | D199: 788.87 | E199: 769.73 | F199: 751.92 | G199: 732.78 | H199: 806.68 | I199: 825.82 | J199: 843.63 | K199: 808 | L199: 771.05 | M199: 5.29198
A200: 191 | B200: TITAN | C200: 2452.6 | D200: 2471.40 | E200: 2422.20 | F200: 2391.80 | G200: 2342.60 | H200: 2501.80 | I200: 2551.00 | J200: 2581.40 | K200: 2520.6 | L200: 2441 | M200: 9.29834
A201: 192 | B201: TORNTPHARM | C201: 2840.35 | D201: 2853.18 | E201: 2802.42 | F201: 2764.48 | G201: 2713.72 | H201: 2891.12 | I201: 2941.88 | J201: 2979.82 | K201: 2903.95 | L201: 2815.25 | M201: 1.55
A202: 193 | B202: TORNTPOWER | C202: 547.6 | D202: 554.03 | E202: 535.57 | F202: 523.53 | G202: 505.07 | H202: 566.07 | I202: 584.53 | J202: 596.57 | K202: 572.5 | L202: 542 | M202: 8.16279
A203: 194 | B203: TRENT | C203: 1248.45 | D203: 1252.38 | E203: 1226.77 | F203: 1205.08 | G203: 1179.47 | H203: 1274.07 | I203: 1299.68 | J203: 1321.37 | K203: 1278 | L203: 1230.7 | M203: 15.75212
A204: 195 | B204: UPL | C204: 804.9 | D204: 809.60 | E204: 795.30 | F204: 785.70 | G204: 771.40 | H204: 819.20 | I204: 833.50 | J204: 843.10 | K204: 823.9 | L204: 800 | M204: 29.07063
A205: 196 | B205: ULTRACEMCO | C205: 6585.7 | D205: 6618.67 | E205: 6473.08 | F205: 6360.47 | G205: 6214.88 | H205: 6731.28 | I205: 6876.87 | J205: 6989.48 | K205: 6764.25 | L205: 6506.05 | M205: 3.53426
... 29 more rows

Sheet MidCap Intra
L5: Back To Main Page
A6: FOR INTRA DAY TRADING | K6: =Main!B10 -> 2022-04-20
A9: Sr.no | B9: Scrip | C9: CLOSE RATE | D9: Pivot Point | E9: Supports | H9: Resistances
E10: S1 | F10: S2 | G10: S3 | H10: R1 | I10: R2 | J10: R3 | K10: HIGH | L10: LOW | M10: Total Trade Quanity in Lakhs
A11: 1 | B11: 3MINDIA | C11: 21257.9 | D11: 21355.97 | E11: 20911.93 | F11: 20565.97 | G11: 20121.93 | H11: 21701.93 | I11: 22145.97 | J11: 22491.93 | K11: 21800 | L11: 21010 | M11: 0.04248
A12: 2 | B12: AARTIDRUGS | C12: 489.15 | D12: 493.40 | E12: 478.75 | F12: 468.35 | G12: 453.70 | H12: 503.80 | I12: 518.45 | J12: 528.85 | K12: 508.05 | L12: 483 | M12: 1.02544
A13: 3 | B13: AARTIIND | C13: 939.2 | D13: 938.87 | E13: 923.43 | F13: 907.67 | G13: 892.23 | H13: 954.63 | I13: 970.07 | J13: 985.83 | K13: 954.3 | L13: 923.1 | M13: 5.08256
A14: 4 | B14: AAVAS | C14: 2456.7 | D14: 2467.52 | E14: 2385.03 | F14: 2313.37 | G14: 2230.88 | H14: 2539.18 | I14: 2621.67 | J14: 2693.33 | K14: 2550 | L14: 2395.85 | M14: 1.2247
A15: 5 | B15: ABB | C15: 2152.2 | D15: 2175.73 | E15: 2101.47 | F15: 2050.73 | G15: 1976.47 | H15: 2226.47 | I15: 2300.73 | J15: 2351.47 | K15: 2250 | L15: 2125 | M15: 0.76918
A16: 6 | B16: ABBOTINDIA | C16: 16944.8 | D16: 17073.93 | E16: 16670.87 | F16: 16396.93 | G16: 15993.87 | H16: 17347.87 | I16: 17750.93 | J16: 18024.87 | K16: 17477 | L16: 16800 | M16: 0.10946
A17: 7 | B17: ABCAPITAL | C17: 109.75 | D17: 111.15 | E17: 106.60 | F17: 103.45 | G17: 98.90 | H17: 114.30 | I17: 118.85 | J17: 122.00 | K17: 115.7 | L17: 108 | M17: 69.51986
A18: 8 | B18: ABFRL | C18: 292.85 | D18: 292.22 | E18: 283.63 | F18: 274.42 | G18: 265.83 | H18: 301.43 | I18: 310.02 | J18: 319.23 | K18: 300.8 | L18: 283 | M18: 25.34588
A19: 9 | B19: ACC | C19: 2056.5 | D19: 2084.88 | E19: 1995.17 | F19: 1933.83 | G19: 1844.12 | H19: 2146.22 | I19: 2235.93 | J19: 2297.27 | K19: 2174.6 | L19: 2023.55 | M19: 8.2474
A20: 10 | B20: ADANIENT | C20: 2168.3 | D20: 2187.80 | E20: 2120.60 | F20: 2072.90 | G20: 2005.70 | H20: 2235.50 | I20: 2302.70 | J20: 2350.40 | K20: 2255 | L20: 2140.1 | M20: 16.39219
A21: 11 | B21: ADANIGREEN | C21: 2911.95 | D21: 2903.98 | E21: 2757.97 | F21: 2603.98 | G21: 2457.97 | H21: 3057.97 | I21: 3203.98 | J21: 3357.97 | K21: 3050 | L21: 2750 | M21: 25.29522
A22: 12 | B22: ADANIPORTS | C22: 819.3 | D22: 825.52 | E22: 800.78 | F22: 782.27 | G22: 757.53 | H22: 844.03 | I22: 868.77 | J22: 887.28 | K22: 850.25 | L22: 807 | M22: 44.7232
A23: 13 | B23: ADANITRANS | C23: 2598.05 | D23: 2622.62 | E23: 2436.48 | F23: 2274.92 | G23: 2088.78 | H23: 2784.18 | I23: 2970.32 | J23: 3131.88 | K23: 2808.75 | L23: 2461.05 | M23: 7.43147
A24: 14 | B24: ADVENZYMES | C24: 316.3 | D24: 317.63 | E24: 306.67 | F24: 297.03 | G24: 286.07 | H24: 327.27 | I24: 338.23 | J24: 347.87 | K24: 328.6 | L24: 308 | M24: 4.19746
A25: 15 | B25: AEGISCHEM | C25: 226.05 | D25: 228.05 | E25: 213.55 | F25: 201.05 | G25: 186.55 | H25: 240.55 | I25: 255.05 | J25: 267.55 | K25: 242.55 | L25: 215.55 | M25: 7.1026
A26: 16 | B26: AFFLE | C26: 1207.55 | D26: 1218.48 | E26: 1189.07 | F26: 1170.58 | G26: 1141.17 | H26: 1236.97 | I26: 1266.38 | J26: 1284.87 | K26: 1247.9 | L26: 1200 | M26: 2.51359
A27: 17 | B27: AIAENG | C27: 1809.25 | D27: 1801.92 | E27: 1764.38 | F27: 1719.52 | G27: 1681.98 | H27: 1846.78 | I27: 1884.32 | J27: 1929.18 | K27: 1839.45 | L27: 1757.05 | M27: 1.87974
A28: 18 | B28: AJANTPHARM | C28: 1763 | D28: 1766.67 | E28: 1734.33 | F28: 1705.67 | G28: 1673.33 | H28: 1795.33 | I28: 1827.67 | J28: 1856.33 | K28: 1799 | L28: 1738 | M28: 1.40735
A29: 19 | B29: ALEMBICLTD | C29: 80.35 | D29: 80.65 | E29: 78.70 | F29: 77.05 | G29: 75.10 | H29: 82.30 | I29: 84.25 | J29: 85.90 | K29: 82.6 | L29: 79 | M29: 4.6393
A30: 20 | B30: ALKEM | C30: 3374.85 | D30: 3418.80 | E30: 3322.60 | F30: 3270.35 | G30: 3174.15 | H30: 3471.05 | I30: 3567.25 | J30: 3619.50 | K30: 3515 | L30: 3366.55 | M30: 0.87763
A31: 21 | B31: ALKYLAMINE | C31: 3146.55 | D31: 3140.90 | E31: 3106.65 | F31: 3066.75 | G31: 3032.50 | H31: 3180.80 | I31: 3215.05 | J31: 3254.95 | K31: 3175.15 | L31: 3101 | M31: 0.39087
A32: 22 | B32: ALOKINDS | C32: 24.65 | D32: 24.90 | E32: 23.95 | F32: 23.25 | G32: 22.30 | H32: 25.60 | I32: 26.55 | J32: 27.25 | K32: 25.85 | L32: 24.2 | M32: 176.24345
A33: 23 | B33: AMARAJABAT | C33: 559.35 | D33: 565.53 | E33: 546.62 | F33: 533.88 | G33: 514.97 | H33: 578.27 | I33: 597.18 | J33: 609.92 | K33: 584.45 | L33: 552.8 | M33: 7.46926
A34: 24 | B34: AMBER | C34: 3621 | D34: 3612.82 | E34: 3558.18 | F34: 3495.37 | G34: 3440.73 | H34: 3675.63 | I34: 3730.27 | J34: 3793.08 | K34: 3667.45 | L34: 3550 | M34: 1.04568
A35: 25 | B35: AMBUJACEM | C35: 354.25 | D35: 358.42 | E35: 346.83 | F35: 339.42 | G35: 327.83 | H35: 365.83 | I35: 377.42 | J35: 384.83 | K35: 370 | L35: 351 | M35: 99.71239
A36: 26 | B36: ANGELONE | C36: 1700.25 | D36: 1704.08 | E36: 1668.17 | F36: 1636.08 | G36: 1600.17 | H36: 1736.17 | I36: 1772.08 | J36: 1804.17 | K36: 1740 | L36: 1672 | M36: 11.07718
A37: 27 | B37: ANURAS | C37: 845.55 | D37: 849.22 | E37: 828.43 | F37: 811.32 | G37: 790.53 | H37: 866.33 | I37: 887.12 | J37: 904.23 | K37: 870 | L37: 832.1 | M37: 0.74972
A38: 28 | B38: APLAPOLLO | C38: 1041.55 | D38: 1046.60 | E38: 1024.95 | F38: 1008.35 | G38: 986.70 | H38: 1063.20 | I38: 1084.85 | J38: 1101.45 | K38: 1068.25 | L38: 1030 | M38: 4.339
A39: 29 | B39: APLLTD | C39: 749.7 | D39: 756.57 | E39: 738.13 | F39: 726.57 | G39: 708.13 | H39: 768.13 | I39: 786.57 | J39: 798.13 | K39: 775 | L39: 745 | M39: 3.14498
A40: 30 | B40: APOLLOHOSP | C40: 4816.35 | D40: 4756.58 | E40: 4643.17 | F40: 4469.98 | G40: 4356.57 | H40: 4929.77 | I40: 5043.18 | J40: 5216.37 | K40: 4870 | L40: 4583.4 | M40: 17.13344
A41: 31 | B41: APOLLOTYRE | C41: 189.2 | D41: 190.00 | E41: 186.20 | F41: 183.20 | G41: 179.40 | H41: 193.00 | I41: 196.80 | J41: 199.80 | K41: 193.8 | L41: 187 | M41: 22.90054
A42: 32 | B42: ASAHIINDIA | C42: 441.25 | D42: 449.13 | E42: 423.17 | F42: 405.08 | G42: 379.12 | H42: 467.22 | I42: 493.18 | J42: 511.27 | K42: 475.1 | L42: 431.05 | M42: 1.94265
A43: 33 | B43: ASHOKA | C43: 88.75 | D43: 89.15 | E43: 87.60 | F43: 86.45 | G43: 84.90 | H43: 90.30 | I43: 91.85 | J43: 93.00 | K43: 90.7 | L43: 88 | M43: 5.07601
A44: 34 | B44: ASHOKLEY | C44: 124.5 | D44: 125.65 | E44: 122.05 | F44: 119.60 | G44: 116.00 | H44: 128.10 | I44: 131.70 | J44: 134.15 | K44: 129.25 | L44: 123.2 | M44: 72.47121
A45: 35 | B45: ASIANPAINT | C45: 2991.2 | D45: 3006.80 | E45: 2954.40 | F45: 2917.60 | G45: 2865.20 | H45: 3043.60 | I45: 3096.00 | J45: 3132.80 | K45: 3059.2 | L45: 2970 | M45: 7.49782
A46: 36 | B46: ASTERDM | C46: 183.6 | D46: 184.87 | E46: 180.23 | F46: 176.87 | G46: 172.23 | H46: 188.23 | I46: 192.87 | J46: 196.23 | K46: 189.5 | L46: 181.5 | M46: 3.65455
A47: 37 | B47: ASTRAL | C47: 2088.95 | D47: 2094.98 | E47: 2054.97 | F47: 2020.98 | G47: 1980.97 | H47: 2128.97 | I47: 2168.98 | J47: 2202.97 | K47: 2135 | L47: 2061 | M47: 3.71223
A48: 38 | B48: ASTRAZEN | C48: 2732.2 | D48: 2746.08 | E48: 2718.12 | F48: 2704.03 | G48: 2676.07 | H48: 2760.17 | I48: 2788.13 | J48: 2802.22 | K48: 2774.05 | L48: 2732 | M48: 0.05908
A49: 39 | B49: ATGL | C49: 2369.4 | D49: 2407.13 | E49: 2262.27 | F49: 2155.13 | G49: 2010.27 | H49: 2514.27 | I49: 2659.13 | J49: 2766.27 | K49: 2552 | L49: 2300 | M49: 4.20809
A50: 40 | B50: ATUL | C50: 9826.45 | D50: 9864.17 | E50: 9718.43 | F50: 9610.42 | G50: 9464.68 | H50: 9972.18 | I50: 10117.92 | J50: 10225.93 | K50: 10009.9 | L50: 9756.15 | M50: 0.31029
A51: 41 | B51: AUBANK | C51: 1420.5 | D51: 1425.12 | E51: 1390.48 | F51: 1360.47 | G51: 1325.83 | H51: 1455.13 | I51: 1489.77 | J51: 1519.78 | K51: 1459.75 | L51: 1395.1 | M51: 45.85249
A52: 42 | B52: AUROPHARMA | C52: 662.15 | D52: 666.40 | E52: 647.75 | F52: 633.35 | G52: 614.70 | H52: 680.80 | I52: 699.45 | J52: 713.85 | K52: 685.05 | L52: 652 | M52: 15.32926
A53: 43 | B53: AVANTIFEED | C53: 462.95 | D53: 471.58 | E53: 451.37 | F53: 439.78 | G53: 419.57 | H53: 483.17 | I53: 503.38 | J53: 514.97 | K53: 491.8 | L53: 460 | M53: 3.31959
A54: 44 | B54: AXISBANK | C54: 797.8 | D54: 799.85 | E54: 783.50 | F54: 769.20 | G54: 752.85 | H54: 814.15 | I54: 830.50 | J54: 844.80 | K54: 816.2 | L54: 785.55 | M54: 87.11816
A55: 45 | B55: BAJAJ-AUTO | C55: 3657.15 | D55: 3683.37 | E55: 3592.13 | F55: 3527.12 | G55: 3435.88 | H55: 3748.38 | I55: 3839.62 | J55: 3904.63 | K55: 3774.6 | L55: 3618.35 | M55: 2.11918
A56: 46 | B56: BAJAJCON | C56: 168.35 | D56: 170.18 | E56: 163.87 | F56: 159.38 | G56: 153.07 | H56: 174.67 | I56: 180.98 | J56: 185.47 | K56: 176.5 | L56: 165.7 | M56: 3.85986
A57: 47 | B57: BAJAJELEC | C57: 1099.8 | D57: 1101.45 | E57: 1059.15 | F57: 1018.50 | G57: 976.20 | H57: 1142.10 | I57: 1184.40 | J57: 1225.05 | K57: 1143.75 | L57: 1060.8 | M57: 0.60149
A58: 48 | B58: BAJAJFINSV | C58: 15720.55 | D58: 15797.35 | E58: 15514.70 | F58: 15308.85 | G58: 15026.20 | H58: 16003.20 | I58: 16285.85 | J58: 16491.70 | K58: 16080 | L58: 15591.5 | M58: 2.59696
A59: 49 | B59: BAJAJHLDNG | C59: 5191.3 | D59: 5225.60 | E59: 5074.20 | F59: 4957.10 | G59: 4805.70 | H59: 5342.70 | I59: 5494.10 | J59: 5611.20 | K59: 5377 | L59: 5108.5 | M59: 2.08772
A60: 50 | B60: BAJFINANCE | C60: 7259.55 | D60: 7284.62 | E60: 7125.93 | F60: 6992.32 | G60: 6833.63 | H60: 7418.23 | I60: 7576.92 | J60: 7710.53 | K60: 7443.3 | L60: 7151 | M60: 11.9111
A61: 51 | B61: BALAMINES | C61: 3169.75 | D61: 3200.95 | E61: 3116.90 | F61: 3064.05 | G61: 2980.00 | H61: 3253.80 | I61: 3337.85 | J61: 3390.70 | K61: 3285 | L61: 3148.1 | M61: 0.48314
A62: 52 | B62: BALKRISIND | C62: 2097.95 | D62: 2114.97 | E62: 2057.98 | F62: 2018.02 | G62: 1961.03 | H62: 2154.93 | I62: 2211.92 | J62: 2251.88 | K62: 2171.95 | L62: 2075 | M62: 4.22178
A63: 53 | B63: BALRAMCHIN | C63: 484.8 | D63: 490.12 | E63: 468.48 | F63: 452.17 | G63: 430.53 | H63: 506.43 | I63: 528.07 | J63: 544.38 | K63: 511.75 | L63: 473.8 | M63: 51.87571
A64: 54 | B64: BANDHANBNK | C64: 323.6 | D64: 325.15 | E64: 315.30 | F64: 307.00 | G64: 297.15 | H64: 333.45 | I64: 343.30 | J64: 351.60 | K64: 335 | L64: 316.85 | M64: 132.63248
A65: 55 | B65: BANKBARODA | C65: 113.05 | D65: 113.78 | E65: 110.87 | F65: 108.68 | G65: 105.77 | H65: 115.97 | I65: 118.88 | J65: 121.07 | K65: 116.7 | L65: 111.6 | M65: 298.39721
A66: 56 | B66: BANKINDIA | C66: 49.45 | D66: 49.60 | E66: 48.35 | F66: 47.25 | G66: 46.00 | H66: 50.70 | I66: 51.95 | J66: 53.05 | K66: 50.85 | L66: 48.5 | M66: 33.05214
A67: 57 | B67: BASF | C67: 2706.35 | D67: 2717.12 | E67: 2680.23 | F67: 2654.12 | G67: 2617.23 | H67: 2743.23 | I67: 2780.12 | J67: 2806.23 | K67: 2754 | L67: 2691 | M67: 0.14826
A68: 58 | B68: BATAINDIA | C68: 1925.6 | D68: 1938.50 | E68: 1887.10 | F68: 1848.60 | G68: 1797.20 | H68: 1977.00 | I68: 2028.40 | J68: 2066.90 | K68: 1989.9 | L68: 1900 | M68: 4.23957
A69: 59 | B69: BAYERCROP | C69: 4888.4 | D69: 4896.17 | E69: 4817.38 | F69: 4746.37 | G69: 4667.58 | H69: 4967.18 | I69: 5045.97 | J69: 5116.98 | K69: 4974.95 | L69: 4825.15 | M69: 0.0425
A70: 60 | B70: BBTC | C70: 891.5 | D70: 897.83 | E70: 873.67 | F70: 855.83 | G70: 831.67 | H70: 915.67 | I70: 939.83 | J70: 957.67 | K70: 922 | L70: 880 | M70: 0.53465
A71: 61 | B71: BDL | C71: 827.9 | D71: 847.63 | E71: 790.37 | F71: 752.83 | G71: 695.57 | H71: 885.17 | I71: 942.43 | J71: 979.97 | K71: 904.9 | L71: 810.1 | M71: 56.0292
A72: 62 | B72: BEL | C72: 250.3 | D72: 252.62 | E72: 245.73 | F72: 241.17 | G72: 234.28 | H72: 257.18 | I72: 264.07 | J72: 268.63 | K72: 259.5 | L72: 248.05 | M72: 130.64282
A73: 63 | B73: BEML | C73: 1831.35 | D73: 1847.15 | E73: 1764.50 | F73: 1697.65 | G73: 1615.00 | H73: 1914.00 | I73: 1996.65 | J73: 2063.50 | K73: 1929.8 | L73: 1780.3 | M73: 3.35058
A74: 64 | B74: BERGEPAINT | C74: 702.7 | D74: 709.18 | E74: 689.77 | F74: 676.83 | G74: 657.42 | H74: 722.12 | I74: 741.53 | J74: 754.47 | K74: 728.6 | L74: 696.25 | M74: 2.4376
A75: 65 | B75: BHARATFORG | C75: 725.95 | D75: 728.92 | E75: 715.33 | F75: 704.72 | G75: 691.13 | H75: 739.53 | I75: 753.12 | J75: 763.73 | K75: 742.5 | L75: 718.3 | M75: 11.18319
A76: 66 | B76: BHARATRAS | C76: 13198.4 | D76: 13330.97 | E76: 12967.43 | F76: 12736.47 | G76: 12372.93 | H76: 13561.93 | I76: 13925.47 | J76: 14156.43 | K76: 13694.5 | L76: 13100 | M76: 0.04505
A77: 67 | B77: BHARTIARTL | C77: 723.5 | D77: 726.45 | E77: 713.90 | F77: 704.30 | G77: 691.75 | H77: 736.05 | I77: 748.60 | J77: 758.20 | K77: 739 | L77: 716.85 | M77: 99.5706
A78: 68 | B78: BHEL | C78: 53.55 | D78: 54.03 | E78: 52.17 | F78: 50.78 | G78: 48.92 | H78: 55.42 | I78: 57.28 | J78: 58.67 | K78: 55.9 | L78: 52.65 | M78: 265.07027
A79: 69 | B79: BIOCON | C79: 337.95 | D79: 339.80 | E79: 331.15 | F79: 324.35 | G79: 315.70 | H79: 346.60 | I79: 355.25 | J79: 362.05 | K79: 348.45 | L79: 333 | M79: 24.38919
A80: 70 | B80: BIRLACORPN | C80: 1116.15 | D80: 1124.02 | E80: 1104.33 | F80: 1092.52 | G80: 1072.83 | H80: 1135.83 | I80: 1155.52 | J80: 1167.33 | K80: 1143.7 | L80: 1112.2 | M80: 0.99094
A81: 71 | B81: BLUEDART | C81: 6514.55 | D81: 6537.13 | E81: 6414.27 | F81: 6313.98 | G81: 6191.12 | H81: 6637.42 | I81: 6760.28 | J81: 6860.57 | K81: 6660 | L81: 6436.85 | M81: 0.07865
A82: 72 | B82: BLUESTARCO | C82: 1143.85 | D82: 1148.95 | E82: 1122.90 | F82: 1101.95 | G82: 1075.90 | H82: 1169.90 | I82: 1195.95 | J82: 1216.90 | K82: 1175 | L82: 1128 | M82: 1.639
A83: 73 | B83: BOSCHLTD | C83: 14127.55 | D83: 14287.60 | E83: 13883.05 | F83: 13638.55 | G83: 13234.00 | H83: 14532.10 | I83: 14936.65 | J83: 15181.15 | K83: 14692.15 | L83: 14043.1 | M83: 0.25638
A84: 74 | B84: BPCL | C84: 375.85 | D84: 377.57 | E84: 371.28 | F84: 366.72 | G84: 360.43 | H84: 382.13 | I84: 388.42 | J84: 392.98 | K84: 383.85 | L84: 373 | M84: 57.96327
A85: 75 | B85: BRIGADE | C85: 484.15 | D85: 485.70 | E85: 474.45 | F85: 464.75 | G85: 453.50 | H85: 495.40 | I85: 506.65 | J85: 516.35 | K85: 496.95 | L85: 476 | M85: 1.12041
A86: 76 | B86: BRITANNIA | C86: 3267.9 | D86: 3300.40 | E86: 3212.80 | F86: 3157.70 | G86: 3070.10 | H86: 3355.50 | I86: 3443.10 | J86: 3498.20 | K86: 3388 | L86: 3245.3 | M86: 2.9668
A87: 77 | B87: BSE | C87: 857.75 | D87: 862.80 | E87: 835.90 | F87: 814.05 | G87: 787.15 | H87: 884.65 | I87: 911.55 | J87: 933.40 | K87: 889.7 | L87: 840.95 | M87: 5.31771
A88: 78 | B88: BSOFT | C88: 425.9 | D88: 426.90 | E88: 413.00 | F88: 400.10 | G88: 386.20 | H88: 439.80 | I88: 453.70 | J88: 466.60 | K88: 440.8 | L88: 414 | M88: 35.18154
A89: 79 | B89: INTELLECT | C89: 829.65 | D89: 845.57 | E89: 801.13 | F89: 772.62 | G89: 728.18 | H89: 874.08 | I89: 918.52 | J89: 947.03 | K89: 890 | L89: 817.05 | M89: 5.30302
A90: 80 | B90: CAMS | C90: 2563.75 | D90: 2573.25 | E90: 2531.50 | F90: 2499.25 | G90: 2457.50 | H90: 2605.50 | I90: 2647.25 | J90: 2679.50 | K90: 2615 | L90: 2541 | M90: 1.33448
A91: 81 | B91: CANBK | C91: 234.65 | D91: 236.35 | E91: 229.25 | F91: 223.85 | G91: 216.75 | H91: 241.75 | I91: 248.85 | J91: 254.25 | K91: 243.45 | L91: 230.95 | M91: 88.88785
A92: 82 | B92: CANFINHOME | C92: 620.25 | D92: 625.75 | E92: 608.70 | F92: 597.15 | G92: 580.10 | H92: 637.30 | I92: 654.35 | J92: 665.90 | K92: 642.8 | L92: 614.2 | M92: 4.87445
A93: 83 | B93: CAPLIPOINT | C93: 773.7 | D93: 777.98 | E93: 760.72 | F93: 747.73 | G93: 730.47 | H93: 790.97 | I93: 808.23 | J93: 821.22 | K93: 795.25 | L93: 765 | M93: 0.50861
A94: 84 | B94: CARBORUNIV | C94: 760 | D94: 762.60 | E94: 751.40 | F94: 742.80 | G94: 731.60 | H94: 771.20 | I94: 782.40 | J94: 791.00 | K94: 773.8 | L94: 754 | M94: 0.55518
A95: 85 | B95: CASTROLIND | C95: 104.8 | D95: 104.98 | E95: 104.22 | F95: 103.63 | G95: 102.87 | H95: 105.57 | I95: 106.33 | J95: 106.92 | K95: 105.75 | L95: 104.4 | M95: 12.58378
A96: 86 | B96: CCL | C96: 379.4 | D96: 386.18 | E96: 362.72 | F96: 346.03 | G96: 322.57 | H96: 402.87 | I96: 426.33 | J96: 443.02 | K96: 409.65 | L96: 369.5 | M96: 4.4415
A97: 87 | B97: CDSL | C97: 1404.2 | D97: 1416.40 | E97: 1383.80 | F97: 1363.40 | G97: 1330.80 | H97: 1436.80 | I97: 1469.40 | J97: 1489.80 | K97: 1449 | L97: 1396 | M97: 3.61335
A98: 88 | B98: CEATLTD | C98: 1088.15 | D98: 1096.55 | E98: 1071.60 | F98: 1055.05 | G98: 1030.10 | H98: 1113.10 | I98: 1138.05 | J98: 1154.60 | K98: 1121.5 | L98: 1080 | M98: 1.38718
A99: 89 | B99: CENTRALBK | C99: 19.85 | D99: 19.80 | E99: 19.40 | F99: 18.95 | G99: 18.55 | H99: 20.25 | I99: 20.65 | J99: 21.10 | K99: 20.2 | L99: 19.35 | M99: 50.11896
A100: 90 | B100: CENTURYPLY | C100: 650.15 | D100: 655.75 | E100: 635.90 | F100: 621.65 | G100: 601.80 | H100: 670.00 | I100: 689.85 | J100: 704.10 | K100: 675.6 | L100: 641.5 | M100: 1.16039
A101: 91 | B101: CENTURYTEX | C101: 857.2 | D101: 874.13 | E101: 832.57 | F101: 807.93 | G101: 766.37 | H101: 898.77 | I101: 940.33 | J101: 964.97 | K101: 915.7 | L101: 849.5 | M101: 3.65321
A102: 92 | B102: CERA | C102: 4508.9 | D102: 4512.85 | E102: 4430.75 | F102: 4352.60 | G102: 4270.50 | H102: 4591.00 | I102: 4673.10 | J102: 4751.25 | K102: 4594.95 | L102: 4434.7 | M102: 0.21062
A103: 93 | B103: CESC | C103: 84.65 | D103: 85.32 | E103: 82.63 | F103: 80.62 | G103: 77.93 | H103: 87.33 | I103: 90.02 | J103: 92.03 | K103: 88 | L103: 83.3 | M103: 53.77343
A104: 94 | B104: CGCL | C104: 727.6 | D104: 742.53 | E104: 685.07 | F104: 642.53 | G104: 585.07 | H104: 785.07 | I104: 842.53 | J104: 885.07 | K104: 800 | L104: 700 | M104: 20.47377
A105: 95 | B105: CGPOWER | C105: 194.6 | D105: 195.87 | E105: 188.73 | F105: 182.87 | G105: 175.73 | H105: 201.73 | I105: 208.87 | J105: 214.73 | K105: 203 | L105: 190 | M105: 14.66329
A106: 96 | B106: CHALET | C106: 288.35 | D106: 292.27 | E106: 277.58 | F106: 266.82 | G106: 252.13 | H106: 303.03 | I106: 317.72 | J106: 328.48 | K106: 306.95 | L106: 281.5 | M106: 2.52615
A107: 97 | B107: CHAMBLFERT | C107: 456.5 | D107: 469.90 | E107: 423.80 | F107: 391.10 | G107: 345.00 | H107: 502.60 | I107: 548.70 | J107: 581.40 | K107: 516 | L107: 437.2 | M107: 84.36989
A108: 98 | B108: CHOLAFIN | C108: 736.85 | D108: 741.98 | E108: 722.62 | F108: 708.38 | G108: 689.02 | H108: 756.22 | I108: 775.58 | J108: 789.82 | K108: 761.35 | L108: 727.75 | M108: 40.21576
A109: 99 | B109: CHOLAHLDNG | C109: 641.45 | D109: 647.82 | E109: 629.63 | F109: 617.82 | G109: 599.63 | H109: 659.63 | I109: 677.82 | J109: 689.63 | K109: 666 | L109: 636 | M109: 3.81946
A110: 100 | B110: CIPLA | C110: 1000.3 | D110: 1006.52 | E110: 974.13 | F110: 947.97 | G110: 915.58 | H110: 1032.68 | I110: 1065.07 | J110: 1091.23 | K110: 1038.9 | L110: 980.35 | M110: 18.1389
A111: 101 | B111: COALINDIA | C111: 197.75 | D111: 197.22 | E111: 191.18 | F111: 184.62 | G111: 178.58 | H111: 203.78 | I111: 209.82 | J111: 216.38 | K111: 203.25 | L111: 190.65 | M111: 593.4171
A112: 102 | B112: COCHINSHIP | C112: 338.4 | D112: 342.10 | E112: 327.30 | F112: 316.20 | G112: 301.40 | H112: 353.20 | I112: 368.00 | J112: 379.10 | K112: 356.9 | L112: 331 | M112: 3.9563
A113: 103 | B113: COFORGE | C113: 4027.3 | D113: 4057.23 | E113: 3947.12 | F113: 3866.93 | G113: 3756.82 | H113: 4137.42 | I113: 4247.53 | J113: 4327.72 | K113: 4167.35 | L113: 3977.05 | M113: 3.29391
A114: 104 | B114: COLPAL | C114: 1502.6 | D114: 1520.87 | E114: 1467.73 | F114: 1432.87 | G114: 1379.73 | H114: 1555.73 | I114: 1608.87 | J114: 1643.73 | K114: 1574 | L114: 1486 | M114: 4.49243
A115: 105 | B115: CONCOR | C115: 654.45 | D115: 661.55 | E115: 638.30 | F115: 622.15 | G115: 598.90 | H115: 677.70 | I115: 700.95 | J115: 717.10 | K115: 684.8 | L115: 645.4 | M115: 10.00156
A116: 106 | B116: COROMANDEL | C116: 832.4 | D116: 839.27 | E116: 812.13 | F116: 791.87 | G116: 764.73 | H116: 859.53 | I116: 886.67 | J116: 906.93 | K116: 866.4 | L116: 819 | M116: 5.11141
A117: 107 | B117: CREDITACC | C117: 999 | D117: 1006.25 | E117: 967.75 | F117: 936.50 | G117: 898.00 | H117: 1037.50 | I117: 1076.00 | J117: 1107.25 | K117: 1044.75 | L117: 975 | M117: 1.96256
A118: 108 | B118: CRISIL | C118: 3055.3 | D118: 3119.65 | E118: 2969.30 | F118: 2883.30 | G118: 2732.95 | H118: 3205.65 | I118: 3356.00 | J118: 3442.00 | K118: 3270 | L118: 3033.65 | M118: 0.29568
A119: 109 | B119: CROMPTON | C119: 374.2 | D119: 375.85 | E119: 368.50 | F119: 362.80 | G119: 355.45 | H119: 381.55 | I119: 388.90 | J119: 394.60 | K119: 383.2 | L119: 370.15 | M119: 16.54617
A120: 110 | B120: CSBBANK | C120: 218.25 | D120: 219.58 | E120: 216.67 | F120: 215.08 | G120: 212.17 | H120: 221.17 | I120: 224.08 | J120: 225.67 | K120: 222.5 | L120: 218 | M120: 2.24708
A121: 111 | B121: CUB | C121: 132.4 | D121: 134.45 | E121: 128.95 | F121: 125.50 | G121: 120.00 | H121: 137.90 | I121: 143.40 | J121: 146.85 | K121: 139.95 | L121: 131 | M121: 15.28228
A122: 112 | B122: CUMMINSIND | C122: 1067.7 | D122: 1076.27 | E122: 1052.43 | F122: 1037.17 | G122: 1013.33 | H122: 1091.53 | I122: 1115.37 | J122: 1130.63 | K122: 1100.1 | L122: 1061 | M122: 5.18913
A123: 113 | B123: CYIENT | C123: 828.45 | D123: 834.88 | E123: 820.57 | F123: 812.68 | G123: 798.37 | H123: 842.77 | I123: 857.08 | J123: 864.97 | K123: 849.2 | L123: 827 | M123: 2.07888
A124: 114 | B124: DABUR | C124: 549 | D124: 554.90 | E124: 540.10 | F124: 531.20 | G124: 516.40 | H124: 563.80 | I124: 578.60 | J124: 587.50 | K124: 569.7 | L124: 546 | M124: 32.25494
A125: 115 | B125: DALBHARAT | C125: 1573.05 | D125: 1578.27 | E125: 1532.83 | F125: 1492.62 | G125: 1447.18 | H125: 1618.48 | I125: 1663.92 | J125: 1704.13 | K125: 1623.7 | L125: 1538.05 | M125: 1.09892
A126: 116 | B126: DBL | C126: 277.25 | D126: 280.73 | E126: 267.62 | F126: 257.98 | G126: 244.87 | H126: 290.37 | I126: 303.48 | J126: 313.12 | K126: 293.85 | L126: 271.1 | M126: 4.92479
A127: 117 | B127: DCBBANK | C127: 82.5 | D127: 82.97 | E127: 81.03 | F127: 79.57 | G127: 77.63 | H127: 84.43 | I127: 86.37 | J127: 87.83 | K127: 84.9 | L127: 81.5 | M127: 5.3846
A128: 118 | B128: DCMSHRIRAM | C128: 1124.8 | D128: 1137.97 | E128: 1097.93 | F128: 1071.07 | G128: 1031.03 | H128: 1164.83 | I128: 1204.87 | J128: 1231.73 | K128: 1178 | L128: 1111.1 | M128: 1.03954
A129: 119 | B129: DEEPAKNTR | C129: 2211.4 | D129: 2232.92 | E129: 2159.73 | F129: 2108.07 | G129: 2034.88 | H129: 2284.58 | I129: 2357.77 | J129: 2409.43 | K129: 2306.1 | L129: 2181.25 | M129: 3.73403
A130: 120 | B130: DELTACORP | C130: 295.45 | D130: 297.97 | E130: 287.48 | F130: 279.52 | G130: 269.03 | H130: 305.93 | I130: 316.42 | J130: 324.38 | K130: 308.45 | L130: 290 | M130: 31.85384
A131: 121 | B131: DHANI | C131: 62.75 | D131: 63.30 | E131: 60.70 | F131: 58.65 | G131: 56.05 | H131: 65.35 | I131: 67.95 | J131: 70.00 | K131: 65.9 | L131: 61.25 | M131: 22.82681
A132: 122 | B132: DHANUKA | C132: 746.25 | D132: 750.48 | E132: 728.12 | F132: 709.98 | G132: 687.62 | H132: 768.62 | I132: 790.98 | J132: 809.12 | K132: 772.85 | L132: 732.35 | M132: 0.30685
A133: 123 | B133: DIVISLAB | C133: 4411.4 | D133: 4446.38 | E133: 4313.77 | F133: 4216.13 | G133: 4083.52 | H133: 4544.02 | I133: 4676.63 | J133: 4774.27 | K133: 4579 | L133: 4348.75 | M133: 4.21066
A134: 124 | B134: DIXON | C134: 4197 | D134: 4238.17 | E134: 4102.33 | F134: 4007.67 | G134: 3871.83 | H134: 4332.83 | I134: 4468.67 | J134: 4563.33 | K134: 4374 | L134: 4143.5 | M134: 2.01974
A135: 125 | B135: DLF | C135: 377.8 | D135: 380.52 | E135: 369.28 | F135: 360.77 | G135: 349.53 | H135: 389.03 | I135: 400.27 | J135: 408.78 | K135: 391.75 | L135: 372 | M135: 39.38936
A136: 126 | B136: DMART | C136: 4008.9 | D136: 4038.60 | E136: 3945.30 | F136: 3881.70 | G136: 3788.40 | H136: 4102.20 | I136: 4195.50 | J136: 4259.10 | K136: 4131.9 | L136: 3975 | M136: 2.22195
A137: 127 | B137: DRREDDY | C137: 4209.7 | D137: 4238.60 | E137: 4161.10 | F137: 4112.50 | G137: 4035.00 | H137: 4287.20 | I137: 4364.70 | J137: 4413.30 | K137: 4316.1 | L137: 4190 | M137: 3.10144
A138: 128 | B138: ECLERX | C138: 2425.95 | D138: 2425.22 | E138: 2351.53 | F138: 2277.12 | G138: 2203.43 | H138: 2499.63 | I138: 2573.32 | J138: 2647.73 | K138: 2498.9 | L138: 2350.8 | M138: 0.63785
A139: 129 | B139: EDELWEISS | C139: 60 | D139: 60.23 | E139: 58.87 | F139: 57.73 | G139: 56.37 | H139: 61.37 | I139: 62.73 | J139: 63.87 | K139: 61.6 | L139: 59.1 | M139: 15.82472
A140: 130 | B140: EICHERMOT | C140: 2454.85 | D140: 2483.62 | E140: 2392.33 | F140: 2329.82 | G140: 2238.53 | H140: 2546.13 | I140: 2637.42 | J140: 2699.93 | K140: 2574.9 | L140: 2421.1 | M140: 6.36517
A141: 131 | B141: EIDPARRY | C141: 499.05 | D141: 505.52 | E141: 479.03 | F141: 459.02 | G141: 432.53 | H141: 525.53 | I141: 552.02 | J141: 572.03 | K141: 532 | L141: 485.5 | M141: 5.17803
A142: 132 | B142: EIHOTEL | C142: 159.8 | D142: 160.07 | E142: 155.23 | F142: 150.67 | G142: 145.83 | H142: 164.63 | I142: 169.47 | J142: 174.03 | K142: 164.9 | L142: 155.5 | M142: 4.14912
A143: 133 | B143: ELGIEQUIP | C143: 305.4 | D143: 310.63 | E143: 296.27 | F143: 287.13 | G143: 272.77 | H143: 319.77 | I143: 334.13 | J143: 343.27 | K143: 325 | L143: 301.5 | M143: 2.3357
A144: 134 | B144: EMAMILTD | C144: 475.1 | D144: 474.10 | E144: 471.20 | F144: 467.30 | G144: 464.40 | H144: 478.00 | I144: 480.90 | J144: 484.80 | K144: 477 | L144: 470.2 | M144: 2.17594
A145: 135 | B145: ENDURANCE | C145: 1150.65 | D145: 1153.73 | E145: 1121.47 | F145: 1092.28 | G145: 1060.02 | H145: 1182.92 | I145: 1215.18 | J145: 1244.37 | K145: 1186 | L145: 1124.55 | M145: 1.6944
A146: 136 | B146: ENGINERSIN | C146: 67.4 | D146: 67.75 | E146: 66.00 | F146: 64.60 | G146: 62.85 | H146: 69.15 | I146: 70.90 | J146: 72.30 | K146: 69.5 | L146: 66.35 | M146: 16.71916
A147: 137 | B147: EPL | C147: 174.6 | D147: 175.08 | E147: 172.62 | F147: 170.63 | G147: 168.17 | H147: 177.07 | I147: 179.53 | J147: 181.52 | K147: 177.55 | L147: 173.1 | M147: 2.44911
A148: 138 | B148: EQUITAS | C148: 117.3 | D148: 117.32 | E148: 114.98 | F148: 112.67 | G148: 110.33 | H148: 119.63 | I148: 121.97 | J148: 124.28 | K148: 119.65 | L148: 115 | M148: 7.02078
A149: 139 | B149: EQUITASBNK | C149: 54.7 | D149: 54.32 | E149: 51.38 | F149: 48.07 | G149: 45.13 | H149: 57.63 | I149: 60.57 | J149: 63.88 | K149: 57.25 | L149: 51 | M149: 4.67655
A150: 140 | B150: ERIS | C150: 692.15 | D150: 698.28 | E150: 679.47 | F150: 666.78 | G150: 647.97 | H150: 710.97 | I150: 729.78 | J150: 742.47 | K150: 717.1 | L150: 685.6 | M150: 0.74972
A151: 141 | B151: ESCORTS | C151: 1544.8 | D151: 1545.08 | E151: 1525.72 | F151: 1506.63 | G151: 1487.27 | H151: 1564.17 | I151: 1583.53 | J151: 1602.62 | K151: 1564.45 | L151: 1526 | M151: 5.77218
A152: 142 | B152: EXIDEIND | C152: 152.7 | D152: 153.65 | E152: 150.30 | F152: 147.90 | G152: 144.55 | H152: 156.05 | I152: 159.40 | J152: 161.80 | K152: 157 | L152: 151.25 | M152: 14.51744
A153: 143 | B153: FACT | C153: 133.7 | D153: 135.42 | E153: 129.38 | F153: 125.07 | G153: 119.03 | H153: 139.73 | I153: 145.77 | J153: 150.08 | K153: 141.45 | L153: 131.1 | M153: 3.83844
A154: 144 | B154: FDC | C154: 281 | D154: 281.27 | E154: 274.83 | F154: 268.67 | G154: 262.23 | H154: 287.43 | I154: 293.87 | J154: 300.03 | K154: 287.7 | L154: 275.1 | M154: 1.14873
A155: 145 | B155: FEDERALBNK | C155: 96.3 | D155: 96.72 | E155: 94.58 | F155: 92.87 | G155: 90.73 | H155: 98.43 | I155: 100.57 | J155: 102.28 | K155: 98.85 | L155: 95 | M155: 118.97241
A156: 146 | B156: FINCABLES | C156: 409.1 | D156: 408.43 | E156: 392.17 | F156: 375.23 | G156: 358.97 | H156: 425.37 | I156: 441.63 | J156: 458.57 | K156: 424.7 | L156: 391.5 | M156: 2.26865
A157: 147 | B157: FINEORG | C157: 4387.1 | D157: 4421.37 | E157: 4255.73 | F157: 4124.37 | G157: 3958.73 | H157: 4552.73 | I157: 4718.37 | J157: 4849.73 | K157: 4587 | L157: 4290 | M157: 0.5032
A158: 148 | B158: FINPIPE | C158: 161 | D158: 161.60 | E158: 157.30 | F158: 153.60 | G158: 149.30 | H158: 165.30 | I158: 169.60 | J158: 173.30 | K158: 165.9 | L158: 157.9 | M158: 3.72118
A159: 149 | B159: FLUOROCHEM | C159: 2815.75 | D159: 2821.82 | E159: 2743.93 | F159: 2672.12 | G159: 2594.23 | H159: 2893.63 | I159: 2971.52 | J159: 3043.33 | K159: 2899.7 | L159: 2750 | M159: 0.10865
A160: 150 | B160: FORTIS | C160: 270.85 | D160: 271.02 | E160: 267.08 | F160: 263.32 | G160: 259.38 | H160: 274.78 | I160: 278.72 | J160: 282.48 | K160: 274.95 | L160: 267.25 | M160: 20.02813
A161: 151 | B161: FRETAIL | C161: 29.1 | D161: 29.28 | E161: 28.72 | F161: 28.33 | G161: 27.77 | H161: 29.67 | I161: 30.23 | J161: 30.62 | K161: 29.85 | L161: 28.9 | M161: 21.39626
A162: 152 | B162: FSL | C162: 125.2 | D162: 126.00 | E162: 122.30 | F162: 119.40 | G162: 115.70 | H162: 128.90 | I162: 132.60 | J162: 135.50 | K162: 129.7 | L162: 123.1 | M162: 31.47475
A163: 153 | B163: GAEL | C163: 352.5 | D163: 362.55 | E163: 330.95 | F163: 309.40 | G163: 277.80 | H163: 384.10 | I163: 415.70 | J163: 437.25 | K163: 394.15 | L163: 341 | M163: 75.14919
A164: 154 | B164: GAIL | C164: 170 | D164: 170.62 | E164: 167.73 | F164: 165.47 | G164: 162.58 | H164: 172.88 | I164: 175.77 | J164: 178.03 | K164: 173.5 | L164: 168.35 | M164: 280.68839
A165: 155 | B165: GALAXYSURF | C165: 2942.7 | D165: 2954.80 | E165: 2888.90 | F165: 2835.10 | G165: 2769.20 | H165: 3008.60 | I165: 3074.50 | J165: 3128.30 | K165: 3020.7 | L165: 2901 | M165: 0.11806
A166: 156 | B166: GARFIBRES | C166: 3247.95 | D166: 3240.00 | E166: 3183.40 | F166: 3118.85 | G166: 3062.25 | H166: 3304.55 | I166: 3361.15 | J166: 3425.70 | K166: 3296.6 | L166: 3175.45 | M166: 0.19785
A167: 157 | B167: GESHIP | C167: 373.55 | D167: 377.03 | E167: 368.07 | F167: 362.58 | G167: 353.62 | H167: 382.52 | I167: 391.48 | J167: 396.97 | K167: 386 | L167: 371.55 | M167: 4.30166
A168: 158 | B168: GICRE | C168: 121.4 | D168: 121.73 | E168: 119.67 | F168: 117.93 | G168: 115.87 | H168: 123.47 | I168: 125.53 | J168: 127.27 | K168: 123.8 | L168: 120 | M168: 2.22534
A169: 159 | B169: GILLETTE | C169: 5067.4 | D169: 5078.07 | E169: 4994.83 | F169: 4922.27 | G169: 4839.03 | H169: 5150.63 | I169: 5233.87 | J169: 5306.43 | K169: 5161.3 | L169: 5005.5 | M169: 0.02431
A170: 160 | B170: GLAND | C170: 3201.1 | D170: 3213.70 | E170: 3157.40 | F170: 3113.70 | G170: 3057.40 | H170: 3257.40 | I170: 3313.70 | J170: 3357.40 | K170: 3270 | L170: 3170 | M170: 0.4297
A171: 161 | B171: GLAXO | C171: 1624.8 | D171: 1628.10 | E171: 1602.20 | F171: 1579.60 | G171: 1553.70 | H171: 1650.70 | I171: 1676.60 | J171: 1699.20 | K171: 1654 | L171: 1605.5 | M171: 0.18448
A172: 162 | B172: GLENMARK | C172: 459.45 | D172: 462.52 | E172: 451.93 | F172: 444.42 | G172: 433.83 | H172: 470.03 | I172: 480.62 | J172: 488.13 | K172: 473.1 | L172: 455 | M172: 3.44571
A173: 163 | B173: GMMPFAUDLR | C173: 4701.05 | D173: 4730.33 | E173: 4570.67 | F173: 4440.28 | G173: 4280.62 | H173: 4860.72 | I173: 5020.38 | J173: 5150.77 | K173: 4890 | L173: 4599.95 | M173: 0.16335
A174: 164 | B174: GNFC | C174: 851.4 | D174: 863.65 | E174: 822.65 | F174: 793.90 | G174: 752.90 | H174: 892.40 | I174: 933.40 | J174: 962.15 | K174: 904.65 | L174: 834.9 | M174: 25.10605
A175: 165 | B175: GODFRYPHLP | C175: 1290.65 | D175: 1300.22 | E175: 1255.43 | F175: 1220.22 | G175: 1175.43 | H175: 1335.43 | I175: 1380.22 | J175: 1415.43 | K175: 1345 | L175: 1265 | M175: 2.97011
A176: 166 | B176: GODREJAGRO | C176: 490.8 | D176: 494.92 | E176: 485.88 | F176: 480.97 | G176: 471.93 | H176: 499.83 | I176: 508.87 | J176: 513.78 | K176: 503.95 | L176: 490 | M176: 1.2144
A177: 167 | B177: GODREJCP | C177: 775.05 | D177: 782.05 | E177: 758.55 | F177: 742.05 | G177: 718.55 | H177: 798.55 | I177: 822.05 | J177: 838.55 | K177: 805.55 | L177: 765.55 | M177: 10.04353
A178: 168 | B178: GODREJIND | C178: 488.55 | D178: 482.68 | E178: 466.22 | F178: 443.88 | G178: 427.42 | H178: 505.02 | I178: 521.48 | J178: 543.82 | K178: 499.15 | L178: 460.35 | M178: 1.00223
A179: 169 | B179: GODREJPROP | C179: 1565.95 | D179: 1577.65 | E179: 1527.15 | F179: 1488.35 | G179: 1437.85 | H179: 1616.45 | I179: 1666.95 | J179: 1705.75 | K179: 1628.15 | L179: 1538.85 | M179: 3.48395
A180: 170 | B180: GPPL | C180: 88.95 | D180: 89.48 | E180: 87.47 | F180: 85.98 | G180: 83.97 | H180: 90.97 | I180: 92.98 | J180: 94.47 | K180: 91.5 | L180: 88 | M180: 7.39273
A181: 171 | B181: GRANULES | C181: 290.5 | D181: 292.53 | E181: 283.07 | F181: 275.63 | G181: 266.17 | H181: 299.97 | I181: 309.43 | J181: 316.87 | K181: 302 | L181: 285.1 | M181: 6.84286
A182: 172 | B182: GRAPHITE | C182: 558.55 | D182: 557.27 | E182: 533.53 | F182: 508.52 | G182: 484.78 | H182: 582.28 | I182: 606.02 | J182: 631.03 | K182: 581 | L182: 532.25 | M182: 34.69302
A183: 173 | B183: GRASIM | C183: 1720.4 | D183: 1732.50 | E183: 1688.00 | F183: 1655.60 | G183: 1611.10 | H183: 1764.90 | I183: 1809.40 | J183: 1841.80 | K183: 1777 | L183: 1700.1 | M183: 7.4493
A184: 174 | B184: GREAVESCOT | C184: 189.75 | D184: 193.00 | E184: 182.30 | F184: 174.85 | G184: 164.15 | H184: 200.45 | I184: 211.15 | J184: 218.60 | K184: 203.7 | L184: 185.55 | M184: 30.91092
A185: 175 | B185: GRINDWELL | C185: 1715.85 | D185: 1723.03 | E185: 1692.57 | F185: 1669.28 | G185: 1638.82 | H185: 1746.32 | I185: 1776.78 | J185: 1800.07 | K185: 1753.5 | L185: 1699.75 | M185: 0.56089
A186: 176 | B186: GSFC | C186: 169.9 | D186: 172.57 | E186: 165.33 | F186: 160.77 | G186: 153.53 | H186: 177.13 | I186: 184.37 | J186: 188.93 | K186: 179.8 | L186: 168 | M186: 39.50938
A187: 177 | B187: GSPL | C187: 276.4 | D187: 277.13 | E187: 270.67 | F187: 264.93 | G187: 258.47 | H187: 282.87 | I187: 289.33 | J187: 295.07 | K187: 283.6 | L187: 271.4 | M187: 10.64495
A188: 178 | B188: GUJALKALI | C188: 879.35 | D188: 891.50 | E188: 845.00 | F188: 810.65 | G188: 764.15 | H188: 925.85 | I188: 972.35 | J188: 1006.70 | K188: 938 | L188: 857.15 | M188: 6.10005
A189: 179 | B189: GUJGASLTD | C189: 511.65 | D189: 517.20 | E189: 499.45 | F189: 487.25 | G189: 469.50 | H189: 529.40 | I189: 547.15 | J189: 559.35 | K189: 534.95 | L189: 505 | M189: 8.96537
A190: 180 | B190: HAL | C190: 1690.65 | D190: 1705.82 | E190: 1653.63 | F190: 1616.62 | G190: 1564.43 | H190: 1742.83 | I190: 1795.02 | J190: 1832.03 | K190: 1758 | L190: 1668.8 | M190: 10.4354
A191: 181 | B191: HAPPSTMNDS | C191: 1005.7 | D191: 1029.57 | E191: 976.13 | F191: 946.57 | G191: 893.13 | H191: 1059.13 | I191: 1112.57 | J191: 1142.13 | K191: 1083 | L191: 1000 | M191: 3.82187
A192: 182 | B192: HATHWAY | C192: 20.15 | D192: 20.15 | E192: 19.50 | F192: 18.85 | G192: 18.20 | H192: 20.80 | I192: 21.45 | J192: 22.10 | K192: 20.8 | L192: 19.5 | M192: 117.85507
A193: 183 | B193: HATSUN | C193: 1109 | D193: 1102.83 | E193: 1080.67 | F193: 1052.33 | G193: 1030.17 | H193: 1131.17 | I193: 1153.33 | J193: 1181.67 | K193: 1125 | L193: 1074.5 | M193: 0.88116
A194: 184 | B194: HAVELLS | C194: 1285.8 | D194: 1286.18 | E194: 1266.57 | F194: 1247.33 | G194: 1227.72 | H194: 1305.42 | I194: 1325.03 | J194: 1344.27 | K194: 1305.8 | L194: 1266.95 | M194: 10.33067
A195: 185 | B195: HCLTECH | C195: 1070.25 | D195: 1081.65 | E195: 1047.35 | F195: 1024.45 | G195: 990.15 | H195: 1104.55 | I195: 1138.85 | J195: 1161.75 | K195: 1115.95 | L195: 1058.75 | M195: 34.22431
A196: 186 | B196: HDFC | C196: 2140.2 | D196: 2174.12 | E196: 2077.33 | F196: 2014.47 | G196: 1917.68 | H196: 2236.98 | I196: 2333.77 | J196: 2396.63 | K196: 2270.9 | L196: 2111.25 | M196: 200.5072
A197: 187 | B197: HDFCAMC | C197: 2109.55 | D197: 2132.33 | E197: 2055.42 | F197: 2001.28 | G197: 1924.37 | H197: 2186.47 | I197: 2263.38 | J197: 2317.52 | K197: 2209.25 | L197: 2078.2 | M197: 2.06043
A198: 188 | B198: HDFCBANK | C198: 1342.2 | D198: 1352.92 | E198: 1316.28 | F198: 1290.37 | G198: 1253.73 | H198: 1378.83 | I198: 1415.47 | J198: 1441.38 | K198: 1389.55 | L198: 1327 | M198: 370.48011
A199: 189 | B199: HDFCLIFE | C199: 546.7 | D199: 556.20 | E199: 532.50 | F199: 518.30 | G199: 494.60 | H199: 570.40 | I199: 594.10 | J199: 608.30 | K199: 579.9 | L199: 542 | M199: 29.58108
A200: 190 | B200: HEG | C200: 1318.75 | D200: 1334.58 | E200: 1282.17 | F200: 1245.58 | G200: 1193.17 | H200: 1371.17 | I200: 1423.58 | J200: 1460.17 | K200: 1387 | L200: 1298 | M200: 6.34825
A201: 191 | B201: HEIDELBERG | C201: 201.35 | D201: 201.17 | E201: 197.33 | F201: 193.32 | G201: 189.48 | H201: 205.18 | I201: 209.02 | J201: 213.03 | K201: 205 | L201: 197.15 | M201: 1.62793
A202: 192 | B202: HEMIPROP | C202: 120 | D202: 121.17 | E202: 117.53 | F202: 115.07 | G202: 111.43 | H202: 123.63 | I202: 127.27 | J202: 129.73 | K202: 124.8 | L202: 118.7 | M202: 7.94774
A203: 193 | B203: HEROMOTOCO | C203: 2263.25 | D203: 2277.72 | E203: 2227.93 | F203: 2192.62 | G203: 2142.83 | H203: 2313.03 | I203: 2362.82 | J203: 2398.13 | K203: 2327.5 | L203: 2242.4 | M203: 4.84466
A204: 194 | B204: HFCL | C204: 76.65 | D204: 77.15 | E204: 74.50 | F204: 72.35 | G204: 69.70 | H204: 79.30 | I204: 81.95 | J204: 84.10 | K204: 79.8 | L204: 75 | M204: 68.51894
A205: 195 | B205: HGS | C205: 1102.3 | D205: 1111.10 | E205: 1086.20 | F205: 1070.10 | G205: 1045.20 | H205: 1127.20 | I205: 1152.10 | J205: 1168.20 | K205: 1136 | L205: 1095 | M205: 0.75908
A206: 196 | B206: HIKAL | C206: 419 | D206: 421.02 | E206: 412.98 | F206: 406.97 | G206: 398.93 | H206: 427.03 | I206: 435.07 | J206: 441.08 | K206: 429.05 | L206: 415 | M206: 0.94006
... 319 more rows

Sheet Bulk Deals
E6: Back To Main Page
A7: Subject : | B7: BULK DEAL | D7: =Main!B10 -> 2022-04-20
A9: Date | B9: Scrip code | C9: Scrip Name | D9: Client Name | E9: Buy / Sell | F9: Quantity Traded | G9: Trade Price / Wt.Avg.trade price | H9: Exchange
A10: 2022-04-19 | B10: 540615 | C10: 7NR | D10: VASHIST R ANDHALE | E10: BUY | F10: 900,000 | G10: 2.25 | H10: BSE
A11: 2022-04-19 | B11: 540615 | C11: 7NR | D11: SAMIR HARSHAD MEHTA | E11: BUY | F11: 1,050,000 | G11: 2.25 | H11: BSE
A12: 2022-04-19 | B12: 540615 | C12: 7NR | D12: FALGUN KANTILAL DOSHI | E12: SELL | F12: 1,500,000 | G12: 2.25 | H12: BSE
A13: 2022-04-19 | B13: 540615 | C13: 7NR | D13: JATIN RAMNIKLAL MEHTA | E13: SELL | F13: 530,000 | G13: 2.25 | H13: BSE
A14: 2022-04-19 | B14: 540615 | C14: 7NR | D14: JAIMESH G SHETH HUF | E14: SELL | F14: 540,000 | G14: 2.25 | H14: BSE
A15: 2022-04-19 | B15: 540615 | C15: 7NR | D15: VIKRAMKUMAR KARANRAJ SAKARIA HUF | E15: BUY | F15: 2,844,495 | G15: 2.25 | H15: BSE
A16: 2022-04-19 | B16: 540615 | C16: 7NR | D16: VIKRAMKUMAR KARANRAJ SAKARIA HUF | E16: SELL | F16: 674,495 | G16: 2.3 | H16: BSE
A17: 2022-04-19 | B17: 540615 | C17: 7NR | D17: NEXPACT LIMITED | E17: SELL | F17: 5,000,000 | G17: 2.25 | H17: BSE
A18: 2022-04-19 | B18: 540615 | C18: 7NR | D18: NATVARSINH T CHAVDA . . | E18: BUY | F18: 1,563,000 | G18: 2.26 | H18: BSE
A19: 2022-04-19 | B19: 540615 | C19: 7NR | D19: SANGITA PRAVINKUMAR TUNDIYA | E19: BUY | F19: 540,000 | G19: 2.26 | H19: BSE
A20: 2022-04-19 | B20: 540615 | C20: 7NR | D20: PREETI AGGARWAL | E20: SELL | F20: 1,000,000 | G20: 2.25 | H20: BSE
A21: 2022-04-19 | B21: 539773 | C21: ADVIKCA | D21: ALTOLITE ELECTRO SIGNS PRIVATE LIMITED | E21: SELL | F21: 332,690 | G21: 5.46 | H21: BSE
A22: 2022-04-19 | B22: 539773 | C22: ADVIKCA | D22: RENU AGGARWAL | E22: SELL | F22: 300,000 | G22: 5.47 | H22: BSE
A23: 2022-04-19 | B23: 539773 | C23: ADVIKCA | D23: STEPPING STONE CONSTRUCTION PRIVATE LIMITED | E23: SELL | F23: 400,000 | G23: 5.47 | H23: BSE
A24: 2022-04-19 | B24: 539621 | C24: BCLENTERPR | D24: DHARMESH MALDEVBHAI GODHANIA | E24: SELL | F24: 450,000 | G24: 4.44 | H24: BSE
A25: 2022-04-19 | B25: 539621 | C25: BCLENTERPR | D25: GHANSHYAMBHAI MANSUKHBHAI KHAMBHAYATA | E25: SELL | F25: 2,552,248 | G25: 4.44 | H25: BSE
A26: 2022-04-19 | B26: 539621 | C26: BCLENTERPR | D26: SANDEEP AGARWAL | E26: BUY | F26: 350,000 | G26: 4.43 | H26: BSE
A27: 2022-04-19 | B27: 539662 | C27: BFLAFL | D27: DIBAKAR LAHA | E27: BUY | F27: 63,335 | G27: 149.02 | H27: BSE
A28: 2022-04-19 | B28: 539662 | C28: BFLAFL | D28: ELIXIR WEALTH MANAGEMENT PRIVATE LIMITED | E28: BUY | F28: 32,335 | G28: 136.52 | H28: BSE
A29: 2022-04-19 | B29: 539662 | C29: BFLAFL | D29: ELIXIR WEALTH MANAGEMENT PRIVATE LIMITED | E29: SELL | F29: 59,335 | G29: 149 | H29: BSE
A30: 2022-04-19 | B30: 522001 | C30: CRANEX | D30: SHAH DIPAK KANAYALAL | E30: SELL | F30: 27,280 | G30: 23.35 | H30: BSE
A31: 2022-04-19 | B31: 543516 | C31: DHYAANI | D31: GIRIRAJ STOCK BROKING PRIVATE LIMITED | E31: BUY | F31: 14,000 | G31: 51.36 | H31: BSE
A32: 2022-04-19 | B32: 543516 | C32: DHYAANI | D32: GIRIRAJ STOCK BROKING PRIVATE LIMITED | E32: SELL | F32: 2,000 | G32: 54 | H32: BSE
A33: 2022-04-19 | B33: 542724 | C33: EARUM | D33: VANRAJ DADBHAI KAHOR | E33: BUY | F33: 312,635 | G33: 7.63 | H33: BSE
A34: 2022-04-19 | B34: 542724 | C34: EARUM | D34: VANRAJ DADBHAI KAHOR | E34: SELL | F34: 613 | G34: 7.81 | H34: BSE
A35: 2022-04-19 | B35: 540936 | C35: GGL | D35: JIMESH BHUPENDRA GANDHI | E35: BUY | F35: 100,000 | G35: 13.84 | H35: BSE
A36: 2022-04-19 | B36: 524590 | C36: HEMORGANIC | D36: AYAN SHIRISHBHAI SHAH | E36: BUY | F36: 20,000 | G36: 53 | H36: BSE
A37: 2022-04-19 | B37: 540377 | C37: IFL | D37: KIRTAN GOPALBHAI DHOLA | E37: SELL | F37: 18,000 | G37: 57 | H37: BSE
A38: 2022-04-19 | B38: 540377 | C38: IFL | D38: SHARMA DIPAK SURESHBHAI | E38: SELL | F38: 24,000 | G38: 57.38 | H38: BSE
A39: 2022-04-19 | B39: 540377 | C39: IFL | D39: HIRWANI JAYANTIBHAI VAGHELA | E39: BUY | F39: 18,000 | G39: 56.5 | H39: BSE
A40: 2022-04-19 | B40: 540377 | C40: IFL | D40: DARSHIT GIRISHBHAI PATEL | E40: BUY | F40: 18,000 | G40: 57 | H40: BSE
A41: 2022-04-19 | B41: 540377 | C41: IFL | D41: LALJIBHAI TRIVEDI | E41: BUY | F41: 36,000 | G41: 58.75 | H41: BSE
A42: 2022-04-19 | B42: 541983 | C42: INNOVATIVE | D42: NAVEEN GUPTA | E42: BUY | F42: 61,000 | G42: 10.87 | H42: BSE
A43: 2022-04-19 | B43: 541983 | C43: INNOVATIVE | D43: NAVEEN GUPTA | E43: SELL | F43: 20,000 | G43: 11 | H43: BSE
A44: 2022-04-19 | B44: 541983 | C44: INNOVATIVE | D44: AJAY MEENA | E44: SELL | F44: 102,000 | G44: 10.92 | H44: BSE
A45: 2022-04-19 | B45: 535730 | C45: KHOOBSURAT | D45: BP EQUITIES PVT. LTD. | E45: BUY | F45: 1,200,001 | G45: 3.03 | H45: BSE
A46: 2022-04-19 | B46: 535730 | C46: KHOOBSURAT | D46: BP EQUITIES PVT. LTD. | E46: SELL | F46: 3 | G46: 3.25 | H46: BSE
A47: 2022-04-19 | B47: 531328 | C47: KRETTOSYS | D47: KASHMIRA BIPINCHANDRA PATEL | E47: SELL | F47: 858,480 | G47: 1.03 | H47: BSE
A48: 2022-04-19 | B48: 531328 | C48: KRETTOSYS | D48: MANJULABEN DHARMESHBHAI PATEL | E48: SELL | F48: 1,700,000 | G48: 1.03 | H48: BSE
A49: 2022-04-19 | B49: 541352 | C49: MEGASTAR | D49: SAMBHAVNATH INVESTMENTS AND FINANCES PRIVATE LIMITED | E49: BUY | F49: 70,000 | G49: 143.32 | H49: BSE
A50: 2022-04-19 | B50: 541352 | C50: MEGASTAR | D50: RENU MAKIN | E50: SELL | F50: 70,000 | G50: 143.32 | H50: BSE
A51: 2022-04-19 | B51: 539594 | C51: MISHTANN | D51: VINODBHAI RAMABHAI PATEL | E51: SELL | F51: 2,600,000 | G51: 28.9 | H51: BSE
A52: 2022-04-19 | B52: 542801 | C52: MISQUITA | D52: AJAY MEENA | E52: BUY | F52: 14,000 | G52: 47.71 | H52: BSE
A53: 2022-04-19 | B53: 531494 | C53: NAVKAR | D53: PRATIMA PRAKASH SHAH | E53: BUY | F53: 130,000 | G53: 67.34 | H53: BSE
A54: 2022-04-19 | B54: 514332 | C54: NEOINFRA | D54: NEURO PROPERTIES PRIVATE LIMITED | E54: SELL | F54: 118,604 | G54: 18.96 | H54: BSE
A55: 2022-04-19 | B55: 514332 | C55: NEOINFRA | D55: SUMANCHEPURI | E55: BUY | F55: 55,460 | G55: 19.02 | H55: BSE
A56: 2022-04-19 | B56: 540243 | C56: NEWLIGHT | D56: POONAM PANKAJKUMAR KALARIYA | E56: SELL | F56: 15,000 | G56: 19.73 | H56: BSE
A57: 2022-04-19 | B57: 538874 | C57: NEXUSSURGL | D57: ACQUITOR FINANCIAL SERVICES PVT.LTD. | E57: SELL | F57: 48,000 | G57: 12.71 | H57: BSE
A58: 2022-04-19 | B58: 538537 | C58: OMANSH | D58: SUMITRA NARANG | E58: SELL | F58: 98,860 | G58: 2.3 | H58: BSE
A59: 2022-04-19 | B59: 540386 | C59: ONTIC | D59: KRUPA BHAVIN SHAH | E59: SELL | F59: 50,000 | G59: 17.36 | H59: BSE
A60: 2022-04-19 | B60: 523260 | C60: PEARLPOLY | D60: QNANCE RESEARCH CAPITAL LLP | E60: BUY | F60: 94,925 | G60: 32.31 | H60: BSE
A61: 2022-04-19 | B61: 523260 | C61: PEARLPOLY | D61: QNANCE RESEARCH CAPITAL LLP | E61: SELL | F61: 79,170 | G61: 32.43 | H61: BSE
A62: 2022-04-19 | B62: 523260 | C62: PEARLPOLY | D62: SURAJ S RESOURECES | E62: BUY | F62: 10,000 | G62: 30.9 | H62: BSE
A63: 2022-04-19 | B63: 523260 | C63: PEARLPOLY | D63: SURAJ S RESOURECES | E63: SELL | F63: 170,000 | G63: 33.07 | H63: BSE
A64: 2022-04-19 | B64: 539673 | C64: RCL | D64: JAYANTA NATH | E64: SELL | F64: 9,290 | G64: 25.5 | H64: BSE
A65: 2022-04-19 | B65: 512624 | C65: REGENTRP | D65: RAJENDRA KUMAR AGARWAL | E65: BUY | F65: 193,025 | G65: 2.54 | H65: BSE
A66: 2022-04-19 | B66: 542383 | C66: RITCO | D66: CNM FINVEST PRIVATE LIMITED . | E66: SELL | F66: 168,000 | G66: 136.15 | H66: BSE
A67: 2022-04-19 | B67: 542753 | C67: SEACOAST | D67: BHAVNABEN KAMLESHBHAI CHOTALIYA | E67: SELL | F67: 1,833,486 | G67: 10.63 | H67: BSE
A68: 2022-04-19 | B68: 538875 | C68: SELLWIN | D68: KIRAN DATTATRAYA WALKE | E68: BUY | F68: 66,152 | G68: 24.95 | H68: BSE
A69: 2022-04-19 | B69: 511760 | C69: SEVENHILL | D69: ALPHA LEON ENTERPRISES LLP | E69: SELL | F69: 1,000,000 | G69: 0.8 | H69: BSE
A70: 2022-04-19 | B70: 542146 | C70: SKIFL | D70: BEELINE BROKING LIMITED | E70: SELL | F70: 20,000 | G70: 13.03 | H70: BSE
A71: 2022-04-19 | B71: 542146 | C71: SKIFL | D71: PREMILABEN PARESHBHAI PATEL | E71: BUY | F71: 20,000 | G71: 13.03 | H71: BSE
A72: 2022-04-19 | B72: 522152 | C72: SOLIMAC | D72: NEIL INFORMATION TECHNOLOGY LIMITED . | E72: BUY | F72: 26,977 | G72: 48.09 | H72: BSE
A73: 2022-04-19 | B73: 522152 | C73: SOLIMAC | D73: NEIL INFORMATION TECHNOLOGY LIMITED . | E73: SELL | F73: 22,622 | G73: 50.48 | H73: BSE
A74: 2022-04-19 | B74: 522152 | C74: SOLIMAC | D74: RAJESH H BUDHRANI | E74: SELL | F74: 25,000 | G74: 47.25 | H74: BSE
A75: 2022-04-19 | B75: 543274 | C75: SUUMAYA | D75: SHAMARU CONSTRUCTION PRIVATE LIMITED | E75: BUY | F75: 216,000 | G75: 83 | H75: BSE
A76: 2022-04-19 | B76: 543274 | C76: SUUMAYA | D76: ANTARA INDIA EVERGREEN FUND LTD | E76: BUY | F76: 1,215,000 | G76: 82.5 | H76: BSE
A77: 2022-04-19 | B77: 543274 | C77: SUUMAYA | D77: PRANIR INVESTMENTS | E77: SELL | F77: 1,404,000 | G77: 82.54 | H77: BSE
A78: 2022-04-19 | B78: 531716 | C78: TRICOMFRU | D78: RAHUL BHATIA | E78: SELL | F78: 194,480 | G78: 1.71 | H78: BSE
A79: 2022-04-19 | B79: 531716 | C79: TRICOMFRU | D79: N L RUNGTA HUF | E79: BUY | F79: 95,400 | G79: 1.7 | H79: BSE
A80: 2022-04-19 | B80: 539402 | C80: VAL | D80: GAURANG JITENDRA PAREKH | E80: SELL | F80: 56,700 | G80: 42.5 | H80: BSE
A81: 2022-04-19 | B81: 539402 | C81: VAL | D81: SVPAN CONSULTANT PVT LTD | E81: BUY | F81: 1,104 | G81: 42.01 | H81: BSE
A82: 2022-04-19 | B82: 539402 | C82: VAL | D82: SVPAN CONSULTANT PVT LTD | E82: SELL | F82: 68,722 | G82: 42.53 | H82: BSE
A83: 2022-04-19 | B83: 538918 | C83: VANICOM | D83: SNEHA PANKAJ GANDHI | E83: BUY | F83: 24,695 | G83: 9.15 | H83: BSE
A84: 2022-04-19 | B84: 538918 | C84: VANICOM | D84: MITESH KUMAR | E84: SELL | F84: 49,045 | G84: 9.15 | H84: BSE
A85: 2022-04-19 | B85: ARIES | C85: Aries Agro Limited | D85: GRAVITON RESEARCH CAPITAL LLP | E85: BUY | F85: 84,102 | G85: 173.89 | H85: NSE
A86: 2022-04-19 | B86: ARIES | C86: Aries Agro Limited | D86: JATESH JAIN | E86: BUY | F86: 131,896 | G86: 175.94 | H86: NSE
A87: 2022-04-19 | B87: BANG | C87: Bang Overseas Limited | D87: VEENA RAJESH SHAH | E87: BUY | F87: 581,901 | G87: 64.93 | H87: NSE
A88: 2022-04-19 | B88: BANG | C88: Bang Overseas Limited | D88: BP FINTRADE PRIVATE LIMITED | E88: BUY | F88: 96,349 | G88: 66.79 | H88: NSE
A89: 2022-04-19 | B89: BANG | C89: Bang Overseas Limited | D89: DIGVIJAY SHIVSHANGBHAI CHAVDA | E89: BUY | F89: 150,000 | G89: 67.2 | H89: NSE
A90: 2022-04-19 | B90: CHENNPETRO | C90: Chennai Petroleum Corp | D90: XTX MARKETS LLP | E90: BUY | F90: 836,136 | G90: 202.3 | H90: NSE
A91: 2022-04-19 | B91: EVEREADY | C91: Eveready Industries India | D91: RAJASTHAN GLOBAL SECURITIES PVT LTD | E91: BUY | F91: 400,000 | G91: 319.89 | H91: NSE
A92: 2022-04-19 | B92: GENUSPOWER | C92: Genus Power Infrastru Ltd | D92: GRAVITON RESEARCH CAPITAL LLP | E92: BUY | F92: 1,467,570 | G92: 103.94 | H92: NSE
A93: 2022-04-19 | B93: GTL | C93: GTL Limited | D93: TOPGAIN FINANCE PRIVATE LIMITED | E93: BUY | F93: 848,088 | G93: 11.6 | H93: NSE
A94: 2022-04-19 | B94: INVENTURE | C94: Inventure Gro & Sec Ltd | D94: SHARE INDIA SECURITIES LIMITED | E94: BUY | F94: 5,355,065 | G94: 3.7 | H94: NSE
A95: 2022-04-19 | B95: JSLL | C95: Jeena Sikho Lifecare Ltd | D95: RAJAN GUPTA | E95: BUY | F95: 81,000 | G95: 172.75 | H95: NSE
A96: 2022-04-19 | B96: JSLL | C96: Jeena Sikho Lifecare Ltd | D96: JAIN SANJAY POPATLAL | E96: BUY | F96: 100,000 | G96: 165.1 | H96: NSE
A97: 2022-04-19 | B97: JSLL | C97: Jeena Sikho Lifecare Ltd | D97: MANOJ AGARWAL | E97: BUY | F97: 80,000 | G97: 165.1 | H97: NSE
A98: 2022-04-19 | B98: JSLL | C98: Jeena Sikho Lifecare Ltd | D98: ADHEESH KABRA HUF | E98: BUY | F98: 100,000 | G98: 165.1 | H98: NSE
A99: 2022-04-19 | B99: JSLL | C99: Jeena Sikho Lifecare Ltd | D99: ANANT AGGARWAL | E99: BUY | F99: 80,000 | G99: 169.89 | H99: NSE
A100: 2022-04-19 | B100: KBCGLOBAL | C100: KBC Global Limited | D100: ANUSTUP TRADING PRIVATE LIMITED | E100: BUY | F100: 5,367,848 | G100: 9.89 | H100: NSE
A101: 2022-04-19 | B101: KBCGLOBAL | C101: KBC Global Limited | D101: GOENKA BUSINESS & FINANCE LIMITED | E101: BUY | F101: 2,103,589 | G101: 9.86 | H101: NSE
A102: 2022-04-19 | B102: KBCGLOBAL | C102: KBC Global Limited | D102: RAMA KRISHNA VARMA PENMETSA | E102: BUY | F102: 3,700,000 | G102: 9.75 | H102: NSE
A103: 2022-04-19 | B103: KRISHNADEF | C103: Krishna Def and Ald Ind L | D103: VISHAL BIPINKUMAR DOSHI | E103: BUY | F103: 78,000 | G103: 110.6 | H103: NSE
A104: 2022-04-19 | B104: NAGREEKEXP | C104: Nagreeka Exports Limited | D104: VED PRAKASH AGARWAL | E104: BUY | F104: 90,000 | G104: 67.01 | H104: NSE
A105: 2022-04-19 | B105: NAVKARCORP | C105: Navkar Corporation Ltd. | D105: PARTH INFIN BROKERS PVT LTD | E105: BUY | F105: 1,012,782 | G105: 47.65 | H105: NSE
A106: 2022-04-19 | B106: NITIRAJ | C106: Nitiraj Engineers Ltd | D106: DEEP AGARWAL | E106: BUY | F106: 64,933 | G106: 91.13 | H106: NSE
A107: 2022-04-19 | B107: PEARLPOLY | C107: Pearl Polymers Ltd | D107: BONANZA PORTFOLIO LTD | E107: BUY | F107: 98,810 | G107: 33.19 | H107: NSE
A108: 2022-04-19 | B108: PEARLPOLY | C108: Pearl Polymers Ltd | D108: LAXMI AND COMPANY | E108: BUY | F108: 100,000 | G108: 32.59 | H108: NSE
A109: 2022-04-19 | B109: PEARLPOLY | C109: Pearl Polymers Ltd | D109: YUGA STOCKS AND COMMODITIES PRIVATE LIMITED . | E109: BUY | F109: 150,000 | G109: 33.3 | H109: NSE
A110: 2022-04-19 | B110: PEARLPOLY | C110: Pearl Polymers Ltd | D110: NK SECURITIES RESEARCH PRIVATE LIMITED | E110: BUY | F110: 135,201 | G110: 32.04 | H110: NSE
A111: 2022-04-19 | B111: PEARLPOLY | C111: Pearl Polymers Ltd | D111: CHAINROOP SURAJMAL DUGAR | E111: BUY | F111: 38,732 | G111: 32.44 | H111: NSE
A112: 2022-04-19 | B112: PEARLPOLY | C112: Pearl Polymers Ltd | D112: DIPAN MEHTA COMMODITIES PRIVATE LIMITED | E112: BUY | F112: 118,921 | G112: 33.08 | H112: NSE
A113: 2022-04-19 | B113: PEARLPOLY | C113: Pearl Polymers Ltd | D113: MUDUPULAVEMULA SURENDRANADHA REDDY | E113: BUY | F113: 166,279 | G113: 31.86 | H113: NSE
A114: 2022-04-19 | B114: PEARLPOLY | C114: Pearl Polymers Ltd | D114: GRAVITON RESEARCH CAPITAL LLP | E114: BUY | F114: 133,222 | G114: 31.81 | H114: NSE
A115: 2022-04-19 | B115: PEARLPOLY | C115: Pearl Polymers Ltd | D115: QNANCE RESEARCH CAPITAL LLP | E115: BUY | F115: 88,544 | G115: 32.23 | H115: NSE
A116: 2022-04-19 | B116: PEARLPOLY | C116: Pearl Polymers Ltd | D116: ARPIT JAIN HUF | E116: BUY | F116: 161,500 | G116: 32.92 | H116: NSE
A117: 2022-04-19 | B117: PEARLPOLY | C117: Pearl Polymers Ltd | D117: ALPHA LEON ENTERPRISES LLP | E117: BUY | F117: 447,933 | G117: 33.2 | H117: NSE
A118: 2022-04-19 | B118: RELCAPITAL | C118: Reliance Capital Limited | D118: MANSI SHARES & STOCK ADVISORS PVT LTD | E118: BUY | F118: 1,000,005 | G118: 19 | H118: NSE
A119: 2022-04-19 | B119: RIIL | C119: Reliance Indl Infra Ltd | D119: XTX MARKETS LLP | E119: BUY | F119: 333,331 | G119: 1029.97 | H119: NSE
A120: 2022-04-19 | B120: RIIL | C120: Reliance Indl Infra Ltd | D120: HRTI PRIVATE LIMITED | E120: BUY | F120: 83,180 | G120: 1026.3 | H120: NSE
A121: 2022-04-19 | B121: RIIL | C121: Reliance Indl Infra Ltd | D121: QE SECURITIES | E121: BUY | F121: 123,448 | G121: 1033.2 | H121: NSE
A122: 2022-04-19 | B122: RIIL | C122: Reliance Indl Infra Ltd | D122: NK SECURITIES RESEARCH PRIVATE LIMITED | E122: BUY | F122: 81,646 | G122: 1032.18 | H122: NSE
A123: 2022-04-19 | B123: RIIL | C123: Reliance Indl Infra Ltd | D123: GRAVITON RESEARCH CAPITAL LLP | E123: BUY | F123: 289,564 | G123: 1033.96 | H123: NSE
A124: 2022-04-19 | B124: STARPAPER | C124: Star Paper Mills Ltd | D124: GRAVITON RESEARCH CAPITAL LLP | E124: BUY | F124: 88,195 | G124: 186.64 | H124: NSE
A125: 2022-04-19 | B125: TIMETECHNO | C125: Time Technoplast Limited | D125: GRAVITON RESEARCH CAPITAL LLP | E125: BUY | F125: 1,321,309 | G125: 94.96 | H125: NSE
A126: 2022-04-19 | B126: VAISHALI | C126: Vaishali Pharma Limited | D126: YUGA STOCKS AND COMMODITIES PRIVATE LIMITED . | E126: BUY | F126: 120,000 | G126: 112.8 | H126: NSE
A127: 2022-04-19 | B127: VCL | C127: Vaxtex Cotfab Limited | D127: SUREKHABEN THAKKAR | E127: BUY | F127: 266,004 | G127: 21.66 | H127: NSE
A128: 2022-04-19 | B128: VCL | C128: Vaxtex Cotfab Limited | D128: MAKWANA DIXIT CHANDUBHAI | E128: BUY | F128: 20,000 | G128: 20.95 | H128: NSE
A129: 2022-04-19 | B129: VCL | C129: Vaxtex Cotfab Limited | D129: NITINBHAI DALSUKHBHAI CHAUHAN | E129: BUY | F129: 264,322 | G129: 21.67 | H129: NSE
A130: 2022-04-19 | B130: ANSALHSG | C130: Ansal Housing and Constru | D130: HOUSING DEVELOPMENT FINANCE CORPORATION LIMITED | E130: SELL | F130: 574,726 | G130: 8.47 | H130: NSE
A131: 2022-04-19 | B131: ARIES | C131: Aries Agro Limited | D131: GRAVITON RESEARCH CAPITAL LLP | E131: SELL | F131: 84,102 | G131: 173.56 | H131: NSE
A132: 2022-04-19 | B132: ARIES | C132: Aries Agro Limited | D132: JATESH JAIN | E132: SELL | F132: 131,696 | G132: 175.85 | H132: NSE
A133: 2022-04-19 | B133: BANG | C133: Bang Overseas Limited | D133: VEENA RAJESH SHAH | E133: SELL | F133: 581,901 | G133: 66.32 | H133: NSE
A134: 2022-04-19 | B134: BANG | C134: Bang Overseas Limited | D134: BP FINTRADE PRIVATE LIMITED | E134: SELL | F134: 96,349 | G134: 67.02 | H134: NSE
A135: 2022-04-19 | B135: BANG | C135: Bang Overseas Limited | D135: SANTOSH KUMAR AGARWAL | E135: SELL | F135: 75,000 | G135: 59.31 | H135: NSE
A136: 2022-04-19 | B136: CHENNPETRO | C136: Chennai Petroleum Corp | D136: XTX MARKETS LLP | E136: SELL | F136: 837,184 | G136: 202.47 | H136: NSE
A137: 2022-04-19 | B137: GENUSPOWER | C137: Genus Power Infrastru Ltd | D137: GRAVITON RESEARCH CAPITAL LLP | E137: SELL | F137: 1,467,570 | G137: 104.03 | H137: NSE
A138: 2022-04-19 | B138: GTL | C138: GTL Limited | D138: TOPGAIN FINANCE PRIVATE LIMITED | E138: SELL | F138: 148,088 | G138: 11.58 | H138: NSE
A139: 2022-04-19 | B139: HBLPOWER | C139: HBL Power Systems Limited | D139: BANYANTREE GROWTH CAPITAL L.L.C. | E139: SELL | F139: 2,226,702 | G139: 65.77 | H139: NSE
A140: 2022-04-19 | B140: INVENTURE | C140: Inventure Gro & Sec Ltd | D140: SHARE INDIA SECURITIES LIMITED | E140: SELL | F140: 4,719,967 | G140: 3.74 | H140: NSE
A141: 2022-04-19 | B141: KBCGLOBAL | C141: KBC Global Limited | D141: GOENKA BUSINESS & FINANCE LIMITED | E141: SELL | F141: 4,663,589 | G141: 9.67 | H141: NSE
A142: 2022-04-19 | B142: KBCGLOBAL | C142: KBC Global Limited | D142: ANUSTUP TRADING PRIVATE LIMITED | E142: SELL | F142: 5,367,848 | G142: 9.82 | H142: NSE
A143: 2022-04-19 | B143: KRISHNADEF | C143: Krishna Def and Ald Ind L | D143: VISHAL BIPINKUMAR DOSHI | E143: SELL | F143: 27,000 | G143: 110.6 | H143: NSE
A144: 2022-04-19 | B144: NAGREEKEXP | C144: Nagreeka Exports Limited | D144: VED PRAKASH AGARWAL | E144: SELL | F144: 20,000 | G144: 66.48 | H144: NSE
A145: 2022-04-19 | B145: NAVKARCORP | C145: Navkar Corporation Ltd. | D145: PARTH INFIN BROKERS PVT LTD | E145: SELL | F145: 973,171 | G145: 47.2 | H145: NSE
A146: 2022-04-19 | B146: NITIRAJ | C146: Nitiraj Engineers Ltd | D146: DEEP AGARWAL | E146: SELL | F146: 67,155 | G146: 94.25 | H146: NSE
A147: 2022-04-19 | B147: PEARLPOLY | C147: Pearl Polymers Ltd | D147: QNANCE RESEARCH CAPITAL LLP | E147: SELL | F147: 104,299 | G147: 32.23 | H147: NSE
A148: 2022-04-19 | B148: PEARLPOLY | C148: Pearl Polymers Ltd | D148: GRAVITON RESEARCH CAPITAL LLP | E148: SELL | F148: 133,222 | G148: 31.9 | H148: NSE
A149: 2022-04-19 | B149: PEARLPOLY | C149: Pearl Polymers Ltd | D149: NK SECURITIES RESEARCH PRIVATE LIMITED | E149: SELL | F149: 140,332 | G149: 32.14 | H149: NSE
A150: 2022-04-19 | B150: PEARLPOLY | C150: Pearl Polymers Ltd | D150: ARPIT JAIN HUF | E150: SELL | F150: 196,500 | G150: 32.42 | H150: NSE
A151: 2022-04-19 | B151: PEARLPOLY | C151: Pearl Polymers Ltd | D151: LAXMI AND COMPANY | E151: SELL | F151: 100,000 | G151: 32.81 | H151: NSE
A152: 2022-04-19 | B152: PEARLPOLY | C152: Pearl Polymers Ltd | D152: CHAINROOP SURAJMAL DUGAR | E152: SELL | F152: 182,224 | G152: 33.28 | H152: NSE
A153: 2022-04-19 | B153: PEARLPOLY | C153: Pearl Polymers Ltd | D153: BONANZA PORTFOLIO LTD | E153: SELL | F153: 112,343 | G153: 32.2 | H153: NSE
A154: 2022-04-19 | B154: PEARLPOLY | C154: Pearl Polymers Ltd | D154: DIPAN MEHTA COMMODITIES PRIVATE LIMITED | E154: SELL | F154: 120,421 | G154: 33.03 | H154: NSE
A155: 2022-04-19 | B155: PEARLPOLY | C155: Pearl Polymers Ltd | D155: ALPHA LEON ENTERPRISES LLP | E155: SELL | F155: 472,933 | G155: 33.3 | H155: NSE
A156: 2022-04-19 | B156: PEARLPOLY | C156: Pearl Polymers Ltd | D156: YUGA STOCKS AND COMMODITIES PRIVATE LIMITED . | E156: SELL | F156: 250,000 | G156: 32.59 | H156: NSE
A157: 2022-04-19 | B157: PEARLPOLY | C157: Pearl Polymers Ltd | D157: MUDUPULAVEMULA SURENDRANADHA REDDY | E157: SELL | F157: 166,279 | G157: 32.2 | H157: NSE
A158: 2022-04-19 | B158: PRITI | C158: Priti International Ltd | D158: VINOD SONI | E158: SELL | F158: 55,500 | G158: 70.52 | H158: NSE
A159: 2022-04-19 | B159: RELCAPITAL | C159: Reliance Capital Limited | D159: MANSI SHARES & STOCK ADVISORS PVT LTD | E159: SELL | F159: 1,343,048 | G159: 18.9 | H159: NSE
A160: 2022-04-19 | B160: RIIL | C160: Reliance Indl Infra Ltd | D160: HRTI PRIVATE LIMITED | E160: SELL | F160: 100,791 | G160: 1029.43 | H160: NSE
A161: 2022-04-19 | B161: RIIL | C161: Reliance Indl Infra Ltd | D161: XTX MARKETS LLP | E161: SELL | F161: 335,579 | G161: 1032.68 | H161: NSE
A162: 2022-04-19 | B162: RIIL | C162: Reliance Indl Infra Ltd | D162: QE SECURITIES | E162: SELL | F162: 127,276 | G162: 1032.4 | H162: NSE
A163: 2022-04-19 | B163: RIIL | C163: Reliance Indl Infra Ltd | D163: GRAVITON RESEARCH CAPITAL LLP | E163: SELL | F163: 289,564 | G163: 1034.31 | H163: NSE
A164: 2022-04-19 | B164: RIIL | C164: Reliance Indl Infra Ltd | D164: NK SECURITIES RESEARCH PRIVATE LIMITED | E164: SELL | F164: 81,646 | G164: 1032.59 | H164: NSE
A165: 2022-04-19 | B165: STARPAPER | C165: Star Paper Mills Ltd | D165: GRAVITON RESEARCH CAPITAL LLP | E165: SELL | F165: 88,195 | G165: 186.64 | H165: NSE
A166: 2022-04-19 | B166: TIMETECHNO | C166: Time Technoplast Limited | D166: GRAVITON RESEARCH CAPITAL LLP | E166: SELL | F166: 1,321,309 | G166: 95 | H166: NSE
A167: 2022-04-19 | B167: VAISHALI | C167: Vaishali Pharma Limited | D167: YUGA STOCKS AND COMMODITIES PRIVATE LIMITED . | E167: SELL | F167: 120,000 | G167: 112.84 | H167: NSE
A168: 2022-04-19 | B168: VCL | C168: Vaxtex Cotfab Limited | D168: SUREKHABEN THAKKAR | E168: SELL | F168: 266,004 | G168: 21.65 | H168: NSE
A169: 2022-04-19 | B169: VCL | C169: Vaxtex Cotfab Limited | D169: MAKWANA DIXIT CHANDUBHAI | E169: SELL | F169: 265,391 | G169: 21.92 | H169: NSE
A170: 2022-04-19 | B170: VCL | C170: Vaxtex Cotfab Limited | D170: SHIVANG R VACHHETA | E170: SELL | F170: 309,000 | G170: 21.5 | H170: NSE
A171: 2022-04-19 | B171: VCL | C171: Vaxtex Cotfab Limited | D171: NITINBHAI DALSUKHBHAI CHAUHAN | E171: SELL | F171: 264,322 | G171: 21.66 | H171: NSE

Sheet Call Tracker (Equity & F&O)
M5: Back To Main Page
A6: Retail Research Technical Calls & Fundamental Performance Report for the month of Apr-2022
M7: =Main!B10 -> 2022-04-20
B8: Positional Call
A9: Sr.no | B9: Date | D9: Company | E9: Rec | F9: Rec Price | G9: Stop Loss*** | H9: Call Closed At | I9: Target | J9: Remark | K9: Profit / Loss per Share | L9: All charges | M9: Net Gain / Loss % | N9: Status | O9: Closed Date | P9: Market Closing Price
A10: 1 | B10: 2022-03-07 | D10: REDINGTON | E10: Buy | F10: 146.5 | G10: 135 | H10: 156.5 | I10: 160-170 | J10: Profit of Rs.10/- | K10: =H10-F10 -> 10 | L10: =(F10*-0.7)/100 -> -1.03 | M10: =(K10+L10)/F10 -> 6.13% | N10: Successful | O10: 2022-04-07 | R10: H
A11: 2 | B11: 2022-03-17 | D11: TATACOMM | E11: Buy | F11: 1165 | G11: 1090 | H11: 1240 | I11: 1250-1300 | J11: Profit of Rs.75/- | K11: 75 | L11: -8.16 | M11: 5.74% | N11: Successful | O11: 2022-04-01 | R11: H
A12: 3 | B12: 2022-03-21 | D12: WHIRLPOOL | E12: Buy | F12: 1640 | G12: 1530 | H12: 1705 | I12: 1800-1900 | J12: Part profit of Rs.65/- | K12: 65 | L12: -11.48 | M12: 3.26% | N12: Successful | O12: 2022-04-11 | P12: =VLOOKUP(D12,'MidCap Intra'!B18:C573,2,0) -> 1595.9 | R12: H
A13: 4 | B13: 2022-03-25 | D13: SEQUENT | E13: Buy | F13: 134.5 | G13: 125 | H13: 142.5 | I13: 150-160 | J13: Profit of Rs.8/- | K13: =H13-F13 -> 8 | L13: =(F13*-0.7)/100 -> -0.94 | M13: =(K13+L13)/F13 -> 5.25% | N13: Successful | O13: 2022-04-01 | R13: H
A14: 5 | B14: 2022-04-01 | D14: HCLTECH | E14: Buy | F14: 1155 | G14: 1090 | H14: =(1199.5+1090)/2 -> 1144.75 | I14: 1250-1300 | J14: Loss of Rs.10.25/- | K14: -10.25 | L14: -8.09 | M14: -1.59% | N14: Unsuccessful | O14: 2022-04-19 | R14: H
A15: 6 | B15: 2022-04-06 | D15: APOLLOHOSP | E15: Buy | F15: 4540 | G15: 4195 | H15: 4805 | I15: 4800-5000 | J15: Part profit of Rs.265/- | K15: =H15-F15 -> 265 | L15: =(F15*-0.7)/100 -> -31.78 | M15: =(K15+L15)/F15 -> 5.14% | N15: Successful | O15: 2022-04-19 | R15: H
A16: 7 | B16: 2022-04-07 | D16: LT | E16: Buy | F16: 1810-1830 | G16: 1715 | I16: 1950-2000 | J16: Open | R16: H
A17: 8 | B17: 2022-04-08 | D17: REDINGTON | E17: Buy | F17: 152 | G17: 144 | H17: 161.5 | I17: 165-170 | J17: Profit of Rs.9.5/- | K17: =H17-F17 -> 9.5 | L17: =(F17*-0.7)/100 -> -1.06 | M17: =(K17+L17)/F17 -> 5.55% | N17: Successful | O17: 2022-04-11 | R17: H
A18: 9 | B18: 2022-04-12 | D18: REDINGTON | E18: Buy | F18: 154.5 | G18: 144 | H18: 164 | I18: 170-180 | J18: Profit of Rs.9.5/- | K18: 9.5 | L18: =(F18*-0.4)/100 -> -0.62 | M18: 5.75% | N18: Successful | O18: 2022-04-13 | R18: H
A19: 10 | B19: 2022-04-13 | D19: TATACOMM | E19: Buy | F19: 1280-1300 | G19: 1215 | I19: 1400-1450 | J19: Open | R19: H
A20: 11 | B20: 2022-04-13 | D20: CAMS | E20: Buy | F20: 2580-2610 | G20: 2395 | I20: 2800-2900 | J20: Open | R20: H
A21: 12 | B21: 2022-04-19 | D21: REDINGTON | E21: Buy | F21: 157-159 | G21: 149 | I21: 170-180 | J21: Open | R21: H
A26: CLBS = Closing Basis ***
A27: Dividend adjusted <> | F27: Reinitiated $
A28: Part book {} | D28: s | F28: Revised stoploss #
B30: Momentum Call
A31: Sr.no | B31: Date | D31: Company | E31: Rec | F31: Rec Price | G31: Stop Loss | H31: Call Closed At | I31: Target | J31: Remark | K31: Profit / Loss per Share/Lot | L31: All charges | M31: Net Gain / Loss % | N31: Status | O31: Closed Date
A32: 1 | B32: 2022-03-14 | D32: BEL | E32: Buy<> | F32: 208.5 | G32: 203 | H32: 215.5 | I32: 218-222 | J32: Profit of Rs.7/- | K32: =H32-F32 -> 7 | L32: =(F32*-0.7)/100 -> -1.46 | M32: =(K32+L32)/F32 -> 2.66% | N32: Successful | O32: 2022-04-01 | R32: H
A33: 2 | B33: 2022-03-25 | D33: SBIN | E33: Buy | F33: 491.5 | G33: 477 | H33: 509 | I33: 510-520 | J33: Profit of Rs.17.5/- | K33: =H33-F33 -> 17.5 | L33: =(F33*-0.7)/100 -> -3.44 | M33: =(K33+L33)/F33 -> 2.86% | N33: Successful | O33: 2022-04-04 | R33: H
A34: 3 | B34: 2022-04-04 | D34: SUMICHEM | E34: Buy | F34: 430-432 | G34: 418 | I34: 450-460 | J34: Open | R34: H
A35: 4 | B35: 2022-04-05 | D35: TATAPOWER | E35: Buy | F35: 272 | G35: 264 | H35: 285.5 | I35: 285-290 | J35: Profit of Rs.13.5/- | K35: =H35-F35 -> 13.5 | L35: =(F35*-0.7)/100 -> -1.90 | M35: =(K35+L35)/F35 -> 4.26% | N35: Successful | O35: 2022-04-06 | R35: H
A36: 5 | B36: 2022-04-06 | D36: DIXON | E36: Buy | F36: 4580 | G36: 4430 | H36: 4430 | I36: 4800-4900 | J36: Loss of Rs.150/- | K36: =H36-F36 -> -150 | L36: =(F36*-0.7)/100 -> -32.06 | M36: =(K36+L36)/F36 -> -3.98% | N36: Unsuccessful | O36: 2022-04-11 | R36: H
A37: 6 | B37: 2022-04-06 | D37: VTL | E37: Buy | F37: 446.5 | G37: 432 | H37: 462.5 | I37: 465-475 | J37: Profit of Rs.16/- | K37: 16 | L37: -3.13 | M37: 2.88% | N37: Successful | O37: 2022-04-13 | R37: H
A38: 7 | B38: 2022-04-07 | D38: SAIL | E38: Buy | F38: 110.25 | G38: 107.4 | H38: 107.4 | I38: 114-116 | J38: Loss of Rs.2.85/- | K38: =H38-F38 -> -2.85 | L38: =(F38*-0.7)/100 -> -0.77 | M38: =(K38+L38)/F38 -> -3.29% | N38: Unsuccessful | O38: 2022-04-13 | R38: H
A39: 8 | B39: 2022-04-07 | D39: HDFCBANK | E39: Buy | F39: 1525 | G39: 1477 | H39: 1477 | I39: 1590-1620 | J39: Loss of Rs.48/- | K39: -48 | L39: -10.68 | M39: -3.85% | N39: Unsuccessful | O39: 2022-04-13 | R39: H
A40: 9 | B40: 2022-04-08 | D40: HDFC | E40: Buy | F40: 2444 | G40: 2370 | H40: 2370 | I40: 2550-2600 | J40: Loss of Rs.74/- | K40: =H40-F40 -> -74 | L40: =(F40*-0.7)/100 -> -17.11 | M40: =(K40+L40)/F40 -> -3.73% | N40: Unsuccessful | O40: 2022-04-18 | R40: H
A41: 10 | B41: 2022-04-12 | D41: SBILIFE | E41: Buy | F41: 1142.5 | G41: 1113 | H41: 1174 | I41: 1180-1200 | J41: Profit of Rs.31.5/- | K41: 31.5 | L41: =(F41*-0.7)/100 -> -8.00 | M41: =(K41+L41)/F41 -> 2.06% | N41: Successful | O41: 2022-04-18 | R41: H
A42: 11 | B42: 2022-04-19 | D42: TATAPOWER | E42: Buy | F42: 247-249 | G42: 240 | I42: 265 | J42: Open | R42: H
A46: CLBS = Closing Basis *** | H46: *
A47: Dividend adjusted <> | F47: Reinitiated $
F48: Revised stoploss #
A50: Master Trade High Risk
A51: Sr.no | B51: Date | D51: Company | E51: Rec | F51: Rec Price | G51: Stop Loss | H51: Call Closed At | I51: Target | J51: Remark | K51: Profit / Loss per share | L51: All charges | M51: Gain / Loss per Lot | N51: Lot | O51: Status | P51: Closed Date
A52: 1 | B52: 2022-03-31 | D52: NIFTY APR FUT | E52: Buy | F52: 17520 | G52: 17340 | H52: 17625 | I52: 17700-17800 | J52: Profit of Rs.105/- | K52: =H52-F52 -> 105 | L52: =(H52*N52)*0.07% -> 616.88 | M52: =(K52*N52)-L52 -> 4633.1 | N52: 50 | O52: Successful | P52: 2022-04-01 | R52: H
A53: 2 | B53: 2022-04-01 | D53: PIDILITIND APR FUT | E53: Buy | F53: 2455 | G53: 2400 | H53: 2495 | I53: 2520-2550 | J53: Profit of Rs.40/- | K53: =H53-F53 -> 40 | L53: =(H53*N53)*0.07% -> 436.63 | M53: =(K53*N53)-L53 -> 9563.4 | N53: 250 | O53: Successful | P53: 2022-04-01 | R53: N
A54: 3 | B54: 2022-04-01 | D54: PIIND APR FUT | E54: Buy | F54: 2830 | G54: 2775 | H54: 2867.5 | I54: 2900-2930 | J54: Profit of Rs.37.5/- | K54: =H54-F54 -> 37.5 | L54: =(H54*N54)*0.07% -> 501.81 | M54: =(K54*N54)-L54 -> 8873.2 | N54: 250 | O54: Successful | P54: 2022-04-01 | R54: H
A55: 4 | B55: 2022-04-01 | D55: SIEMENS APR FUT | E55: Buy | F55: 2380 | G55: 2335 | H55: 2410 | I55: 2440-2480 | J55: Profit of Rs.30/- | K55: 30 | L55: 463.93 | M55: 7786.1 | N55: 275 | O55: Successful | P55: 2022-04-04 | R55: N
A56: 5 | B56: 2022-04-01 | D56: ACC APR FUT | E56: Buy | F56: 2100 | G56: 2048 | H56: 2130 | I56: 2160-2200 | J56: Profit of Rs.30/- | K56: =H56-F56 -> 30 | L56: =(H56*N56)*0.07% -> 372.75 | M56: =(K56*N56)-L56 -> 7127.3 | N56: 250 | O56: Successful | P56: 2022-04-04 | R56: H
A57: 6 | B57: 2022-04-01 | D57: HDFCBANK APR FUT | E57: Buy | F57: 1494 | G57: 1475 | H57: 1637.5 | I57: 1525-1535 | J57: Profit of Rs.143.5/- | K57: =H57-F57 -> 143.5 | L57: =(H57*N57)*0.07% -> 630.44 | M57: =(K57*N57)-L57 -> 78294.6 | N57: 550 | O57: Successful | P57: 2022-04-04 | R57: H
A58: 7 | B58: 2022-04-01 | D58: AARTIIND APR FUT | E58: Buy | F58: 955 | G58: 940 | H58: 966.5 | I58: 980-995 | J58: Profit of Rs.11.5/- | K58: 11.5 | L58: 575.07 | M58: 9199.9 | N58: 850 | O58: Successful | P58: 2022-04-04 | R58: N
A59: 8 | B59: 2022-04-04 | D59: NIFTY APR FUT | E59: Sell | F59: 18090 | G59: 18260 | H59: 17980 | I59: 17800-17700 | J59: Profit of Rs.110/- | K59: =F59-H59 -> 110 | L59: =(H59*N59)*0.07% -> 629.30 | M59: =(K59*N59)-L59 -> 4870.7 | N59: 50 | O59: Successful | P59: 2022-04-04 | R59: H
A60: 9 | B60: 2022-04-04 | D60: JSWSTEEL APR FUT | E60: Buy | F60: 736.5 | G60: 726 | H60: 745 | I60: 750-760 | J60: Profit of Rs.8.50/- | K60: =H60-F60 -> 8.5 | L60: 704.03 | M60: 10771.0 | N60: 1350 | O60: Successful | P60: 2022-04-05 | R60: N
A61: 10 | B61: 2022-04-04 | D61: INDUSINDBK APR FUT | E61: Buy | F61: 988 | G61: 974 | H61: 974 | I61: 1000-1015 | J61: Loss of Rs.14/- | K61: -14 | L61: =(H61*N61)*0.07% -> 613.62 | M61: =(K61*N61)-L61 -> -13213.6 | N61: 900 | O61: Unsuccessful | P61: 2022-04-05 | R61: H
A62: 11 | B62: 2022-04-04 | D62: PIIND APR FUT | E62: Buy | F62: 2870 | G62: 2820 | H62: 2905 | I62: 2950-3000 | J62: Profit of Rs.35/- | K62: =H62-F62 -> 35 | L62: =(H62*N62)*0.07% -> 508.38 | M62: =(K62*N62)-L62 -> 8241.6 | N62: 250 | O62: Successful | P62: 2022-04-05 | R62: N
A63: 12 | B63: 2022-04-05 | D63: HINDALCO APR FUT | E63: Buy | F63: 583 | G63: 570 | H63: 586.5 | I63: 600 | J63: Profit of Rs.3.5/- | K63: =H63-F63 -> 3.5 | L63: =(H63*N63)*0.07% -> 441.34 | M63: =(K63*N63)-L63 -> 3321.2 | N63: 1075 | O63: Successful | P63: 2022-04-05 | R63: H
A64: 13 | B64: 2022-04-05 | D64: NIFTY APR FUT | E64: Sell | F64: 18130 | G64: 18310 | H64: 18045 | I64: 17800-17700 | J64: Profit of Rs.85/- | K64: =F64-H64 -> 85 | L64: 631.58 | M64: 3618.4 | N64: 50 | O64: Successful | P64: 2022-04-05 | R64: H
A65: 14 | B65: 2022-04-05 | D65: JSWSTEEL APR FUT | E65: Buy | F65: 736 | G65: 725 | H65: 744 | I65: 750-760 | J65: Profit of Rs.8/- | K65: =H65-F65 -> 8 | L65: 703.08 | M65: 10096.9 | N65: 1350 | O65: Successful | P65: 2022-04-05 | R65: N
A66: 15 | B66: 2022-04-06 | D66: SIEMENS APR FUT | E66: Buy | F66: 2463 | G66: 2410 | H66: 2497.5 | I66: 2520-2560 | J66: Profit of Rs.34.5/- | K66: =H66-F66 -> 34.5 | L66: =(H66*N66)*0.07% -> 480.77 | M66: =(K66*N66)-L66 -> 9006.7 | N66: 275 | O66: Successful | P66: 2022-04-06 | R66: N
A67: 16 | B67: 2022-04-06 | D67: PIIND APR FUT | E67: Buy | F67: 2880 | G67: 2830 | H67: 2920 | I67: 2950-3000 | J67: Profit of Rs.40/- | K67: =H67-F67 -> 40 | L67: =(H67*N67)*0.07% -> 511.00 | M67: =(K67*N67)-L67 -> 9489.0 | N67: 250 | O67: Successful | P67: 2022-04-07 | R67: H
A68: 17 | B68: 2022-04-06 | D68: SIEMENS APR FUT | E68: Buy | F68: 2462 | G68: 2410 | H68: 2525 | I68: 2520-2560 | J68: Profit of Rs.63/- | K68: 63 | L68: 486.06 | M68: =(K68*N68)-L68 -> 16838.9 | N68: 275 | O68: Successful | P68: 2022-04-07 | R68: N
A69: 18 | B69: 2022-04-06 | D69: INFY APR FUT | E69: Buy | F69: 1832 | G69: 1790 | H69: 1790 | I69: 1870-1900 | J69: Loss of Rs.42/- | K69: -42 | L69: 375.90 | M69: =(K69*N69)-L69 -> -12975.9 | N69: 300 | O69: Unsuccessful | P69: 2022-04-11 | R69: H
A70: 19 | B70: 2022-04-06 | D70: HINDALCO APR FUT | E70: Buy | F70: 582 | G70: 570 | H70: 570 | I70: 600 | J70: Loss of Rs.12/- | K70: =H70-F70 -> -12 | L70: =(H70*N70)*0.07% -> 359.10 | M70: =(K70*N70)-L70 -> -11159.1 | N70: 900 | O70: Unsuccessful | P70: 2022-04-12 | R70: H
A71: 20 | B71: 2022-04-07 | D71: JSWSTEEL APR FUT | E71: Buy | F71: 731.5 | G71: 722 | H71: 739.5 | I71: 745-755 | J71: Profit of Rs.8/- | K71: =H71-F71 -> 8 | L71: =(H71*N71)*0.07% -> 698.83 | M71: =(K71*N71)-L71 -> 10101.2 | N71: 1350 | O71: Successful | P71: 2022-04-08 | R71: N
A72: 21 | B72: 2022-04-07 | D72: PIIND APR FUT | E72: Buy | F72: 2870 | G72: 2820 | H72: 2910 | I72: 2950-3000 | J72: Profit of Rs.40/- | K72: 40 | L72: 509.25 | M72: 9490.8 | N72: 250 | O72: Successful | P72: 2022-04-08 | R72: N
A73: 22 | B73: 2022-04-08 | D73: HCLTECH APR FUT | E73: Buy | F73: 1161 | G73: 1142 | H73: 1174.5 | I73: 1190-1200 | J73: Profit of Rs.13.5/- | K73: =H73-F73 -> 13.5 | L73: =(H73*N73)*0.07% -> 575.51 | M73: =(K73*N73)-L73 -> 8874.5 | N73: 700 | O73: Successful | P73: 2022-04-08 | R73: N
A74: 23 | B74: 2022-04-08 | D74: COLPAL APR FUT | E74: Buy | F74: 1573 | G74: 1535 | H74: 1535 | I74: 1610-1630 | J74: Loss of Rs.38/- | K74: -38 | L74: 376.08 | M74: -13676.1 | N74: 350 | O74: Unsuccessful | P74: 2022-04-13 | R74: N
A75: 24 | B75: 2022-04-11 | D75: SIEMENS APR FUT | E75: Buy | F75: 2515 | G75: 2465 | H75: 2465 | I75: 2570-2620 | J75: Loss of Rs.50/- | K75: =H75-F75 -> -50 | L75: =(H75*N75)*0.07% -> 474.51 | M75: =(K75*N75)-L75 -> -14224.5 | N75: 275 | O75: Unsuccessful | P75: 2022-04-12 | R75: N
A76: 25 | B76: 2022-04-11 | D76: HCLTECH APR FUT | E76: Buy | F76: 1137 | G76: 1120 | H76: 1120 | I76: 1160-1175 | J76: Loss of Rs.17/- | K76: -17 | L76: 548.80 | M76: -12448.8 | N76: 700 | O76: Unsuccessful | P76: 2022-04-12 | R76: N
A77: 26 | B77: 2022-04-11 | D77: ITC APR FUT | E77: Buy | F77: 269.5 | G77: 262 | I77: 280 | J77: Open | R77: H
D78: ITC 280 CE APR | E78: Sell | F78: 4.85 | R78: H
A79: 27 | B79: 2022-04-12 | D79: RELIANCE APR FUT | E79: Buy | F79: 2600 | G79: 2550 | H79: 2610 | I79: 2660-2700 | J79: Profit of Rs.10- | K79: =H79-F79 -> 10 | L79: =(H79*N79)*0.07% -> 456.75 | M79: =(K79*N79)-L79 -> 2043.3 | N79: 250 | O79: Successful | P79: 2022-04-19 | R79: H
A80: 28 | B80: 2022-04-12 | D80: NIFTY APR FUT | E80: Buy | F80: 17575 | G80: 17420 | H80: 17645 | I80: 17800-17900 | J80: Profit of Rs.70/- | K80: =H80-F80 -> 70 | L80: =(H80*N80)*0.07% -> 617.58 | M80: =(K80*N80)-L80 -> 2882.4 | N80: 50 | O80: Successful | P80: 2022-04-13 | R80: H
A81: 29 | B81: 2022-04-13 | D81: NIFTY APR FUT | E81: Buy | F81: 17530 | G81: 17400 | H81: 17535 | I81: 17800 | J81: Profit of Rs.5- | K81: =H81-F81 -> 5 | L81: =(H81*N81)*0.07% -> 613.73 | M81: =(K81*N81)-L81 -> -363.7 | N81: 50 | O81: Neutral | P81: 2022-04-13 | R81: H
A82: 30 | B82: 2022-04-18 | D82: PIIND APR FUT | E82: Buy | F82: 2905 | G82: 2850 | H82: 2950 | I82: 2970-3000 | J82: Profit of Rs.45/- | K82: 45 | L82: 516.25 | M82: 10733.8 | N82: 250 | O82: Successful | P82: 2022-04-18 | R82: N
A83: 31 | B83: 2022-04-18 | D83: ABCAPITAL APR FUT | E83: Buy | F83: 114.5 | G83: 111 | H83: 116.7 | I83: 118-121 | J83: Profit of Rs.2.2/- | K83: 2.2 | L83: 359.44 | M83: 9320.6 | N83: 4400 | O83: Successful | P83: 2022-04-18 | R83: N
A84: 32 | B84: 2022-04-18 | D84: ACC APR FUT | E84: Buy | F84: 2205 | G84: 2150 | H84: 2150 | I84: 2260-2300 | J84: Loss of Rs.55/- | K84: -55 | L84: 376.25 | M84: -14126.3 | N84: 250 | O84: Unsuccessful | P84: 2022-04-19 | R84: N
A85: 33 | B85: 2022-04-19 | D85: ABCAPITAL APR FUT | E85: Buy | F85: 114 | G85: 111 | H85: 111 | I85: 118-121 | J85: Loss of Rs.3/- | K85: =H85-F85 -> -3 | L85: =(H85*N85)*0.07% -> 341.88 | M85: =(K85*N85)-L85 -> -13541.9 | N85: 4400 | O85: Unsuccessful | P85: 2022-04-19 | R85: N
A86: 34 | B86: 2022-04-19 | D86: HCLTECH APR FUT | E86: Buy | F86: 1099 | G86: 1084 | H86: 1084 | I86: 1120-1130 | J86: Loss of Rs.15/- | K86: =H86-F86 -> -15 | L86: =(H86*N86)*0.07% -> 531.16 | M86: =(K86*N86)-L86 -> -11031.2 | N86: 700 | O86: Unsuccessful | P86: 2022-04-19 | R86: H
A87: 35 | B87: 2022-04-19 | D87: SIEMENS APR FUT | E87: Buy | F87: 2427.5 | G87: 2380 | I87: 2500-2520 | J87: Open | R87: N
A88: 36 | B88: 2022-04-19 | D88: PIIND APR FUT | E88: Buy | F88: 2895-2905 | G88: 2850 | I88: 2970-3000 | J88: Open | R88: N
A93: Master Trade Medium Risk
A94: Sr.no | B94: Date | D94: Company | E94: Rec | F94: Rec Price | G94: Stop Loss | H94: Call Closed At | I94: Target | J94: Remark | K94: Profit/ Loss per lot | L94: All charges | M94: Gain / Loss per Lot | N94: Lot | O94: Status | P94: Closed Date
A95: 1 | B95: 2022-04-04 | D95: HEROMOTOCO 2220 PE APR | E95: Buy | F95: 56 | G95: 39 | H95: 39 | I95: 75-85 | J95: Loss of Rs.17/- | K95: =H95-F95 -> -17 | L95: 100.00 | M95: =(K95*N95)-L95 -> -5200.0 | N95: 300 | O95: Unsuccessful | P95: 2022-04-04 | R95: N
A96: 2 | B96: 2022-04-04 | D96: NIFTY 17900 PE 07-APR | E96: Buy | F96: 82.5 | G96: 35 | H96: 102.5 | I96: 130-160 | J96: Profit of Rs.20/- | K96: =H96-F96 -> 20 | L96: 100.00 | M96: =(K96*N96)-L96 -> 900.0 | N96: 50 | O96: Successful | P96: 2022-04-04 | R96: H
A97: 3 | B97: 2022-04-04 | D97: NIFTY 17900 PE 07-APR | E97: Buy | F97: 77 | G97: 35 | H97: 54 | I97: 130-160 | J97: Loss of Rs.23/- | K97: -23 | L97: 100.00 | M97: -1250.0 | N97: 50 | O97: Unsuccessful | P97: 2022-04-04 | R97: H
A98: 4 | B98: 2022-04-05 | D98: BANKNIFTY 38200 PE 07-APR | E98: Buy | F98: 290 | G98: 170 | H98: 375 | I98: 400-450 | J98: Profit of Rs.85/- | K98: =H98-F98 -> 85 | L98: 100.00 | M98: =(K98*N98)-L98 -> 2025.0 | N98: 25 | O98: Successful | P98: 2022-04-05 | R98: H
A99: 5 | B99: 2022-04-05 | D99: BANKNIFTY 38700 CE 07-APR | E99: Buy | F99: 245 | G99: 130 | H99: 305 | I99: 350-400 | J99: Profit of Rs.60/- | K99: 60 | L99: 100.00 | M99: 1400.0 | N99: 25 | O99: Successful | P99: 2022-04-05 | R99: N
A100: 6 | B100: 2022-04-05 | D100: JUBLFOOD 600 CE APR | E100: Buy | F100: 13.5 | G100: 5 | I100: 20-22 | J100: Open | R100: N
A101: 7 | B101: 2022-04-06 | D101: NIFTY 17800 CE 07-APR | E101: Buy | F101: 94 | G101: 45 | H101: 114 | I101: 140-170 | J101: Profit of Rs.20/- | K101: =H101-F101 -> 20 | L101: 100.00 | M101: =(K101*N101)-L101 -> 900.0 | N101: 50 | O101: Successful | P101: 2022-04-06 | R101: H
A102: 8 | B102: 2022-04-06 | D102: BANKNIFTY 37800 CE 07-APR | E102: Buy | F102: 155 | G102: 45 | H102: 225 | I102: 300-400 | J102: Profit of Rs.70/- | K102: =H102-F102 -> 70 | L102: 100.00 | M102: =(K102*N102)-L102 -> 1650.0 | N102: 25 | O102: Successful | P102: 2022-04-06 | R102: N
A103: 9 | B103: 2022-04-06 | D103: NIFTY 17800 CE 07-APR | E103: Buy | F103: 73 | G103: 35 | H103: 35 | I103: 140-170 | J103: Loss of Rs.38/- | K103: -38 | L103: 100.00 | M103: -2000.0 | N103: 50 | O103: Unsuccessful | P103: 2022-04-07 | R103: H
A104: 10 | B104: 2022-04-06 | D104: BANKNIFTY 37800 CE 07-APR | E104: Buy | F104: 145 | G104: 45 | H104: 45 | I104: 300-400 | J104: Loss of Rs.100/- | K104: -100 | L104: 100.00 | M104: -2600.0 | N104: 25 | O104: Unsuccessful | P104: 2022-04-07 | R104: N
A105: 11 | B105: 2022-04-07 | D105: NIFTY 17900 CE 13-APR | E105: Buy | F105: 62.5 | G105: 19 | H105: 80 | I105: 100-114 | J105: Profit of Rs.17.5/- | K105: =H105-F105 -> 17.5 | L105: 100.00 | M105: =(K105*N105)-L105 -> 775.0 | N105: 50 | O105: Successful | P105: 2022-04-08 | R105: H
A106: 12 | B106: 2022-04-11 | D106: ACC 2140 PE APR | E106: Buy | F106: 51.5 | G106: 32 | H106: 34 | I106: 75-35 | J106: Loss of Rs.17.5/- | K106: -17.5 | L106: 100.00 | M106: -4475.0 | N106: 250 | O106: Unsuccessful | P106: 2022-04-11 | R106: H
A107: 13 | B107: 2022-04-11 | D107: NIFTY 17800 CE 13-APR | E107: Buy | F107: 71 | G107: 35 | H107: 91 | I107: 110-130 | J107: Profit of Rs.20/- | K107: 20 | L107: 100.00 | M107: 900.0 | N107: 50 | O107: Successful | P107: 2022-04-11 | R107: H
A108: 14 | B108: 2022-04-11 | D108: BANKNIFTY 38000 CE 13-APR | E108: Buy | F108: 255 | G108: 175 | H108: 305 | I108: 350-400 | J108: Profit of Rs.50/- | K108: 50 | L108: 100.00 | M108: 1150.0 | N108: 25 | O108: Successful | P108: 2022-04-11 | R108: H
A109: 15 | B109: 2022-04-11 | D109: LT 1820 CE APR | E109: Buy | F109: 34.5 | G109: 25 | H109: 25.5 | I109: 45-50 | J109: Loss of Rs.9/- | K109: -9 | L109: 100.00 | M109: =(K109*N109)-L109 -> -5275.0 | N109: 575 | O109: Unsuccessful | P109: 2022-04-11 | R109: H
A110: 16 | B110: 2022-04-11 | D110: BANKNIFTY 38000 CE 13-APR | E110: Buy | F110: 235 | G110: 140 | H110: 155 | I110: 350-400 | J110: Loss of Rs.80/- | K110: =H110-F110 -> -80 | L110: 100.00 | M110: =(K110*N110)-L110 -> -2100.0 | N110: 25 | O110: Unsuccessful | P110: 2022-04-11 | R110: N
A111: 17 | B111: 2022-04-11 | D111: NIFTY 17750 CE 13-APR | E111: Buy | F111: 71 | G111: 35 | H111: 35 | I111: 110-130 | J111: Loss of Rs.36/- | K111: =H111-F111 -> -36 | L111: 100.00 | M111: =(K111*N111)-L111 -> -1900.0 | N111: 50 | O111: Unsuccessful | P111: 2022-04-12 | R111: H
A112: 18 | B112: 2022-04-12 | D112: BANKNIFTY 37600 CE 13-APR | E112: Buy | F112: 145 | G112: 45 | H112: 195 | I112: 250-350 | J112: Profit of Rs.50/- | K112: 50 | L112: 100.00 | M112: 1150.0 | N112: 25 | O112: Successful | P112: 2022-04-12 | R112: N
A113: 19 | B113: 2022-04-12 | D113: NIFTY 17550 CE 13-APR | E113: Buy | F113: 48.5 | G113: 18 | H113: 68.5 | I113: 90-100 | J113: Profit of Rs.20/- | K113: 20 | L113: 100.00 | M113: 900.0 | N113: 50 | O113: Successful | P113: 2022-04-12 | R113: H
A114: 20 | B114: 2022-04-13 | D114: NIFTY 17600 PE 13-APR | E114: Buy | F114: 26 | H114: 46 | I114: 50-60 | J114: Profit of Rs.20/- | K114: =H114-F114 -> 20 | L114: 100.00 | M114: =(K114*N114)-L114 -> 900.0 | N114: 50 | O114: Successful | P114: 2022-04-13 | R114: N
A115: 21 | B115: 2022-04-13 | D115: NIFTY 17600 CE 13-APR | E115: Buy | F115: 29 | G115: 0 | H115: 0 | I115: 50-60 | J115: Loss of Rs.23/- | K115: -29 | L115: 100.00 | M115: -1550.0 | N115: 50 | O115: Unsuccessful | P115: 2022-04-13 | R115: N
A116: 22 | B116: 2022-04-13 | D116: BANKNIFTY 38000 CE 21-APR | E116: Buy | F116: 360 | G116: 170 | H116: 170 | I116: 500-600 | J116: Loss of Rs.190/- | K116: -190 | L116: 100.00 | M116: =(130*25-200) -> 3050.0 | N116: 25 | O116: Unsuccessful | P116: 2022-04-18 | R116: H
D117: BANKNIFTY 38000 CE 13 APR | E117: Sell | F117: 60 | H117: 0 | J117: Profit of Rs.60/- | K117: 60 | L117: 100.00 | R117: H
A121: Techno -Funda (positional)
A122: Sr.no | B122: Date | D122: Company | E122: Rec | F122: Rec Price | G122: Stop Loss*** | H122: Call Closed At | I122: Target | J122: Remark | K122: Profit / Loss per Share/Lot | L122: All charges | M122: Net Gain / Loss % | N122: Status | O122: Closed Date | P122: Market Closing Price
A123: 1 | B123: 2021-10-19 | D123: ITC | E123: Buy<> | F123: 235.25 | G123: 198 | I123: 320-340 | J123: Open | R123: H
A124: 2 | B124: 2022-03-31 | D124: KEC | E124: Buy | F124: 379 | G124: 348 | H124: 406 | I124: 420-450 | J124: Part profit of Rs.27/- | K124: =H124-F124 -> 27 | L124: =(F124*-0.7)/100 -> -2.65 | M124: =(K124+L124)/F124 -> 6.42% | N124: Successful | O124: 2022-04-06 | P124: =VLOOKUP(D124,'MidCap Intra'!B86:C641,2,0) -> 399.1 | R124: H
A125: 3 | B125: 2022-04-07 | D125: JKLAKSHMI | E125: Buy | F125: 445-455 | G125: 398 | I125: 520-560 | J125: Open | R125: H
A127: CLBS = Closing Basis *** | F127: Reinitiated $
A128: Dividend adjusted <> | F128: Revised stoploss # | H128: .................
B130: Intrday Call
A131: Sr.no | B131: Date | D131: Company | E131: Rec | F131: Rec Price | G131: Stop Loss | H131: Call Closed At | I131: Target | J131: Remark | K131: Profit / Loss per Share/Lot | L131: Gain / Loss per Lot | M131: Lot | N131: All charges | O131: Net Gain / Loss % | P131: Status | Q131: Closed Date
B144: Investment Idea
A145: Sr.no | B145: Date | D145: Company | E145: Rec | F145: Rec Price | G145: Point of Review | H145: Close Rate | I145: Target | J145: Remark | K145: Profit / Loss per Share | L145: Gain / Loss % | M145: Status | N145: Closed Date
A146: 1 | B146: 2013-11-01 | D146: L&T Finance Holding | E146: Accu | F146: 82.00 | G146: - | H146: 100 | I146: 100.00 | J146: Target Achieved | K146: =H146-F146 -> 18.00 | L146: =K146/F146 -> 21.95% | M146: Successful | N146: 2016-10-14
A147: 2 | B147: 2014-06-04 | D147: Finolex Inds | E147: Buy | F147: 257.00 | G147: - | H147: 300 | I147: 300.00 | J147: Target Achieved | K147: 43.00 | L147: 16.73% | M147: Successful | N147: 2014-07-02
A148: 3 | B148: 2014-07-08 | D148: JK Cement | E148: Buy | F148: 393.00 | G148: - | H148: 468 | I148: 468.00 | J148: Target Achieved | K148: 75.00 | L148: 19.08% | M148: Successful | N148: 2014-08-12
A149: 4 | B149: 2014-08-06 | D149: Finolex Cables | E149: Buy | F149: 205.00 | G149: - | H149: 275 | I149: 250.00 | J149: Target Achieved | K149: 70.00 | L149: 34.15% | M149: Successful | N149: 2014-11-19
A150: 5 | B150: 2014-09-04 | D150: Exide Inds | E150: Buy | F150: 162.00 | G150: - | H150: 190 | I150: 190.00 | J150: Target Achieved | K150: 28.00 | L150: 17.28% | M150: Successful | N150: 2015-01-02
A151: 6 | B151: 2014-09-04 | D151: Deepak Nitrite | E151: Buy | F151: 75.00 | G151: - | H151: 91.5 | I151: 95-100 | J151: Profit of Rs.16.50/- | K151: 16.50 | L151: 22.00% | M151: Successful | N151: 2014-11-11
A152: 7 | B152: 2014-10-01 | D152: Mercks | E152: Buy | F152: 850.00 | G152: - | H152: 982.5 | I152: 1050.00 | J152: Profit of Rs.132.50/- | K152: 132.50 | L152: 15.59% | M152: Successful | N152: 2015-02-04
A153: 8 | B153: 2014-10-01 | D153: Grindwell Norton | E153: Buy | F153: 475.00 | G153: - | H153: 515 | I153: 600.00 | J153: Profit of Rs.40/- | K153: 40.00 | L153: 8.42% | M153: Successful | N153: 2014-10-27
A154: 9 | B154: 2014-10-01 | D154: Snowman Logistics | E154: Buy | F154: 86.00 | G154: - | H154: 99 | I154: 140.00 | J154: Profit of Rs.13.00/- | K154: 13.00 | L154: 15.12% | M154: Successful | N154: 2014-10-27
A155: 10 | B155: 2014-10-14 | D155: Birla Corp | E155: Buy | F155: 496.60 | G155: - | H155: 621 | I155: 580.00 | J155: Target Achieved | K155: 124.40 | L155: 25.05% | M155: Successful | N155: 2016-08-23
A156: 11 | B156: 2014-10-14 | D156: Ultratech Cem | E156: Buy | F156: 2481.90 | G156: - | H156: 2840 | I156: 2870.00 | J156: Profit of Rs.358.10/- | K156: 358.10 | L156: 14.43% | M156: Successful | N156: 2015-01-13
A157: 12 | B157: 2014-10-16 | D157: Sintex Inds | E157: Buy | F157: 84.50 | G157: - | H157: 93 | I157: 110.00 | J157: Profit of Rs.8.50/- | K157: 8.50 | L157: 10.06% | M157: Successful | N157: 2014-10-27
A158: 13 | B158: 2014-10-16 | D158: HSIL | E158: Buy | F158: 401.00 | G158: - | H158: 428 | I158: 450.00 | J158: Profit of Rs.27.00/- | K158: 27.00 | L158: 6.73% | M158: Successful | N158: 2015-01-16
A159: 14 | B159: 2014-10-16 | D159: Eveready Inds | E159: Buy | F159: 101.00 | G159: - | H159: 112 | I159: 120.00 | J159: Profit of Rs.11.00/- | K159: 11.00 | L159: 10.89% | M159: Successful | N159: 2014-10-27
A160: 15 | B160: 2014-11-11 | D160: Pennar Inds | E160: Buy | F160: 59.00 | G160: - | H160: 76 | I160: 76.00 | J160: Target Achieved | K160: 17.00 | L160: 28.81% | M160: Successful | N160: 2017-10-24
A161: 16 | B161: 2014-11-11 | D161: Snowman Logistics | E161: Buy | F161: 99.00 | G161: - | H161: 120 | I161: 120.00 | J161: Profit of Rs.21/- | K161: 21.00 | L161: 21.21% | M161: Successful | N161: 2014-11-17
A162: 17 | B162: 2014-11-13 | D162: Dharamsi Morarji Chem | E162: Buy | F162: 22.00 | G162: - | H162: 33.55 | I162: 32.00 | J162: Profit of Rs 11.55/- | K162: 11.55 | L162: 52.50% | M162: Successful | N162: 2015-07-03
A163: 18 | B163: 2014-12-03 | D163: Tatachem | E163: Buy | F163: 440.00 | G163: - | H163: 520 | I163: 520.00 | J163: Profit of Rs 80.00/- | K163: 80.00 | L163: 18.18% | M163: Successful | N163: 2015-07-23
A164: 19 | B164: 2014-12-03 | D164: Advanta | E164: Buy | F164: 360.00 | G164: - | H164: 427 | I164: 425.00 | J164: Profit of Rs.67.00/- | K164: 67.00 | L164: 18.61% | M164: Successful | N164: 2015-02-23
A165: 20 | B165: 2015-01-08 | D165: GDL | E165: Buy | F165: 360.00 | G165: - | H165: 455 | I165: 420.00 | J165: Profit of Rs.95.00/- | K165: 95.00 | L165: 26.39% | M165: Successful | N165: 2015-01-20
A166: 21 | B166: 2015-01-08 | D166: NRB Bearing | E166: Buy | F166: 130.00 | H166: 175.5 | I166: 165.00 | J166: Profit of Rs 45.50/- | K166: 45.50 | L166: 35.00% | M166: Successful | N166: 2017-12-19
A167: 22 | B167: 2015-02-05 | D167: GSFC | E167: Accu | F167: 98.00 | H167: 120 | I167: 120.00 | J167: Target Achieved | K167: 22.00 | L167: 22.45% | M167: Successful | N167: 2017-01-18
A168: 23 | B168: 2015-02-05 | D168: Sundrmfast | E168: Accu | F168: 196.00 | H168: 262 | I168: 255.00 | J168: Target Achieved | K168: 66.00 | L168: 33.67% | M168: Successful | N168: 2016-08-17
A169: 24 | B169: 2015-03-04 | D169: GPPL | E169: Accu | F169: 235 | H169: 77.00 | I169: 280-285 | J169: Loss of Rs.158/- | K169: -158.00 | L169: -67.23% | M169: Unsuccessful | N169: 2019-02-26
A170: 25 | B170: 2015-03-04 | D170: ORIENTCEM | E170: Accu | F170: 185.00 | H170: 224 | I170: 220-225 | J170: Target Achieved | K170: 39.00 | L170: 21.08% | M170: Successful | N170: 2016-10-04
A171: 26 | B171: 2015-03-27 | D171: PFS | E171: Accu | F171: 49.5 | H171: 15.85 | I171: 67.00 | J171: Loss of Rs.33.65/- | K171: -33.65 | L171: -68% | M171: Unsuccessful | N171: 2019-06-11
A172: 27 | B172: 2015-03-30 | D172: Walchandnagar Ind Ltd | E172: Accu | F172: 183.50 | H172: 219 | I172: 218.00 | J172: Profit of Rs.35.50/- | K172: 35.50 | L172: 19.35% | M172: Successful | N172: 2015-04-09
A173: 28 | B173: 2015-04-20 | D173: Kalpataru Power Transmission Ltd | E173: Accu | F173: =(227+237)/2 -> 232.00 | H173: 298 | I173: 298.00 | J173: Target Achieved | K173: 66.00 | L173: 28.45% | M173: Successful | N173: 2017-03-29
A174: 29 | B174: 2015-05-04 | D174: Mastek Ltd | E174: Buy | F174: 385.00 | H174: =212.5+331 -> 543.5 | I174: 510.00 | J174: Profit of Rs 158.50/- | K174: 158.50 | L174: 41.17% | M174: Successful | N174: 2015-08-19
A175: 30 | B175: 2015-05-04 | D175: Suprajit Eng | E175: Buy | F175: 115.50 | H175: 146 | I175: 142.00 | J175: Profit of Rs 30.50/- | K175: 30.50 | L175: 26.41% | M175: Successful | N175: 2015-07-17
A176: 31 | B176: 2015-05-27 | D176: TCI | E176: Buy | F176: 237.50 | H176: 279.5 | I176: 278.00 | J176: Target Achieved | K176: 42.00 | L176: 17.68% | M176: Successful | N176: 2015-08-06
A177: 32 | B177: 2015-06-19 | D177: HSIL | E177: Accu | F177: 340.00 | H177: 448 | I177: 448.00 | J177: Target Achieved | K177: 108.00 | L177: 31.76% | M177: Successful | N177: 2017-10-10
A178: 33 | B178: 2015-07-06 | D178: Capital First | E178: Accu | F178: 390.00 | H178: 460 | I178: 460.00 | J178: Target Achieved | K178: 70.00 | L178: 17.95% | M178: Successful | N178: 2016-04-18
A179: 34 | B179: 2015-07-10 | D179: Dolphin OffShore | E179: Accu | F179: 122.5 | H179: 61.00 | I179: 172.00 | J179: Loss of Rs.61.50/- | K179: -61.50 | L179: -50.20% | M179: Unsuccessful | N179: 2018-08-21
A180: 35 | B180: 2015-08-03 | D180: Allcargo logistics | E180: Accu | F180: 297.50 | H180: 350 | I180: 360.00 | J180: Profit of Rs 52.50/- | K180: 52.50 | L180: 17.65% | M180: Successful | N180: 2015-08-16
A181: 36 | B181: 2015-08-03 | D181: Camline Fine | E181: Accu | F181: 115.50 | H181: 149 | I181: 140.00 | J181: Profit of Rs 33.50/- | K181: 33.50 | L181: 29.00% | M181: Successful | N181: 2017-01-05
A182: 37 | B182: 2015-09-04 | D182: TCI | E182: Accu | F182: 226.00 | H182: 292 | I182: 292.00 | J182: Target Achieved | K182: 66.00 | L182: 29.20% | M182: Successful | N182: 2015-10-09
A183: 38 | B183: 2015-09-07 | D183: Kalpataru Power Transmission Ltd | E183: Accu | F183: 232.50 | H183: 312.5 | I183: 310.00 | J183: Target Achieved | K183: 80.00 | L183: 34.41% | M183: Successful | N183: 2017-03-29
A184: 39 | B184: 2015-09-21 | D184: LLOYD ELECTRIC & ENG LTD | E184: Accu | F184: 196.50 | H184: 238 | I184: 238.00 | J184: Target Achieved | K184: 41.50 | L184: 21.12% | M184: Successful | N184: 2015-10-14
A185: 40 | B185: 2015-09-24 | D185: L&T Finance Holding | E185: Accu | F185: 65.00 | H185: 82 | I185: 82.00 | J185: Target Achieved | K185: 17.00 | L185: 26.15% | M185: Successful | N185: 2016-07-27
A186: 41 | B186: 2015-10-14 | D186: KEC International ltd | E186: Accu | F186: 144.00 | H186: 182.5 | I186: 181.00 | J186: Target Achieved | K186: 38.50 | L186: 26.74% | M186: Successful | N186: 2017-03-23
A187: 42 | B187: 2015-10-14 | D187: Gruh Finance | E187: Accu | F187: 264.00 | H187: 311 | I187: 311.00 | J187: Target Achieved | K187: 47.00 | L187: 17.80% | M187: Successful | N187: 2016-08-22
A188: 43 | B188: 2015-11-10 | D188: Pidilitind | E188: Buy | F188: 549.50 | H188: 630 | I188: 630.00 | J188: Target Achieved | K188: 80.50 | L188: 14.65% | M188: Successful | N188: 2016-02-19
A189: 44 | B189: 2015-12-04 | D189: Zensar Technology | E189: Accu | F189: 1027.50 | H189: 1315 | I189: 1250.00 | J189: Target Achieved | K189: 287.50 | L189: 27.98% | M189: Successful | N189: 2018-05-24
A190: 45 | B190: 2015-12-29 | D190: Vinati Organics Ltd | E190: Accu | F190: 465.00 | H190: 540 | I190: 540.00 | J190: Target Achieved | K190: 75.00 | L190: 16.13% | M190: Successful | N190: 2016-06-09
A191: 46 | B191: 2016-01-11 | D191: GSFC | E191: Buy | F191: 81.00 | H191: 110 | I191: 110.00 | J191: Target Achieved | K191: 29.00 | L191: 35.80% | M191: Successful | N191: 2017-01-10
A192: 47 | B192: 2016-01-13 | D192: SSWL | E192: Buy | F192: 417.50 | H192: 547 | I192: 535.00 | J192: Target Achieved | K192: 129.50 | L192: 31.02% | M192: Successful | N192: 2016-07-27
A193: 48 | B193: 2016-02-08 | D193: Persistent System Ltd | E193: Accu | F193: 650.00 | H193: 800 | I193: 800.00 | J193: Target Achieved | K193: 150.00 | L193: 23.08% | M193: Successful | N193: 2018-02-23
A194: 49 | B194: 2016-03-04 | D194: UPL | E194: Accu | F194: 437.50 | H194: 504.5 | I194: 522.00 | J194: Profit of Rs.67/- | K194: 67.00 | L194: 15.31% | M194: Successful | N194: 2016-04-20
A195: 50 | B195: 2016-03-09 | D195: Ashoka Buildcon Ltd | E195: Accu | F195: 189.50 | H195: 218 | I195: 218.00 | J195: Target Achieved | K195: 28.50 | L195: 15.04% | M195: Successful | N195: 2017-10-26
A196: 51 | B196: 2016-04-11 | D196: PTC INDIA FIN SERV LTD | E196: Accu | F196: 36.5 | H196: 15.85 | I196: 60.00 | J196: Loss of Rs.20.65/- | K196: -20.65 | L196: -56.58% | M196: Unsuccessful | N196: 2019-06-11
A197: 52 | B197: 2016-04-12 | D197: CAMLINFINE $ | E197: Accu | F197: 93.00 | H197: 149 | I197: 140.00 | J197: Profit of Rs 56/- | K197: 56.00 | L197: 60.22% | M197: Successful | N197: 2017-01-05
A198: 53 | B198: 2016-04-12 | D198: Greaves Cotton Ltd. | E198: Accu | F198: 130.00 | H198: 150 | I198: 150-155 | J198: Target Achieved | K198: 20.00 | L198: 15.38% | M198: Successful | N198: 2016-07-13
A199: 54 | B199: 2016-04-13 | D199: DHFL | E199: Accu | F199: 196.00 | H199: 299 | I199: 299.00 | J199: Target Achieved | K199: 103.00 | L199: 52.55% | M199: Successful | N199: 2016-09-07
A200: 55 | B200: 2016-04-13 | D200: Magma | E200: Accu | F200: 88.00 | H200: 103 | I200: 103.00 | J200: Target Achieved | K200: 15.00 | L200: 17.05% | M200: Successful | N200: 2016-06-09
A201: 56 | B201: 2016-05-02 | D201: KEC International ltd $ | E201: Accu | F201: 127.50 | H201: 148 | I201: 148-150 | J201: Target Achieved | K201: =H201-F201 -> 20.50 | L201: =K201/F201 -> 16.08% | M201: Successful | N201: 2016-07-13
A202: 57 | B202: 2016-05-03 | D202: Mindtree | E202: Accu | F202: 675.00 | H202: 815 | I202: 790-800 | J202: Target Achieved | K202: =H202-F202 -> 140.00 | L202: =K202/F202 -> 20.74% | M202: Successful | N202: 2018-02-23
A203: 58 | B203: 2016-06-01 | D203: Atulauto | E203: Accu | F203: 500 | H203: 232.50 | I203: 565-570 | J203: Loss of Rs.267.50 /- | K203: =H203-F203 -> -267.50 | L203: =K203/F203 -> -53.50% | M203: Unsuccessful | N203: 2019-09-27
A204: 59 | B204: 2016-06-06 | D204: TRITURBINE | E204: Accu | F204: 110.00 | H204: 126.5 | I204: 125.00 | J204: Profit of Rs.16.50/- | K204: =H204-F204 -> 16.50 | L204: =K204/F204 -> 15.00% | M204: Successful | N204: 2016-07-01
A205: 60 | B205: 2016-06-17 | D205: Pennar Industries Ltd | E205: Accu | F205: 44.00 | H205: 69.5 | I205: 69.50 | J205: Profit of Rs.25.50/- | K205: =H205-F205 -> 25.50 | L205: =K205/F205 -> 57.95% | M205: Successful | N205: 2017-08-30
A206: 61 | B206: 2016-06-28 | D206: EVEREADY | E206: Accu | F206: 262.50 | H206: 340 | I206: 333.00 | J206: Profit of Rs.77.50/- | K206: 77.50 | L206: 29.52% | M206: Successful | N206: 2017-10-09
A207: 62 | B207: 2016-06-28 | D207: FIEMIND | E207: Accu | F207: 840.00 | H207: 1230 | I207: 1230.00 | J207: Target Achieved | K207: 390.00 | L207: 46.43% | M207: Successful | N207: 2016-10-06
A208: 63 | B208: 2016-07-05 | D208: Bajaj Corp Ltd | E208: Accu | F208: 395 | H208: =(468.5+342.5)/2 -> 405.50 | I208: 510.00 | J208: Profit of Rs.10.50/- | K208: =H208-F208 -> 10.50 | L208: =K208/F208 -> 3% | M208: Neutral | N208: 2019-05-21
A209: 64 | B209: 2016-08-02 | D209: GPPL $ | E209: Buy | F209: =169.5-12.8 -> 156.7 | H209: 77.00 | I209: 198-200 | J209: Loss of Rs.79.7/- | K209: -79.70 | L209: -50.86% | M209: Unsuccessful | N209: 2019-02-26
A210: 65 | B210: 2016-08-04 | D210: WONDERLA HOLIDAYS LTD | E210: Accu | F210: 400 | H210: 305.00 | I210: 475.00 | J210: Loss of Rs.95/- | K210: -95.00 | L210: -23.75% | M210: Unsuccessful | N210: 2019-05-21
A211: 66 | B211: 2016-08-11 | D211: CAMLINFINE | E211: Accu | F211: 86.50 | H211: 130 | I211: 130.00 | J211: Profit of Rs.43.50/- | K211: 43.50 | L211: 50.29% | M211: Successful | N211: 2017-12-22
A212: 67 | B212: 2016-08-18 | D212: GRANULES | E212: Accu | F212: 133.5 | H212: 126.50 | I212: 178.00 | J212: Exit | K212: -7.00 | L212: -5.24% | M212: Unsuccessful | N212: 2016-09-02
A213: 68 | B213: 2016-08-31 | D213: VA TECH WABAG | E213: Accu | F213: 560.00 | H213: 725 | I213: 725.00 | J213: Target Achieved | K213: 165.00 | L213: 29.46% | M213: Successful | N213: 2016-03-27
A214: 69 | B214: 2016-09-01 | D214: SKIPPER LIMITED | E214: Accu | F214: 160.50 | H214: 210 | I214: 210.00 | J214: Target Achieved | K214: 49.50 | L214: 30.84% | M214: Successful | N214: 2017-05-16
A215: 70 | B215: 2016-10-03 | D215: IFBIND | E215: Accu | F215: 430.00 | H215: 596 | I215: 575.00 | J215: Profit of Rs.166/- | K215: 166.00 | L215: 38.60% | M215: Successful | N215: 2017-02-03
A216: 71 | B216: 2016-10-14 | D216: ASIANTILES | E216: Accu | F216: 280.00 | H216: 345 | I216: 345.00 | J216: Target Achieved | K216: =H216-F216 -> 65.00 | L216: =K216/F216 -> 23.21% | M216: Successful | N216: 2017-03-20
A217: 72 | B217: 2016-10-14 | D217: DEEPIND | E217: Accu | F217: 245.00 | H217: 325.5 | I217: 330.00 | J217: Profit of Rs.80.5/- | K217: 80.50 | L217: =K217/F217 -> 32.86% | M217: Successful | N217: 2017-02-03
A218: 73 | B218: 2016-10-17 | D218: DCBBANK | E218: Accu | F218: 125.00 | H218: 160 | I218: 160.00 | J218: Target Achieved | K218: 35.00 | L218: 28.00% | M218: Successful | N218: 2017-03-09
A219: 74 | B219: 2016-10-17 | D219: ORIENTREF | E219: Accu | F219: 114.00 | H219: 145 | I219: 145.00 | J219: Target Achieved | K219: 31.00 | L219: =K219/F219 -> 27.19% | M219: Successful | N219: 2017-05-04
A220: 75 | B220: 2016-10-17 | D220: GANECOS | E220: Accu | F220: 212.00 | H220: 280 | I220: 276.00 | J220: Profit of Rs.68/- | K220: 68.00 | L220: =K220/F220 -> 32.08% | M220: Successful | N220: 2017-05-03
A221: 76 | B221: 2016-11-04 | D221: NBCC | E221: Accu | F221: 155.00 | H221: 210 | I221: 210.00 | J221: Profit of Rs.55/- | K221: 55.00 | L221: =K221/F221 -> 35.48% | M221: Successful | N221: 2017-07-28
A222: 77 | B222: 2016-12-06 | D222: PRECAM | E222: Accu | F222: 150.5 | H222: 72.50 | I222: 174.00 | J222: Loss of Rs.78/- | K222: -78.00 | L222: -51.83% | M222: Unsuccessful | N222: 2018-08-21
A223: 78 | B223: 2016-12-08 | D223: INFRATEL | E223: Accu | F223: 380.00 | H223: 478 | I223: 468.00 | J223: Target Achieved | K223: =H223-F223 -> 98.00 | L223: =K223/F223 -> 25.79% | M223: Successful | N223: 2017-10-17
A224: 79 | B224: 2016-12-30 | D224: GODREJPROP | E224: Accu | F224: 305.00 | H224: 375 | I224: 375.00 | J224: Target Achieved | K224: =H224-F224 -> 70.00 | L224: =K224/F224 -> 22.95% | M224: Successful | N224: 2017-02-02
A225: 80 | B225: 2017-01-04 | D225: DEEPAKNTR | E225: Accu | F225: 99.50 | H225: 158 | I225: 158.00 | J225: Target Achieved | K225: =H225-F225 -> 58.50 | L225: =K225/F225 -> 58.79% | M225: Successful | N225: 2017-06-12
A226: 81 | B226: 2017-01-04 | D226: DEEPAKNTR | E226: Accu | F226: 99.50 | H226: 158 | I226: 158.00 | J226: Target Achieved | K226: 58.50 | L226: 58.79% | M226: Successful | N226: 2017-06-12
A227: 82 | B227: 2017-02-20 | D227: RECLTD | E227: Accu | F227: 140.50 | H227: 220 | I227: 220.00 | J227: Target Achieved | K227: =H227-F227 -> 79.50 | L227: =K227/F227 -> 56.58% | M227: Successful | N227: 2017-05-09
A228: 83 | B228: 2017-02-20 | D228: SUBROS | E228: Accu | F228: 202.50 | H228: 234 | I228: 234.00 | J228: Target Achieved | K228: 31.50 | L228: 15.56% | M228: Successful | N228: 2017-04-11
A229: 84 | B229: 2017-03-24 | D229: VRLLOG | E229: Accu | F229: 300.50 | H229: 417.5 | I229: 420.00 | J229: Profit of Rs.117/- | K229: =H229-F229 -> 117.00 | L229: =K229/F229 -> 38.94% | M229: Successful | N229: 2017-12-01
A230: 85 | B230: 2017-03-24 | D230: FIEMIND | E230: Accu | F230: 850.00 | H230: 1042.5 | I230: 1023.00 | J230: Profit of Rs 192.50/- | K230: 192.50 | L230: 22.65% | M230: Successful | N230: 2017-04-05
A231: 86 | B231: 2017-04-05 | D231: RATNAMANI | E231: Accu | F231: 785.00 | H231: 930 | I231: 920.00 | J231: Profit of Rs.145/- | K231: =H231-F231 -> 145.00 | L231: =K231/F231 -> 18.47% | M231: Successful | N231: 2017-08-29
A232: 87 | B232: 2017-04-06 | D232: ZEEMEDIA | E232: Accu | F232: 40 | H232: 13.10 | I232: 60.00 | J232: Loss of Rs.26.9/- | K232: -26.90 | L232: -67.25% | M232: Unsuccessful | N232: 2018-02-07
A233: 88 | B233: 2017-04-12 | D233: DABUR | E233: Accu | F233: 289.50 | H233: 354 | I233: 360.00 | J233: Profit of Rs.64.5/- | K233: =H233-F233 -> 64.50 | L233: =K233/F233 -> 22.28% | M233: Successful | N233: 2017-11-01
A234: 89 | B234: 2017-04-20 | D234: KPRMILL | E234: Accu | F234: 700.00 | H234: 840 | I234: 840.00 | J234: Profit of Rs.140/- | K234: 140.00 | L234: 20.00% | M234: Successful | N234: 2017-06-07
... 88 more rows
